Body Name,Body,Organisational unit,Service division,Expenditure category,Date,Transacton number,Net amount,Supplier,Narrative
Tendring DC,http://statistics.data.gov.uk/id/local-authority-district/22UN,Corporate Services,1090 - Management Team Service Unit,4300 - Printing & Stationery,03/04/2012,2095157-1,125.75,2104502 - 7 Two 11,7two11 Kwikserve
Tendring DC,http://statistics.data.gov.uk/id/local-authority-district/22UN,Corporate Services,1210 - Facilities Management Service Unit,4300 - Printing & Stationery,03/04/2012,2095157-2,175.33,2104502 - 7 Two 11,7two11 Kwikserve
Tendring DC,http://statistics.data.gov.uk/id/local-authority-district/22UN,Corporate Services,7720 - Regeneration Projects,5500 - Miscellaneous Expenses,03/04/2012,2095157-3,127.15,2104502 - 7 Two 11,7two11 Kwikserve
Tendring DC,http://statistics.data.gov.uk/id/local-authority-district/22UN,Corporate Services,1100 - Corporate Services Manager Service Unit,4300 - Printing & Stationery,03/04/2012,2095157-4,67.03,2104502 - 7 Two 11,7two11 Kwikserve
Tendring DC,http://statistics.data.gov.uk/id/local-authority-district/22UN,Corporate Services,"1580 - Benefits, Revenues and Customer Contact SU",4355 - Books & Periodicals,03/04/2012,2095157-5,56.43,2104502 - 7 Two 11,7two11 Kwikserve
Tendring DC,http://statistics.data.gov.uk/id/local-authority-district/22UN,Corporate Services,1210 - Facilities Management Service Unit,4300 - Printing & Stationery,03/04/2012,2095157-6,10.07,2104502 - 7 Two 11,7two11 Kwikserve
Tendring DC,http://statistics.data.gov.uk/id/local-authority-district/22UN,Corporate Services,6980 - Community Special Projects,5500 - Miscellaneous Expenses,03/04/2012,2095207-1,42.72,2109992 - Anglian Community Enterprise,Anglian Community Enterprise
Tendring DC,http://statistics.data.gov.uk/id/local-authority-district/22UN,Corporate Services,7747 - Town Centres Funding (Empty Shops),5161 - Advertising and Promotion,10/04/2012,2095427-1,125,2102337 - Archant Regional Ltd,Shop AD Apr-May
Tendring DC,http://statistics.data.gov.uk/id/local-authority-district/22UN,Corporate Services,7747 - Town Centres Funding (Empty Shops),5161 - Advertising and Promotion,10/04/2012,2095428-1,90,2102337 - Archant Regional Ltd,Shop AD - Apr/May
Tendring DC,http://statistics.data.gov.uk/id/local-authority-district/22UN,Corporate Services,7747 - Town Centres Funding (Empty Shops),5161 - Advertising and Promotion,10/04/2012,2095429-1,10,2102337 - Archant Regional Ltd,Coastal Life
Tendring DC,http://statistics.data.gov.uk/id/local-authority-district/22UN,Corporate Services,7747 - Town Centres Funding (Empty Shops),5161 - Advertising and Promotion,10/04/2012,2095430-1,190,2102337 - Archant Regional Ltd,Coastal Life
Tendring DC,http://statistics.data.gov.uk/id/local-authority-district/22UN,Corporate Services,1860 - Depots General,2100 - Building Repairs,10/04/2012,1048030-1,1700,2101568 - Asgen Limited,ASGEN
Tendring DC,http://statistics.data.gov.uk/id/local-authority-district/22UN,Corporate Services,1880 - Office Accommodation Expenses,4080 - Materials & Consumables,03/04/2012,2095075-1,21.76,2100099 - B & Q Trade Account,B&Q
Tendring DC,http://statistics.data.gov.uk/id/local-authority-district/22UN,Corporate Services,1880 - Office Accommodation Expenses,4080 - Materials & Consumables,24/04/2012,2095800-1,58.22,2100099 - B & Q Trade Account,B & Q
Tendring DC,http://statistics.data.gov.uk/id/local-authority-district/22UN,Corporate Services,C276 - Clacton Regeneration,C200 - Main Contractor,10/04/2012,2095412-1,900,2105244 - B3 Architects,Survey & Report
Tendring DC,http://statistics.data.gov.uk/id/local-authority-district/22UN,Corporate Services,1100 - Corporate Services Manager Service Unit,4300 - Printing & Stationery,10/04/2012,2095353-1,96.89,REDACTED PERSONAL DATA,REDACTED PERSONAL DATA
Tendring DC,http://statistics.data.gov.uk/id/local-authority-district/22UN,Corporate Services,1880 - Office Accommodation Expenses,2100 - Building Repairs,17/04/2012,1048193-1,595,2100117 - Brian Birt Carpets Ltd,BRIAN BIRT
Tendring DC,http://statistics.data.gov.uk/id/local-authority-district/22UN,Corporate Services,1880 - Office Accommodation Expenses,2304 - Energy Costs - Electricity,03/04/2012,2095091-1,120.75,2100197 - British Gas Trading Ltd,British Gas
Tendring DC,http://statistics.data.gov.uk/id/local-authority-district/22UN,Corporate Services,1880 - Office Accommodation Expenses,2304 - Energy Costs - Electricity,03/04/2012,2095091-10,98.24,2100197 - British Gas Trading Ltd,British Gas
Tendring DC,http://statistics.data.gov.uk/id/local-authority-district/22UN,Corporate Services,1880 - Office Accommodation Expenses,2304 - Energy Costs - Electricity,03/04/2012,2095091-11,928.16,2100197 - British Gas Trading Ltd,British Gas
Tendring DC,http://statistics.data.gov.uk/id/local-authority-district/22UN,Corporate Services,1880 - Office Accommodation Expenses,2304 - Energy Costs - Electricity,03/04/2012,2095091-12,1541.27,2100197 - British Gas Trading Ltd,British Gas
Tendring DC,http://statistics.data.gov.uk/id/local-authority-district/22UN,Corporate Services,1880 - Office Accommodation Expenses,2304 - Energy Costs - Electricity,03/04/2012,2095091-13,-120.56,2100197 - British Gas Trading Ltd,British Gas
Tendring DC,http://statistics.data.gov.uk/id/local-authority-district/22UN,Corporate Services,1880 - Office Accommodation Expenses,2304 - Energy Costs - Electricity,03/04/2012,2095091-2,70.76,2100197 - British Gas Trading Ltd,British Gas
Tendring DC,http://statistics.data.gov.uk/id/local-authority-district/22UN,Corporate Services,1860 - Depots General,2304 - Energy Costs - Electricity,03/04/2012,2095091-3,520.77,2100197 - British Gas Trading Ltd,British Gas
Tendring DC,http://statistics.data.gov.uk/id/local-authority-district/22UN,Corporate Services,1880 - Office Accommodation Expenses,2304 - Energy Costs - Electricity,03/04/2012,2095091-4,55.85,2100197 - British Gas Trading Ltd,British Gas
Tendring DC,http://statistics.data.gov.uk/id/local-authority-district/22UN,Corporate Services,1880 - Office Accommodation Expenses,2304 - Energy Costs - Electricity,03/04/2012,2095091-5,142.52,2100197 - British Gas Trading Ltd,British Gas
Tendring DC,http://statistics.data.gov.uk/id/local-authority-district/22UN,Corporate Services,1860 - Depots General,2304 - Energy Costs - Electricity,03/04/2012,2095091-6,175.31,2100197 - British Gas Trading Ltd,British Gas
Tendring DC,http://statistics.data.gov.uk/id/local-authority-district/22UN,Corporate Services,1880 - Office Accommodation Expenses,2304 - Energy Costs - Electricity,03/04/2012,2095091-7,690.52,2100197 - British Gas Trading Ltd,British Gas
Tendring DC,http://statistics.data.gov.uk/id/local-authority-district/22UN,Corporate Services,1860 - Depots General,2304 - Energy Costs - Electricity,03/04/2012,2095091-8,53.11,2100197 - British Gas Trading Ltd,British Gas
Tendring DC,http://statistics.data.gov.uk/id/local-authority-district/22UN,Corporate Services,1880 - Office Accommodation Expenses,2304 - Energy Costs - Electricity,03/04/2012,2095091-9,1103.41,2100197 - British Gas Trading Ltd,British Gas
Tendring DC,http://statistics.data.gov.uk/id/local-authority-district/22UN,Corporate Services,7000 - CCTV,4718 - Fixed Communication Lines,24/04/2012,1048266-1,77.97,2100168 - British Telecommunications plc,BT BILL-CCTV LINE
Tendring DC,http://statistics.data.gov.uk/id/local-authority-district/22UN,Corporate Services,7716 - Jaywick Strategic Leadership group initiatives,4710 - Telephones - Charges,03/04/2012,2095089-1,141,2100168 - British Telecommunications plc,Internet
Tendring DC,http://statistics.data.gov.uk/id/local-authority-district/22UN,Corporate Services,7747 - Town Centres Funding (Empty Shops),4710 - Telephones - Charges,03/04/2012,2095289-1,63.05,REDACTED PERSONAL DATA,REDACTED PERSONAL DATA
Tendring DC,http://statistics.data.gov.uk/id/local-authority-district/22UN,Corporate Services,1840 - Central Telephone Service,4710 - Telephones - Charges,10/04/2012,2095421-1,182.79,2100168 - British Telecommunications plc,BT Phone Book
Tendring DC,http://statistics.data.gov.uk/id/local-authority-district/22UN,Corporate Services,8150 - Office Cleaning,4080 - Materials & Consumables,03/04/2012,2095167-1,409.22,2101624 - Bunzl,Bunzl
Tendring DC,http://statistics.data.gov.uk/id/local-authority-district/22UN,Corporate Services,8150 - Office Cleaning,4080 - Materials & Consumables,10/04/2012,2095373-1,-13.08,2101624 - Bunzl,Bunzl
Tendring DC,http://statistics.data.gov.uk/id/local-authority-district/22UN,Corporate Services,8150 - Office Cleaning,4080 - Materials & Consumables,10/04/2012,2095380-1,332.49,2101624 - Bunzl,Bunzl
Tendring DC,http://statistics.data.gov.uk/id/local-authority-district/22UN,Corporate Services,8150 - Office Cleaning,4080 - Materials & Consumables,10/04/2012,2095381-1,267.77,2101624 - Bunzl,Bunzl
Tendring DC,http://statistics.data.gov.uk/id/local-authority-district/22UN,Corporate Services,1320 - Print Unit Service Unit,4302 - External Print Unit Expenses,10/04/2012,2095330-1,90,REDACTED PERSONAL DATA,REDACTED PERSONAL DATA
Tendring DC,http://statistics.data.gov.uk/id/local-authority-district/22UN,Corporate Services,1320 - Print Unit Service Unit,4302 - External Print Unit Expenses,24/04/2012,2095647-1,90,REDACTED COMMERCIAL CONFIDENTIALITY,REDACTED COMMERCIAL CONFIDENTIALITY
Tendring DC,http://statistics.data.gov.uk/id/local-authority-district/22UN,Corporate Services,7716 - Jaywick Strategic Leadership group initiatives,4040 - Equipment & Tools,03/04/2012,2095082-1,25.65,2100205 - Chelmsford Safety Supplies,Various
Tendring DC,http://statistics.data.gov.uk/id/local-authority-district/22UN,Corporate Services,8150 - Office Cleaning,4040 - Equipment & Tools,03/04/2012,2095168-1,45,2100205 - Chelmsford Safety Supplies,Chelmsford Safety Supplies
Tendring DC,http://statistics.data.gov.uk/id/local-authority-district/22UN,Corporate Services,6800 - Tendring CAB,4912 - Tendring CAB Grant,24/04/2012,2095773-1,100000,2100247 - Citizens Advice Bureau Tendring,2012-13 Grant Payment
Tendring DC,http://statistics.data.gov.uk/id/local-authority-district/22UN,Corporate Services,"1580 - Benefits, Revenues and Customer Contact SU",4462 - Legal Fees incl. Bailiffs re debt recovery,03/04/2012,2095252-1,2281.36,2100381 - Collect Services Ltd,VAT on fees Collected CT
Tendring DC,http://statistics.data.gov.uk/id/local-authority-district/22UN,Corporate Services,"1580 - Benefits, Revenues and Customer Contact SU",4462 - Legal Fees incl. Bailiffs re debt recovery,03/04/2012,2095252-2,-2281.36,2100381 - Collect Services Ltd,VAT on fees Collected CT
Tendring DC,http://statistics.data.gov.uk/id/local-authority-district/22UN,Corporate Services,"1580 - Benefits, Revenues and Customer Contact SU",4462 - Legal Fees incl. Bailiffs re debt recovery,03/04/2012,2095252-3,112.38,2100381 - Collect Services Ltd,VAT on fees Collected CT
Tendring DC,http://statistics.data.gov.uk/id/local-authority-district/22UN,Corporate Services,"1580 - Benefits, Revenues and Customer Contact SU",4462 - Legal Fees incl. Bailiffs re debt recovery,03/04/2012,2095252-4,-112.38,2100381 - Collect Services Ltd,VAT on fees Collected CT
Tendring DC,http://statistics.data.gov.uk/id/local-authority-district/22UN,Corporate Services,"1580 - Benefits, Revenues and Customer Contact SU",4462 - Legal Fees incl. Bailiffs re debt recovery,03/04/2012,2095252-5,63.5,2100381 - Collect Services Ltd,VAT on fees Collected CT
Tendring DC,http://statistics.data.gov.uk/id/local-authority-district/22UN,Corporate Services,"1580 - Benefits, Revenues and Customer Contact SU",4462 - Legal Fees incl. Bailiffs re debt recovery,03/04/2012,2095252-6,-63.5,2100381 - Collect Services Ltd,VAT on fees Collected CT
Tendring DC,http://statistics.data.gov.uk/id/local-authority-district/22UN,Corporate Services,"1580 - Benefits, Revenues and Customer Contact SU",4462 - Legal Fees incl. Bailiffs re debt recovery,03/04/2012,2095253-1,352.5,2100381 - Collect Services Ltd,VAT on fees collected NNDR
Tendring DC,http://statistics.data.gov.uk/id/local-authority-district/22UN,Corporate Services,"1580 - Benefits, Revenues and Customer Contact SU",4462 - Legal Fees incl. Bailiffs re debt recovery,03/04/2012,2095253-2,-352.5,2100381 - Collect Services Ltd,VAT on fees collected NNDR
Tendring DC,http://statistics.data.gov.uk/id/local-authority-district/22UN,Corporate Services,"1580 - Benefits, Revenues and Customer Contact SU",5189 - External Debt Recovery Commission,03/04/2012,2095254-1,569.72,2100381 - Collect Services Ltd,Commission on Monies recovered
Tendring DC,http://statistics.data.gov.uk/id/local-authority-district/22UN,Corporate Services,7400 - Jaywick Enterprise Centre (Starter Units),2100 - Building Repairs,10/04/2012,1048031-1,76.7,2100314 - Cooper & Brome (Plumbing & Heating) Ltd,RE-SET BOILER
Tendring DC,http://statistics.data.gov.uk/id/local-authority-district/22UN,Corporate Services,1880 - Office Accommodation Expenses,2100 - Building Repairs,10/04/2012,1048032-1,1263.1,2100314 - Cooper & Brome (Plumbing & Heating) Ltd,COOPER + BROME
Tendring DC,http://statistics.data.gov.uk/id/local-authority-district/22UN,Corporate Services,6460 - Career Track,4688 - Career Track Exam Fees,10/04/2012,2095378-1,25,2103095 - Council for Administration,CFA
Tendring DC,http://statistics.data.gov.uk/id/local-authority-district/22UN,Corporate Services,5360 - HRA - Sheltered Units,4710 - Telephones - Charges,24/04/2012,1048265-1,65.97,2106704 - Daisy Communications Ltd,DAISY BILL-MARCH
Tendring DC,http://statistics.data.gov.uk/id/local-authority-district/22UN,Corporate Services,6985 - Big Society,4900 - Grants,10/04/2012,2095466-1,2000,2112120 - Dancing Giraffe,Dancing Giraffe
Tendring DC,http://statistics.data.gov.uk/id/local-authority-district/22UN,Corporate Services,1880 - Office Accommodation Expenses,2100 - Building Repairs,03/04/2012,2095166-1,305.88,2108384 - DC Drains & Plumbing Services,D C Drainage
Tendring DC,http://statistics.data.gov.uk/id/local-authority-district/22UN,Corporate Services,1100 - Corporate Services Manager Service Unit,4400 - Maintenance Under Service Agreements,17/04/2012,1048247-1,23.16,2102826 - Eden Springs UK Ltd,EDEN
Tendring DC,http://statistics.data.gov.uk/id/local-authority-district/22UN,Corporate Services,1880 - Office Accommodation Expenses,2304 - Energy Costs - Electricity,17/04/2012,1048192-1,5064.67,2105146 - EDF Energy 1 Ltd,EDF
Tendring DC,http://statistics.data.gov.uk/id/local-authority-district/22UN,Corporate Services,1880 - Office Accommodation Expenses,2304 - Energy Costs - Electricity,17/04/2012,1048192-2,0.36,2105146 - EDF Energy 1 Ltd,EDF
Tendring DC,http://statistics.data.gov.uk/id/local-authority-district/22UN,Corporate Services,6160 - Princes Theatre,2304 - Energy Costs - Electricity,17/04/2012,1048192-3,562.69,2105146 - EDF Energy 1 Ltd,EDF
Tendring DC,http://statistics.data.gov.uk/id/local-authority-district/22UN,Corporate Services,6460 - Career Track,4688 - Career Track Exam Fees,03/04/2012,2095076-1,89,2100425 - EDI,EDI
Tendring DC,http://statistics.data.gov.uk/id/local-authority-district/22UN,Corporate Services,6460 - Career Track,4688 - Career Track Exam Fees,03/04/2012,2095161-1,44.5,2100425 - EDI,EDI
Tendring DC,http://statistics.data.gov.uk/id/local-authority-district/22UN,Corporate Services,7220 - Election Expenses,4486 - Election Expenses,10/04/2012,2095291-1,2511.64,2107541 - Electoral Reform Services,Absent Vote Signature
Tendring DC,http://statistics.data.gov.uk/id/local-authority-district/22UN,Corporate Services,7220 - Election Expenses,4486 - Election Expenses,10/04/2012,2095291-2,3850.91,2107541 - Electoral Reform Services,Absent Vote Signature
Tendring DC,http://statistics.data.gov.uk/id/local-authority-district/22UN,Corporate Services,7746 - Town Centres & Jaywick Business Support,2304 - Energy Costs - Electricity,17/04/2012,1048243-1,127.59,2107644 - Eon,MARCH USAGE
Tendring DC,http://statistics.data.gov.uk/id/local-authority-district/22UN,Corporate Services,6740 - Careline,2304 - Energy Costs - Electricity,24/04/2012,1048264-1,33.24,2107644 - Eon,ELECTRIC BILL
Tendring DC,http://statistics.data.gov.uk/id/local-authority-district/22UN,Corporate Services,7025 - CDRP Support,4900 - Grants,24/04/2012,2095716-1,269.55,2108768 - Essex County Fire & Rescue Service,Fire Proof Bags
Tendring DC,http://statistics.data.gov.uk/id/local-authority-district/22UN,Corporate Services,6480 - Emergency Planning,4597 - Hired Services - Payments to Contractors,17/04/2012,1048189-1,854.06,2100459 - Essex Fire Authority,ESSEX COUNTY FIRE & RESCUE
Tendring DC,http://statistics.data.gov.uk/id/local-authority-district/22UN,Corporate Services,7460 - Economic Promotion,5164 - Project Expenses,03/04/2012,2095152-1,760,2106090 - Experian Ltd,Goad Plans
Tendring DC,http://statistics.data.gov.uk/id/local-authority-district/22UN,Corporate Services,7400 - Jaywick Enterprise Centre (Starter Units),2704 - Building Cleaning,17/04/2012,1048245-1,217,2110579 - Fields Total Cleaning,MARCH CLEAN
Tendring DC,http://statistics.data.gov.uk/id/local-authority-district/22UN,Corporate Services,C276 - Clacton Regeneration,C200 - Main Contractor,10/04/2012,2095413-1,2025,2112110 - Furness Partnership,Structural Advice
Tendring DC,http://statistics.data.gov.uk/id/local-authority-district/22UN,Corporate Services,7400 - Jaywick Enterprise Centre (Starter Units),4632 - Security,17/04/2012,1048244-1,60,2100546 - GCS Alarms,ANNUAL MAINTENANCE
Tendring DC,http://statistics.data.gov.uk/id/local-authority-district/22UN,Corporate Services,7400 - Jaywick Enterprise Centre (Starter Units),4632 - Security,24/04/2012,1048255-1,15,2100546 - GCS Alarms,RESET OF DOOR KEY PAD
Tendring DC,http://statistics.data.gov.uk/id/local-authority-district/22UN,Corporate Services,1880 - Office Accommodation Expenses,4632 - Security,24/04/2012,1048304-1,56,2100546 - GCS Alarms,GCS
Tendring DC,http://statistics.data.gov.uk/id/local-authority-district/22UN,Corporate Services,1860 - Depots General,2100 - Building Repairs,03/04/2012,2095162-1,986.5,2100546 - GCS Alarms,GCS Alarms
Tendring DC,http://statistics.data.gov.uk/id/local-authority-district/22UN,Corporate Services,1880 - Office Accommodation Expenses,4632 - Security,10/04/2012,2095422-1,111.4,2100546 - GCS Alarms,GCS
Tendring DC,http://statistics.data.gov.uk/id/local-authority-district/22UN,Corporate Services,1880 - Office Accommodation Expenses,4632 - Security,10/04/2012,2095423-1,150,2100546 - GCS Alarms,GCS
Tendring DC,http://statistics.data.gov.uk/id/local-authority-district/22UN,Corporate Services,1880 - Office Accommodation Expenses,4632 - Security,10/04/2012,2095424-1,80,2100546 - GCS Alarms,GCS
Tendring DC,http://statistics.data.gov.uk/id/local-authority-district/22UN,Corporate Services,1880 - Office Accommodation Expenses,4446 - Bulk Bin Collection,24/04/2012,2095778-1,363.48,2111348 - Green Recycling Ltd,Green Recycling
Tendring DC,http://statistics.data.gov.uk/id/local-authority-district/22UN,Corporate Services,1880 - Office Accommodation Expenses,4446 - Bulk Bin Collection,24/04/2012,2095780-1,272.61,2111348 - Green Recycling Ltd,Green Recycling
Tendring DC,http://statistics.data.gov.uk/id/local-authority-district/22UN,Corporate Services,1880 - Office Accommodation Expenses,4446 - Bulk Bin Collection,24/04/2012,2095802-1,181.74,2111348 - Green Recycling Ltd,Green Recycling
Tendring DC,http://statistics.data.gov.uk/id/local-authority-district/22UN,Corporate Services,"1580 - Benefits, Revenues and Customer Contact SU",4810 - Conference Bookings,10/04/2012,2095377-1,199,2108862 - Hbinfo Ltd,Conference
Tendring DC,http://statistics.data.gov.uk/id/local-authority-district/22UN,Corporate Services,"1580 - Benefits, Revenues and Customer Contact SU",5160 - Advertising,24/04/2012,2095807-1,475,2104166 - Heartbeat Publications Ltd,Publications
Tendring DC,http://statistics.data.gov.uk/id/local-authority-district/22UN,Corporate Services,1880 - Office Accommodation Expenses,4666 - Hygiene Services,03/04/2012,2095156-1,22.22,2104976 - Initial Washroom Solutions,Initial
Tendring DC,http://statistics.data.gov.uk/id/local-authority-district/22UN,Corporate Services,1860 - Depots General,4666 - Hygiene Services,03/04/2012,2095156-2,11.11,2104976 - Initial Washroom Solutions,Initial
Tendring DC,http://statistics.data.gov.uk/id/local-authority-district/22UN,Corporate Services,1880 - Office Accommodation Expenses,4666 - Hygiene Services,03/04/2012,2095156-3,22.22,2104976 - Initial Washroom Solutions,Initial
Tendring DC,http://statistics.data.gov.uk/id/local-authority-district/22UN,Corporate Services,1880 - Office Accommodation Expenses,4666 - Hygiene Services,03/04/2012,2095156-4,11.11,2104976 - Initial Washroom Solutions,Initial
Tendring DC,http://statistics.data.gov.uk/id/local-authority-district/22UN,Corporate Services,1880 - Office Accommodation Expenses,4666 - Hygiene Services,03/04/2012,2095156-5,93.13,2104976 - Initial Washroom Solutions,Initial
Tendring DC,http://statistics.data.gov.uk/id/local-authority-district/22UN,Corporate Services,1880 - Office Accommodation Expenses,4666 - Hygiene Services,03/04/2012,2095156-6,5.55,2104976 - Initial Washroom Solutions,Initial
Tendring DC,http://statistics.data.gov.uk/id/local-authority-district/22UN,Corporate Services,4820 - Public Conveniences,4080 - Materials & Consumables,03/04/2012,2095156-7,33.33,2104976 - Initial Washroom Solutions,Initial
Tendring DC,http://statistics.data.gov.uk/id/local-authority-district/22UN,Corporate Services,1880 - Office Accommodation Expenses,4666 - Hygiene Services,03/04/2012,2095156-8,11.11,2104976 - Initial Washroom Solutions,Initial
Tendring DC,http://statistics.data.gov.uk/id/local-authority-district/22UN,Corporate Services,7400 - Jaywick Enterprise Centre (Starter Units),2704 - Building Cleaning,03/04/2012,2095219-1,-0.27,2104976 - Initial Washroom Solutions,Credit Note
Tendring DC,http://statistics.data.gov.uk/id/local-authority-district/22UN,Corporate Services,7400 - Jaywick Enterprise Centre (Starter Units),2704 - Building Cleaning,03/04/2012,2095251-1,5.55,2104976 - Initial Washroom Solutions,Mar/Apr
Tendring DC,http://statistics.data.gov.uk/id/local-authority-district/22UN,Corporate Services,1100 - Corporate Services Manager Service Unit,4300 - Printing & Stationery,24/04/2012,2095718-1,28.17,2100782 - Insight Direct (uk) Limited,Insight - Keyboard
Tendring DC,http://statistics.data.gov.uk/id/local-authority-district/22UN,Corporate Services,1880 - Office Accommodation Expenses,4448 - Confidential Waste,17/04/2012,1048190-1,164.5,2110936 - IPPlus (UK) Ltd,ANCORA
Tendring DC,http://statistics.data.gov.uk/id/local-authority-district/22UN,Corporate Services,1000 - Community Services Service Unit,4448 - Confidential Waste,24/04/2012,1048260-1,4.7,2110936 - IPPlus (UK) Ltd,SHREDDING COLLECTED
Tendring DC,http://statistics.data.gov.uk/id/local-authority-district/22UN,Corporate Services,5360 - HRA - Sheltered Units,4601 - Hired services - Cleaning,24/04/2012,1048258-1,229.5,2100851 - KO-SHEEN Contract Cleaning Ltd,CLEANING @ GROOM & VYNTONER
Tendring DC,http://statistics.data.gov.uk/id/local-authority-district/22UN,Corporate Services,5360 - HRA - Sheltered Units,4601 - Hired services - Cleaning,24/04/2012,1048259-1,357,2100851 - KO-SHEEN Contract Cleaning Ltd,CLEANING HONEYCROFT
Tendring DC,http://statistics.data.gov.uk/id/local-authority-district/22UN,Corporate Services,5360 - HRA - Sheltered Units,4601 - Hired services - Cleaning,10/04/2012,2095399-1,178.5,2100851 - KO-SHEEN Contract Cleaning Ltd,"Cover Cleaning @ Mead, Greenfields & Groom"
Tendring DC,http://statistics.data.gov.uk/id/local-authority-district/22UN,Corporate Services,1565 - Careline / CCTV Service Unit,4300 - Printing & Stationery,24/04/2012,1048263-1,28.43,2110099 - Lyreco UK Ltd,STATIONERY-APRIL 12
Tendring DC,http://statistics.data.gov.uk/id/local-authority-district/22UN,Corporate Services,6740 - Careline,4300 - Printing & Stationery,24/04/2012,1048263-2,8.64,2110099 - Lyreco UK Ltd,STATIONERY-APRIL 12
Tendring DC,http://statistics.data.gov.uk/id/local-authority-district/22UN,Corporate Services,5360 - HRA - Sheltered Units,4300 - Printing & Stationery,24/04/2012,1048263-3,18.95,2110099 - Lyreco UK Ltd,STATIONERY-APRIL 12
Tendring DC,http://statistics.data.gov.uk/id/local-authority-district/22UN,Corporate Services,1100 - Corporate Services Manager Service Unit,4300 - Printing & Stationery,24/04/2012,1048317-1,71.23,2110099 - Lyreco UK Ltd,MISC STATIONERY
Tendring DC,http://statistics.data.gov.uk/id/local-authority-district/22UN,Corporate Services,6580 - Member Support Cost,4300 - Printing & Stationery,10/04/2012,2095294-1,10.19,2110099 - Lyreco UK Ltd,Misc Stationery
Tendring DC,http://statistics.data.gov.uk/id/local-authority-district/22UN,Corporate Services,1100 - Corporate Services Manager Service Unit,4300 - Printing & Stationery,10/04/2012,2095294-2,47,2110099 - Lyreco UK Ltd,Misc Stationery
Tendring DC,http://statistics.data.gov.uk/id/local-authority-district/22UN,Corporate Services,6920 - Youth Initiatives,5161 - Advertising and Promotion,10/04/2012,2095295-1,32.77,2110099 - Lyreco UK Ltd,Refreshments
Tendring DC,http://statistics.data.gov.uk/id/local-authority-district/22UN,Corporate Services,6920 - Youth Initiatives,5161 - Advertising and Promotion,10/04/2012,2095295-2,59.98,2110099 - Lyreco UK Ltd,Refreshments
Tendring DC,http://statistics.data.gov.uk/id/local-authority-district/22UN,Corporate Services,1100 - Corporate Services Manager Service Unit,4300 - Printing & Stationery,10/04/2012,2095295-3,9.7,2110099 - Lyreco UK Ltd,Refreshments
Tendring DC,http://statistics.data.gov.uk/id/local-authority-district/22UN,Corporate Services,1100 - Corporate Services Manager Service Unit,4300 - Printing & Stationery,10/04/2012,2095296-1,145.2,2110099 - Lyreco UK Ltd,Envelopes & Wallets
Tendring DC,http://statistics.data.gov.uk/id/local-authority-district/22UN,Corporate Services,6920 - Youth Initiatives,4800 - Hospitality,10/04/2012,2095411-1,143.96,2110099 - Lyreco UK Ltd,Pump Pots
Tendring DC,http://statistics.data.gov.uk/id/local-authority-district/22UN,Corporate Services,6920 - Youth Initiatives,5500 - Miscellaneous Expenses,24/04/2012,2095721-1,19.36,2110099 - Lyreco UK Ltd,"Tea, Coffee & Cups"
Tendring DC,http://statistics.data.gov.uk/id/local-authority-district/22UN,Corporate Services,6920 - Youth Initiatives,5500 - Miscellaneous Expenses,24/04/2012,2095721-2,8.39,2110099 - Lyreco UK Ltd,"Tea, Coffee & Cups"
Tendring DC,http://statistics.data.gov.uk/id/local-authority-district/22UN,Corporate Services,1880 - Office Accommodation Expenses,2100 - Building Repairs,10/04/2012,2095350-1,16.25,2102911 - M Nicolaou,The Clean Inn
Tendring DC,http://statistics.data.gov.uk/id/local-authority-district/22UN,Corporate Services,1880 - Office Accommodation Expenses,2100 - Building Repairs,10/04/2012,2095350-2,86.5,2102911 - M Nicolaou,The Clean Inn
Tendring DC,http://statistics.data.gov.uk/id/local-authority-district/22UN,Corporate Services,1880 - Office Accommodation Expenses,2100 - Building Repairs,10/04/2012,2095350-3,37.25,2102911 - M Nicolaou,The Clean Inn
Tendring DC,http://statistics.data.gov.uk/id/local-authority-district/22UN,Corporate Services,1880 - Office Accommodation Expenses,2100 - Building Repairs,03/04/2012,2095163-1,69,2100967 - N Rudelhoff,N R Electrical
Tendring DC,http://statistics.data.gov.uk/id/local-authority-district/22UN,Corporate Services,1880 - Office Accommodation Expenses,2100 - Building Repairs,03/04/2012,2095163-2,70,2100967 - N Rudelhoff,N R Electrical
Tendring DC,http://statistics.data.gov.uk/id/local-authority-district/22UN,Corporate Services,1880 - Office Accommodation Expenses,2100 - Building Repairs,03/04/2012,2095163-3,153,2100967 - N Rudelhoff,N R Electrical
Tendring DC,http://statistics.data.gov.uk/id/local-authority-district/22UN,Corporate Services,1880 - Office Accommodation Expenses,2100 - Building Repairs,03/04/2012,2095163-4,79,2100967 - N Rudelhoff,N R Electrical
Tendring DC,http://statistics.data.gov.uk/id/local-authority-district/22UN,Corporate Services,1880 - Office Accommodation Expenses,2100 - Building Repairs,03/04/2012,2095163-5,141,2100967 - N Rudelhoff,N R Electrical
Tendring DC,http://statistics.data.gov.uk/id/local-authority-district/22UN,Corporate Services,1880 - Office Accommodation Expenses,2100 - Building Repairs,03/04/2012,2095164-1,302,2100967 - N Rudelhoff,N R Electrical
Tendring DC,http://statistics.data.gov.uk/id/local-authority-district/22UN,Corporate Services,1880 - Office Accommodation Expenses,2100 - Building Repairs,03/04/2012,2095164-2,23,2100967 - N Rudelhoff,N R Electrical
Tendring DC,http://statistics.data.gov.uk/id/local-authority-district/22UN,Corporate Services,1880 - Office Accommodation Expenses,2100 - Building Repairs,03/04/2012,2095164-3,102,2100967 - N Rudelhoff,N R Electrical
Tendring DC,http://statistics.data.gov.uk/id/local-authority-district/22UN,Corporate Services,1880 - Office Accommodation Expenses,2100 - Building Repairs,03/04/2012,2095165-1,175,2100967 - N Rudelhoff,N R Electrical
Tendring DC,http://statistics.data.gov.uk/id/local-authority-district/22UN,Corporate Services,1880 - Office Accommodation Expenses,2100 - Building Repairs,03/04/2012,2095165-2,38,2100967 - N Rudelhoff,N R Electrical
Tendring DC,http://statistics.data.gov.uk/id/local-authority-district/22UN,Corporate Services,1880 - Office Accommodation Expenses,2100 - Building Repairs,03/04/2012,2095165-3,46,2100967 - N Rudelhoff,N R Electrical
Tendring DC,http://statistics.data.gov.uk/id/local-authority-district/22UN,Corporate Services,1880 - Office Accommodation Expenses,2100 - Building Repairs,03/04/2012,2095165-4,275,2100967 - N Rudelhoff,N R Electrical
Tendring DC,http://statistics.data.gov.uk/id/local-authority-district/22UN,Corporate Services,7746 - Town Centres & Jaywick Business Support,5500 - Miscellaneous Expenses,24/04/2012,2095777-1,67.78,2111959 - National Car Parks Ltd,Season Ticket
Tendring DC,http://statistics.data.gov.uk/id/local-authority-district/22UN,Corporate Services,1320 - Print Unit Service Unit,4302 - External Print Unit Expenses,10/04/2012,2095328-1,135,REDACTED PERSONAL DATA,REDACTED PERSONAL DATA
Tendring DC,http://statistics.data.gov.uk/id/local-authority-district/22UN,Corporate Services,6740 - Careline,5160 - Advertising,24/04/2012,1048262-1,283.2,2100989 - Newsquest (London) Ltd,TENDRING CITIZENS GUIDE
Tendring DC,http://statistics.data.gov.uk/id/local-authority-district/22UN,Corporate Services,6460 - Career Track,4688 - Career Track Exam Fees,10/04/2012,2095379-1,76.4,2101071 - OCR,OCR
Tendring DC,http://statistics.data.gov.uk/id/local-authority-district/22UN,Corporate Services,6460 - Career Track,4688 - Career Track Exam Fees,10/04/2012,2095415-1,36,2101071 - OCR,OCR
Tendring DC,http://statistics.data.gov.uk/id/local-authority-district/22UN,Corporate Services,6460 - Career Track,4688 - Career Track Exam Fees,10/04/2012,2095416-1,36,2101071 - OCR,OCR
Tendring DC,http://statistics.data.gov.uk/id/local-authority-district/22UN,Corporate Services,6460 - Career Track,4688 - Career Track Exam Fees,10/04/2012,2095417-1,76.4,2101071 - OCR,OCR
Tendring DC,http://statistics.data.gov.uk/id/local-authority-district/22UN,Corporate Services,1320 - Print Unit Service Unit,4302 - External Print Unit Expenses,10/04/2012,2095329-1,135,REDACTED PERSONAL DATA,REDACTED PERSONAL DATA
Tendring DC,http://statistics.data.gov.uk/id/local-authority-district/22UN,Corporate Services,1880 - Office Accommodation Expenses,2300 - Energy Costs - Fuel Oil,17/04/2012,1048191-1,1044.95,2107113 - Pace Fuelcare Ltd,PACE FUELCARE
Tendring DC,http://statistics.data.gov.uk/id/local-authority-district/22UN,Corporate Services,7400 - Jaywick Enterprise Centre (Starter Units),2300 - Energy Costs - Fuel Oil,03/04/2012,2095154-1,872.27,2107113 - Pace Fuelcare Ltd,Heating Oil
Tendring DC,http://statistics.data.gov.uk/id/local-authority-district/22UN,Corporate Services,1661 - Other Apportionable Overheads - Corporate Support,4700 - Postage,20/04/2012,2095761-1,834,2104222 - Pitney Bowes,Franking machine contract
Tendring DC,http://statistics.data.gov.uk/id/local-authority-district/22UN,Corporate Services,1210 - Facilities Management Service Unit,4400 - Maintenance Under Service Agreements,03/04/2012,2095160-1,702.18,2101090 - Ricoh UK Ltd,Ricoh
Tendring DC,http://statistics.data.gov.uk/id/local-authority-district/22UN,Corporate Services,6580 - Member Support Cost,4350 - Photocopier Hire,10/04/2012,2095384-1,208.22,2101090 - Ricoh UK Ltd,Photocopier
Tendring DC,http://statistics.data.gov.uk/id/local-authority-district/22UN,Corporate Services,7030 - Crime and Disorder - Police Grant,4900 - Grants,17/04/2012,1048241-1,85.26,2101139 - Royal Mail,ROYAL MAIL RESPONSE
Tendring DC,http://statistics.data.gov.uk/id/local-authority-district/22UN,Corporate Services,6920 - Youth Initiatives,5161 - Advertising and Promotion,17/04/2012,1048242-1,170,2101139 - Royal Mail,PO BOX
Tendring DC,http://statistics.data.gov.uk/id/local-authority-district/22UN,Corporate Services,C276 - Clacton Regeneration,C200 - Main Contractor,10/04/2012,2095397-1,4000,2111261 - Russ Drage Architects Ltd,1st Instalment
Tendring DC,http://statistics.data.gov.uk/id/local-authority-district/22UN,Corporate Services,5920 - Open Spaces,5464 - Cliff Top Hotel and Pavilion - Haven Gateway funded,24/04/2012,2095703-1,720,2111261 - Russ Drage Architects Ltd,Cliff Top Appraisal
Tendring DC,http://statistics.data.gov.uk/id/local-authority-district/22UN,Corporate Services,1880 - Office Accommodation Expenses,2100 - Building Repairs,10/04/2012,1048016-1,655,2101280 - S Parkin,PARKIN CONSTRUCTION
Tendring DC,http://statistics.data.gov.uk/id/local-authority-district/22UN,Corporate Services,1880 - Office Accommodation Expenses,2100 - Building Repairs,10/04/2012,1048016-2,182,2101280 - S Parkin,PARKIN CONSTRUCTION
Tendring DC,http://statistics.data.gov.uk/id/local-authority-district/22UN,Corporate Services,1880 - Office Accommodation Expenses,2100 - Building Repairs,17/04/2012,1048194-1,2400,2101280 - S Parkin,PARKIN CONSTRUCTION
Tendring DC,http://statistics.data.gov.uk/id/local-authority-district/22UN,Corporate Services,1880 - Office Accommodation Expenses,2100 - Building Repairs,17/04/2012,1048194-2,400,2101280 - S Parkin,PARKIN CONSTRUCTION
Tendring DC,http://statistics.data.gov.uk/id/local-authority-district/22UN,Corporate Services,7220 - Election Expenses,4486 - Election Expenses,24/04/2012,2095717-1,45.45,2101284 - Shaw & Sons Ltd,Shaw - Elections
Tendring DC,http://statistics.data.gov.uk/id/local-authority-district/22UN,Corporate Services,5360 - HRA - Sheltered Units,4710 - Telephones - Charges,24/04/2012,1048261-1,29.75,2108907 - Southern Communications Ltd,PHONE BILLS-MARCH
Tendring DC,http://statistics.data.gov.uk/id/local-authority-district/22UN,Corporate Services,5360 - HRA - Sheltered Units,4710 - Telephones - Charges,24/04/2012,1048261-10,25.88,2108907 - Southern Communications Ltd,PHONE BILLS-MARCH
Tendring DC,http://statistics.data.gov.uk/id/local-authority-district/22UN,Corporate Services,6740 - Careline,4710 - Telephones - Charges,24/04/2012,1048261-11,265.83,2108907 - Southern Communications Ltd,PHONE BILLS-MARCH
Tendring DC,http://statistics.data.gov.uk/id/local-authority-district/22UN,Corporate Services,7000 - CCTV,4718 - Fixed Communication Lines,24/04/2012,1048261-12,63.9,2108907 - Southern Communications Ltd,PHONE BILLS-MARCH
Tendring DC,http://statistics.data.gov.uk/id/local-authority-district/22UN,Corporate Services,5360 - HRA - Sheltered Units,4710 - Telephones - Charges,24/04/2012,1048261-2,38.81,2108907 - Southern Communications Ltd,PHONE BILLS-MARCH
Tendring DC,http://statistics.data.gov.uk/id/local-authority-district/22UN,Corporate Services,5360 - HRA - Sheltered Units,4710 - Telephones - Charges,24/04/2012,1048261-3,31.34,2108907 - Southern Communications Ltd,PHONE BILLS-MARCH
Tendring DC,http://statistics.data.gov.uk/id/local-authority-district/22UN,Corporate Services,5360 - HRA - Sheltered Units,4710 - Telephones - Charges,24/04/2012,1048261-4,48.14,2108907 - Southern Communications Ltd,PHONE BILLS-MARCH
Tendring DC,http://statistics.data.gov.uk/id/local-authority-district/22UN,Corporate Services,5360 - HRA - Sheltered Units,4710 - Telephones - Charges,24/04/2012,1048261-5,48.05,2108907 - Southern Communications Ltd,PHONE BILLS-MARCH
Tendring DC,http://statistics.data.gov.uk/id/local-authority-district/22UN,Corporate Services,5360 - HRA - Sheltered Units,4710 - Telephones - Charges,24/04/2012,1048261-6,3.67,2108907 - Southern Communications Ltd,PHONE BILLS-MARCH
Tendring DC,http://statistics.data.gov.uk/id/local-authority-district/22UN,Corporate Services,5360 - HRA - Sheltered Units,4710 - Telephones - Charges,24/04/2012,1048261-7,32.17,2108907 - Southern Communications Ltd,PHONE BILLS-MARCH
Tendring DC,http://statistics.data.gov.uk/id/local-authority-district/22UN,Corporate Services,5360 - HRA - Sheltered Units,4710 - Telephones - Charges,24/04/2012,1048261-8,43.16,2108907 - Southern Communications Ltd,PHONE BILLS-MARCH
Tendring DC,http://statistics.data.gov.uk/id/local-authority-district/22UN,Corporate Services,5360 - HRA - Sheltered Units,4710 - Telephones - Charges,24/04/2012,1048261-9,57.65,2108907 - Southern Communications Ltd,PHONE BILLS-MARCH
Tendring DC,http://statistics.data.gov.uk/id/local-authority-district/22UN,Corporate Services,1880 - Office Accommodation Expenses,2100 - Building Repairs,10/04/2012,1048033-1,11.08,2101370 - Stannah Lift Services Ltd,STANNAH
Tendring DC,http://statistics.data.gov.uk/id/local-authority-district/22UN,Corporate Services,1880 - Office Accommodation Expenses,2100 - Building Repairs,10/04/2012,1048033-2,11.09,2101370 - Stannah Lift Services Ltd,STANNAH
Tendring DC,http://statistics.data.gov.uk/id/local-authority-district/22UN,Corporate Services,9900 - General Fund Balance Sheet,B382 - Rechargeable Works - Other,03/04/2012,2095204-1,7.5,2101314 - T V Licensing,TV Licence - Greenfields
Tendring DC,http://statistics.data.gov.uk/id/local-authority-district/22UN,Corporate Services,9900 - General Fund Balance Sheet,B382 - Rechargeable Works - Other,24/04/2012,2095617-1,75,2101314 - T V Licensing,TV Licence - Groom House
Tendring DC,http://statistics.data.gov.uk/id/local-authority-district/22UN,Corporate Services,9900 - General Fund Balance Sheet,B382 - Rechargeable Works - Other,24/04/2012,2095618-1,45,2101314 - T V Licensing,TV Licence - Crooked Elms
Tendring DC,http://statistics.data.gov.uk/id/local-authority-district/22UN,Corporate Services,9900 - General Fund Balance Sheet,B382 - Rechargeable Works - Other,24/04/2012,2095619-1,7.5,2101314 - T V Licensing,TV Licence - Greenfields
Tendring DC,http://statistics.data.gov.uk/id/local-authority-district/22UN,Corporate Services,6740 - Careline,4880 - Subscriptions Paid,24/04/2012,1048257-1,1080,2102592 - Telecare Services Association,TSA MEMBERSHIP
Tendring DC,http://statistics.data.gov.uk/id/local-authority-district/22UN,Corporate Services,"1580 - Benefits, Revenues and Customer Contact SU",1700 - Training - Courses,10/04/2012,2095376-1,310,2101471 - The Institute of Revenues Rating & Valuation,Meetings
Tendring DC,http://statistics.data.gov.uk/id/local-authority-district/22UN,Corporate Services,7040 - Civic Ceremonial Expenses,4100 - Contract Catering,03/04/2012,2095205-1,90,2112038 - The Mayors Charity Fund,Colchester Mayors Technicolour Banquet
Tendring DC,http://statistics.data.gov.uk/id/local-authority-district/22UN,Corporate Services,6460 - Career Track,1700 - Training - Courses,03/04/2012,2095169-1,180,2111853 - The Turner Centre,The Turner Centre
Tendring DC,http://statistics.data.gov.uk/id/local-authority-district/22UN,Corporate Services,1880 - Office Accommodation Expenses,4632 - Security,03/04/2012,2095053-1,-106.4,2101437 - Tower Security (Tendring) Ltd,Tower Security
Tendring DC,http://statistics.data.gov.uk/id/local-authority-district/22UN,Corporate Services,1880 - Office Accommodation Expenses,4632 - Security,03/04/2012,2095054-1,-106.4,2101437 - Tower Security (Tendring) Ltd,Tower Security
Tendring DC,http://statistics.data.gov.uk/id/local-authority-district/22UN,Corporate Services,1880 - Office Accommodation Expenses,4632 - Security,03/04/2012,2095170-1,12,2101437 - Tower Security (Tendring) Ltd,Tower Security
Tendring DC,http://statistics.data.gov.uk/id/local-authority-district/22UN,Corporate Services,1880 - Office Accommodation Expenses,4632 - Security,03/04/2012,2095171-1,192,2101437 - Tower Security (Tendring) Ltd,Tower Security
Tendring DC,http://statistics.data.gov.uk/id/local-authority-district/22UN,Corporate Services,1880 - Office Accommodation Expenses,4632 - Security,10/04/2012,2095419-1,968,2101437 - Tower Security (Tendring) Ltd,Tower Security
Tendring DC,http://statistics.data.gov.uk/id/local-authority-district/22UN,Corporate Services,1860 - Depots General,4632 - Security,10/04/2012,2095420-1,60,2101437 - Tower Security (Tendring) Ltd,Tower Security
Tendring DC,http://statistics.data.gov.uk/id/local-authority-district/22UN,Corporate Services,1880 - Office Accommodation Expenses,4632 - Security,10/04/2012,2095420-2,20,2101437 - Tower Security (Tendring) Ltd,Tower Security
Tendring DC,http://statistics.data.gov.uk/id/local-authority-district/22UN,Corporate Services,1880 - Office Accommodation Expenses,4632 - Security,10/04/2012,2095420-3,40,2101437 - Tower Security (Tendring) Ltd,Tower Security
Tendring DC,http://statistics.data.gov.uk/id/local-authority-district/22UN,Corporate Services,1880 - Office Accommodation Expenses,4632 - Security,24/04/2012,2095801-1,40,2101437 - Tower Security (Tendring) Ltd,Tower Security
Tendring DC,http://statistics.data.gov.uk/id/local-authority-district/22UN,Corporate Services,1880 - Office Accommodation Expenses,4632 - Security,24/04/2012,2095801-2,20,2101437 - Tower Security (Tendring) Ltd,Tower Security
Tendring DC,http://statistics.data.gov.uk/id/local-authority-district/22UN,Corporate Services,1880 - Office Accommodation Expenses,4632 - Security,24/04/2012,2095801-3,20,2101437 - Tower Security (Tendring) Ltd,Tower Security
Tendring DC,http://statistics.data.gov.uk/id/local-authority-district/22UN,Corporate Services,1880 - Office Accommodation Expenses,2100 - Building Repairs,10/04/2012,2095337-1,107.47,REDACTED PERSONAL DATA,REDACTED PERSONAL DATA
Tendring DC,http://statistics.data.gov.uk/id/local-authority-district/22UN,Corporate Services,5360 - HRA - Sheltered Units,4040 - Equipment & Tools,24/04/2012,1048329-1,35,2101419 - Tunstall Healthcare (UK) Ltd,BATTERYS SMOKE DETECTOR REPLACED
Tendring DC,http://statistics.data.gov.uk/id/local-authority-district/22UN,Corporate Services,1880 - Office Accommodation Expenses,2100 - Building Repairs,10/04/2012,2095425-1,210,2111714 - Universal System Controls,USC
Tendring DC,http://statistics.data.gov.uk/id/local-authority-district/22UN,Corporate Services,1880 - Office Accommodation Expenses,4446 - Bulk Bin Collection,24/04/2012,2095696-1,54.49,2101092 - Veolia ES (UK) Limited,Veolia Waste - Clay Hall
Tendring DC,http://statistics.data.gov.uk/id/local-authority-district/22UN,Corporate Services,1880 - Office Accommodation Expenses,4446 - Bulk Bin Collection,24/04/2012,2095697-1,74.66,2101092 - Veolia ES (UK) Limited,Veolia Waste - Westleigh
Tendring DC,http://statistics.data.gov.uk/id/local-authority-district/22UN,Corporate Services,1880 - Office Accommodation Expenses,4446 - Bulk Bin Collection,24/04/2012,2095698-1,229.92,2101092 - Veolia ES (UK) Limited,Veolia Waste - Ctax
Tendring DC,http://statistics.data.gov.uk/id/local-authority-district/22UN,Corporate Services,1860 - Depots General,4446 - Bulk Bin Collection,24/04/2012,2095699-1,88.13,2101092 - Veolia ES (UK) Limited,Veolia Waste - N Bourne
Tendring DC,http://statistics.data.gov.uk/id/local-authority-district/22UN,Corporate Services,1880 - Office Accommodation Expenses,4446 - Bulk Bin Collection,24/04/2012,2095700-1,253.69,2101092 - Veolia ES (UK) Limited,Veolia Waste - Weeley
Tendring DC,http://statistics.data.gov.uk/id/local-authority-district/22UN,Corporate Services,1880 - Office Accommodation Expenses,4446 - Bulk Bin Collection,24/04/2012,2095701-1,554.59,2101092 - Veolia ES (UK) Limited,Veolia Waste - Town Hall
Tendring DC,http://statistics.data.gov.uk/id/local-authority-district/22UN,Corporate Services,7400 - Jaywick Enterprise Centre (Starter Units),4446 - Bulk Bin Collection,24/04/2012,2095702-1,90.07,2101092 - Veolia ES (UK) Limited,March Collection
Tendring DC,http://statistics.data.gov.uk/id/local-authority-district/22UN,Corporate Services,7400 - Jaywick Enterprise Centre (Starter Units),2500 - Water Services - Metered,24/04/2012,1048256-1,173.74,2101318 - Veolia Water East Ltd,JEC WATER
Tendring DC,http://statistics.data.gov.uk/id/local-authority-district/22UN,Corporate Services,1880 - Office Accommodation Expenses,2500 - Water Services - Metered,24/04/2012,2095692-1,1680.12,2101318 - Veolia Water East Ltd,Veolia Water - Town Hall
Tendring DC,http://statistics.data.gov.uk/id/local-authority-district/22UN,Corporate Services,1880 - Office Accommodation Expenses,2520 - Sewerage & Environmental Charges,24/04/2012,2095692-2,1513.87,2101318 - Veolia Water East Ltd,Veolia Water - Town Hall
Tendring DC,http://statistics.data.gov.uk/id/local-authority-district/22UN,Corporate Services,1880 - Office Accommodation Expenses,2500 - Water Services - Metered,24/04/2012,2095693-1,26.98,2101318 - Veolia Water East Ltd,Veolia Water - P Unit
Tendring DC,http://statistics.data.gov.uk/id/local-authority-district/22UN,Corporate Services,1880 - Office Accommodation Expenses,2520 - Sewerage & Environmental Charges,24/04/2012,2095693-2,75.05,2101318 - Veolia Water East Ltd,Veolia Water - P Unit
Tendring DC,http://statistics.data.gov.uk/id/local-authority-district/22UN,Corporate Services,1880 - Office Accommodation Expenses,2500 - Water Services - Metered,24/04/2012,2095695-1,395.51,2101318 - Veolia Water East Ltd,Veolia Water - Ctax
Tendring DC,http://statistics.data.gov.uk/id/local-authority-district/22UN,Corporate Services,1880 - Office Accommodation Expenses,2520 - Sewerage & Environmental Charges,24/04/2012,2095695-2,370.28,2101318 - Veolia Water East Ltd,Veolia Water - Ctax
Tendring DC,http://statistics.data.gov.uk/id/local-authority-district/22UN,Corporate Services,6980 - Community Special Projects,5500 - Miscellaneous Expenses,10/04/2012,2095447-1,46,2100887 - Weston's Taxis,Taxi to FWCN Workshop
Tendring DC,http://statistics.data.gov.uk/id/local-authority-district/22UN,Corporate Services,1040 - Regeneration Projects Service Unit,4300 - Printing & Stationery,17/04/2012,1048246-1,125.2,2107546 - XMA Limited,TONER
Tendring DC,http://statistics.data.gov.uk/id/local-authority-district/22UN,Corporate Services,1100 - Corporate Services Manager Service Unit,4300 - Printing & Stationery,10/04/2012,2095297-1,132.57,2107546 - XMA Limited,Ink Cartridges
Tendring DC,http://statistics.data.gov.uk/id/local-authority-district/22UN,Corporate Services,1560 - Cashiers Service Unit,4300 - Printing & Stationery,24/04/2012,2095799-1,62,2107546 - XMA Limited,Cartridges
Tendring DC,http://statistics.data.gov.uk/id/local-authority-district/22UN,Corporate Services,7240 - Electoral Registration Expenses,4400 - Maintenance Under Service Agreements,10/04/2012,2095298-1,9206.47,2101547 - Xpress Software Solutions Ltd,Xpress Annual Fee
Tendring DC,http://statistics.data.gov.uk/id/local-authority-district/22UN,Corporate Services,1340 - Legal Services - Management & Admin Service Unit,1700 - Training - Courses,17/04/2012,2095494-1,810,2101547 - Xpress Software Solutions Ltd,Xpress Software Training
Tendring DC,http://statistics.data.gov.uk/id/local-authority-district/22UN,Corporate Services,1880 - Office Accommodation Expenses,4000 - Furniture,17/04/2012,1048224-1,537,2111995 - Yes 2 Solutions,YES 2 SOLUTIONS
Tendring DC,http://statistics.data.gov.uk/id/local-authority-district/22UN,Life Opportunities,8540 - Leisure Centre Clacton,2100 - Building Repairs,17/04/2012,1048155-1,1991,2108452 - Access Automation Ltd,
Tendring DC,http://statistics.data.gov.uk/id/local-authority-district/22UN,Life Opportunities,H860 - Disabled Adaptations,C200 - Main Contractor,17/04/2012,1048220-1,1795,REDACTED PERSONAL DATA,REDACTED PERSONAL DATA
Tendring DC,http://statistics.data.gov.uk/id/local-authority-district/22UN,Life Opportunities,5480 - HRA - Repair & Maintenance,2088 - Disabled Adaptations,17/04/2012,1048221-1,60,REDACTED PERSONAL DATA,REDACTED PERSONAL DATA
Tendring DC,http://statistics.data.gov.uk/id/local-authority-district/22UN,Life Opportunities,H920 - DFGs,C400 - Grant payments,03/04/2012,2095282-1,2020.5,REDACTED PERSONAL DATA,REDACTED PERSONAL DATA
Tendring DC,http://statistics.data.gov.uk/id/local-authority-district/22UN,Life Opportunities,5140 - Homelessness,4683 - Other Homelessness Expenses,24/04/2012,2095835-1,550,REDACTED PERSONAL DATA,REDACTED PERSONAL DATA
Tendring DC,http://statistics.data.gov.uk/id/local-authority-district/22UN,Life Opportunities,5480 - HRA - Repair & Maintenance,2017 - Mechanical Equipment /Extract Fans,10/04/2012,1047946-1,210,REDACTED PERSONAL DATA,REDACTED PERSONAL DATA
Tendring DC,http://statistics.data.gov.uk/id/local-authority-district/22UN,Life Opportunities,8540 - Leisure Centre Clacton,2100 - Building Repairs,17/04/2012,1048201-1,769.65,2100072 - Acorn Pressurisation Services Ltd,
Tendring DC,http://statistics.data.gov.uk/id/local-authority-district/22UN,Life Opportunities,H920 - DFGs,C400 - Grant payments,03/04/2012,2095281-1,1924.5,REDACTED PERSONAL DATA,REDACTED PERSONAL DATA
Tendring DC,http://statistics.data.gov.uk/id/local-authority-district/22UN,Life Opportunities,5860 - Manningtree Sports Centre,4597 - Hired Services - Payments to Contractors,24/04/2012,2095663-1,450,2109999 - ACS Group Maintenance,Removal of Air Conditioning Unit
Tendring DC,http://statistics.data.gov.uk/id/local-authority-district/22UN,Life Opportunities,5800 - Brightlingsea Sports Centre,4000 - Furniture,03/04/2012,2095079-1,24.06,2105668 - ADT Fire and Security plc,ADT Fire & Security
Tendring DC,http://statistics.data.gov.uk/id/local-authority-district/22UN,Life Opportunities,5480 - HRA - Repair & Maintenance,2017 - Mechanical Equipment /Extract Fans,10/04/2012,2095324-1,680.5,REDACTED PERSONAL DATA,REDACTED PERSONAL DATA
Tendring DC,http://statistics.data.gov.uk/id/local-authority-district/22UN,Life Opportunities,5480 - HRA - Repair & Maintenance,2017 - Mechanical Equipment /Extract Fans,10/04/2012,2095325-1,710,REDACTED PERSONAL DATA,REDACTED PERSONAL DATA
Tendring DC,http://statistics.data.gov.uk/id/local-authority-district/22UN,Life Opportunities,5360 - HRA - Sheltered Units,4601 - Hired services - Cleaning,03/04/2012,2095055-1,200,2102096 - Alan Lillington,Litter Picking
Tendring DC,http://statistics.data.gov.uk/id/local-authority-district/22UN,Life Opportunities,5360 - HRA - Sheltered Units,2702 - Window Cleaning,03/04/2012,2095056-1,1350,2102096 - Alan Lillington,Window Cleaning
Tendring DC,http://statistics.data.gov.uk/id/local-authority-district/22UN,Life Opportunities,5360 - HRA - Sheltered Units,4040 - Equipment & Tools,03/04/2012,2095139-1,300,2102096 - Alan Lillington,Carpet Cleaning @ Kate Daniels
Tendring DC,http://statistics.data.gov.uk/id/local-authority-district/22UN,Life Opportunities,H710 - Selected Improvements,C200 - Main Contractor,10/04/2012,2095335-1,329,REDACTED PERSONAL DATA,REDACTED PERSONAL DATA
Tendring DC,http://statistics.data.gov.uk/id/local-authority-district/22UN,Life Opportunities,5860 - Manningtree Sports Centre,5311 - General Provisions - Vending,17/04/2012,1048079-1,67,2110110 - Area Vending Services,HOT DRINKS MACHINE SUPPLIES
Tendring DC,http://statistics.data.gov.uk/id/local-authority-district/22UN,Life Opportunities,5860 - Manningtree Sports Centre,5311 - General Provisions - Vending,17/04/2012,1048079-2,77,2110110 - Area Vending Services,HOT DRINKS MACHINE SUPPLIES
Tendring DC,http://statistics.data.gov.uk/id/local-authority-district/22UN,Life Opportunities,8540 - Leisure Centre Clacton,5300 - Resaleable Items,17/04/2012,1048116-1,18.81,2100088 - ASA Merchandising Ltd,
Tendring DC,http://statistics.data.gov.uk/id/local-authority-district/22UN,Life Opportunities,8540 - Leisure Centre Clacton,5300 - Resaleable Items,17/04/2012,1048117-1,297.04,2100088 - ASA Merchandising Ltd,
Tendring DC,http://statistics.data.gov.uk/id/local-authority-district/22UN,Life Opportunities,8510 - Dovercourt Swimming Pool & All Weather Facilities,1700 - Training - Courses,17/04/2012,1048177-1,34.37,2100088 - ASA Merchandising Ltd,DOVERCOURT POOL
Tendring DC,http://statistics.data.gov.uk/id/local-authority-district/22UN,Life Opportunities,8510 - Dovercourt Swimming Pool & All Weather Facilities,5300 - Resaleable Items,03/04/2012,2095125-1,101.08,2100088 - ASA Merchandising Ltd,Frinton Pool
Tendring DC,http://statistics.data.gov.uk/id/local-authority-district/22UN,Life Opportunities,8510 - Dovercourt Swimming Pool & All Weather Facilities,5300 - Resaleable Items,03/04/2012,2095225-1,124.57,2100088 - ASA Merchandising Ltd,Dovercourt Pool
Tendring DC,http://statistics.data.gov.uk/id/local-authority-district/22UN,Life Opportunities,5860 - Manningtree Sports Centre,4597 - Hired Services - Payments to Contractors,10/04/2012,2095323-1,180,2110101 - ASM Ltd,Football Coaching
Tendring DC,http://statistics.data.gov.uk/id/local-authority-district/22UN,Life Opportunities,5860 - Manningtree Sports Centre,4597 - Hired Services - Payments to Contractors,24/04/2012,2095670-1,270,2110101 - ASM Ltd,Football Coaching
Tendring DC,http://statistics.data.gov.uk/id/local-authority-district/22UN,Life Opportunities,5480 - HRA - Repair & Maintenance,2012 - Responsive Maintenance - Clearance And Cleaning,10/04/2012,1047944-1,75,REDACTED PERSONAL DATA,REDACTED PERSONAL DATA
Tendring DC,http://statistics.data.gov.uk/id/local-authority-district/22UN,Life Opportunities,5480 - HRA - Repair & Maintenance,2012 - Responsive Maintenance - Clearance And Cleaning,10/04/2012,1047945-1,80,REDACTED PERSONAL DATA,REDACTED PERSONAL DATA
Tendring DC,http://statistics.data.gov.uk/id/local-authority-district/22UN,Life Opportunities,8540 - Leisure Centre Clacton,9195 - Joining Fees  - Lifestyles,17/04/2012,2095498-1,14.58,2112180 - Audrey Liddle,Liddle Refund Teen Fit joining fee
Tendring DC,http://statistics.data.gov.uk/id/local-authority-district/22UN,Life Opportunities,6160 - Princes Theatre,4040 - Equipment & Tools,03/04/2012,2095113-1,177.6,2110592 - B & W Lift Services Ltd,Lift Service
Tendring DC,http://statistics.data.gov.uk/id/local-authority-district/22UN,Life Opportunities,8540 - Leisure Centre Clacton,5500 - Miscellaneous Expenses,17/04/2012,1048158-1,85.68,2106358 - Baker Ross Ltd,
Tendring DC,http://statistics.data.gov.uk/id/local-authority-district/22UN,Life Opportunities,8540 - Leisure Centre Clacton,4200 - Clothing & Uniforms,17/04/2012,1048105-1,45.05,2109068 - Ballantyne Edwards Ltd,
Tendring DC,http://statistics.data.gov.uk/id/local-authority-district/22UN,Life Opportunities,5240 - HRA - Managing Tenancies,4312 - Tenancy Stationery,03/04/2012,2095209-1,13.79,REDACTED COMMERCIAL CONFIDENTIALITY,REDACTED COMMERCIAL CONFIDENTIALITY
Tendring DC,http://statistics.data.gov.uk/id/local-authority-district/22UN,Life Opportunities,1565 - Careline / CCTV Service Unit,4300 - Printing & Stationery,10/04/2012,2095354-1,133.8,2100111 - Banner Business Supplies Ltd,Paper & Notebooks
Tendring DC,http://statistics.data.gov.uk/id/local-authority-district/22UN,Life Opportunities,5240 - HRA - Managing Tenancies,4312 - Tenancy Stationery,24/04/2012,2095625-1,100.96,REDACTED COMMERCIAL CONFIDENTIALITY,REDACTED COMMERCIAL CONFIDENTIALITY
Tendring DC,http://statistics.data.gov.uk/id/local-authority-district/22UN,Life Opportunities,5800 - Brightlingsea Sports Centre,5300 - Resaleable Items,03/04/2012,2095213-1,20,2100141 - Barclaycard Merchant Services,Credit cards
Tendring DC,http://statistics.data.gov.uk/id/local-authority-district/22UN,Life Opportunities,5800 - Brightlingsea Sports Centre,5300 - Resaleable Items,03/04/2012,2095213-2,22.48,2100141 - Barclaycard Merchant Services,Credit cards
Tendring DC,http://statistics.data.gov.uk/id/local-authority-district/22UN,Life Opportunities,8520 - Frinton & Walton Swimming Pool,5196 - Credit Card charges,03/04/2012,2095215-1,164.64,REDACTED PERSONAL DATA,REDACTED PERSONAL DATA
Tendring DC,http://statistics.data.gov.uk/id/local-authority-district/22UN,Life Opportunities,8520 - Frinton & Walton Swimming Pool,5196 - Credit Card charges,03/04/2012,2095215-2,26.91,REDACTED PERSONAL DATA,REDACTED PERSONAL DATA
Tendring DC,http://statistics.data.gov.uk/id/local-authority-district/22UN,Life Opportunities,8520 - Frinton & Walton Swimming Pool,5196 - Credit Card charges,03/04/2012,2095215-3,16.95,REDACTED PERSONAL DATA,REDACTED PERSONAL DATA
Tendring DC,http://statistics.data.gov.uk/id/local-authority-district/22UN,Life Opportunities,8510 - Dovercourt Swimming Pool & All Weather Facilities,5196 - Credit Card charges,03/04/2012,2095216-1,94.75,REDACTED PERSONAL DATA,REDACTED PERSONAL DATA
Tendring DC,http://statistics.data.gov.uk/id/local-authority-district/22UN,Life Opportunities,8510 - Dovercourt Swimming Pool & All Weather Facilities,5196 - Credit Card charges,03/04/2012,2095216-2,33.9,REDACTED PERSONAL DATA,REDACTED PERSONAL DATA
Tendring DC,http://statistics.data.gov.uk/id/local-authority-district/22UN,Life Opportunities,8540 - Leisure Centre Clacton,5196 - Credit Card charges,05/04/2012,2095367-1,33.9,2100141 - Barclaycard Merchant Services,February
Tendring DC,http://statistics.data.gov.uk/id/local-authority-district/22UN,Life Opportunities,8540 - Leisure Centre Clacton,5196 - Credit Card charges,05/04/2012,2095367-2,584.95,2100141 - Barclaycard Merchant Services,February
Tendring DC,http://statistics.data.gov.uk/id/local-authority-district/22UN,Life Opportunities,6160 - Princes Theatre,5190 - Bank Commission Charges,17/04/2012,2095472-1,346.63,2100141 - Barclaycard Merchant Services,March Commission
Tendring DC,http://statistics.data.gov.uk/id/local-authority-district/22UN,Life Opportunities,7680 - Tour De Tendring,5500 - Miscellaneous Expenses,24/04/2012,2095679-1,2333,2100144 - Bike Events Ltd,2nd TDT payment
Tendring DC,http://statistics.data.gov.uk/id/local-authority-district/22UN,Life Opportunities,H805 - Major Refurbishment of Heating,C200 - Main Contractor,17/04/2012,2095548-1,30678.58,2100155 - Blue Flame (Colchester) Ltd,Heater Refurb Contract 09/12
Tendring DC,http://statistics.data.gov.uk/id/local-authority-district/22UN,Life Opportunities,5480 - HRA - Repair & Maintenance,2073 - Smoke Alarm Service/Testing,17/04/2012,2095548-2,400,2100155 - Blue Flame (Colchester) Ltd,Heater Refurb Contract 09/12
Tendring DC,http://statistics.data.gov.uk/id/local-authority-district/22UN,Life Opportunities,H920 - DFGs,C400 - Grant payments,10/04/2012,1048061-1,50,REDACTED PERSONAL DATA,REDACTED PERSONAL DATA
Tendring DC,http://statistics.data.gov.uk/id/local-authority-district/22UN,Life Opportunities,H920 - DFGs,C400 - Grant payments,03/04/2012,2095272-1,50,REDACTED PERSONAL DATA,REDACTED PERSONAL DATA
Tendring DC,http://statistics.data.gov.uk/id/local-authority-district/22UN,Life Opportunities,H920 - DFGs,C400 - Grant payments,03/04/2012,2095279-1,50,REDACTED PERSONAL DATA,REDACTED PERSONAL DATA
Tendring DC,http://statistics.data.gov.uk/id/local-authority-district/22UN,Life Opportunities,5140 - Homelessness,4683 - Other Homelessness Expenses,24/04/2012,2095732-1,395,REDACTED PERSONAL DATA,REDACTED PERSONAL DATA
Tendring DC,http://statistics.data.gov.uk/id/local-authority-district/22UN,Life Opportunities,5140 - Homelessness,4683 - Other Homelessness Expenses,24/04/2012,2095841-1,475,REDACTED PERSONAL DATA,REDACTED PERSONAL DATA
Tendring DC,http://statistics.data.gov.uk/id/local-authority-district/22UN,Life Opportunities,5240 - HRA - Managing Tenancies,5242 - Tenant Relations,10/04/2012,1047955-1,1450,REDACTED COMMERCIAL CONFIDENTIALITY,REDACTED COMMERCIAL CONFIDENTIALITY
Tendring DC,http://statistics.data.gov.uk/id/local-authority-district/22UN,Life Opportunities,H815 - Re-roofing,C200 - Main Contractor,03/04/2012,2095103-1,75,2100117 - Brian Birt Carpets Ltd,Belmans Court
Tendring DC,http://statistics.data.gov.uk/id/local-authority-district/22UN,Life Opportunities,6160 - Princes Theatre,5160 - Advertising,10/04/2012,1047959-1,60,2108668 - Brightlingsea Business Association,LEAFLET ADVERT
Tendring DC,http://statistics.data.gov.uk/id/local-authority-district/22UN,Life Opportunities,5240 - HRA - Managing Tenancies,5248 - Estate Management Expenses,10/04/2012,1047931-1,74.4,REDACTED PERSONAL DATA,REDACTED PERSONAL DATA
Tendring DC,http://statistics.data.gov.uk/id/local-authority-district/22UN,Life Opportunities,5240 - HRA - Managing Tenancies,5248 - Estate Management Expenses,10/04/2012,1047932-1,148.8,REDACTED PERSONAL DATA,REDACTED PERSONAL DATA
Tendring DC,http://statistics.data.gov.uk/id/local-authority-district/22UN,Life Opportunities,5800 - Brightlingsea Sports Centre,5316 - General Provisions,03/04/2012,2095080-1,85,2102522 - Brightlingsea Town Council,B'Sea Town Council
Tendring DC,http://statistics.data.gov.uk/id/local-authority-district/22UN,Life Opportunities,8530 - Brightlingsea Swimming Pool,4400 - Maintenance Under Service Agreements,24/04/2012,2095667-1,1580,2102522 - Brightlingsea Town Council,B'Sea Open Air Pool - Works
Tendring DC,http://statistics.data.gov.uk/id/local-authority-district/22UN,Life Opportunities,8520 - Frinton & Walton Swimming Pool,2304 - Energy Costs - Electricity,03/04/2012,2095123-1,216.44,2100197 - British Gas Trading Ltd,Frinton Pool
Tendring DC,http://statistics.data.gov.uk/id/local-authority-district/22UN,Life Opportunities,6740 - Careline,2304 - Energy Costs - Electricity,03/04/2012,2095211-1,66.45,2100197 - British Gas Trading Ltd,B Gas Electricity
Tendring DC,http://statistics.data.gov.uk/id/local-authority-district/22UN,Life Opportunities,6740 - Careline,4710 - Telephones - Charges,03/04/2012,2095063-1,320.78,2100168 - British Telecommunications plc,BT Bill PNC
Tendring DC,http://statistics.data.gov.uk/id/local-authority-district/22UN,Life Opportunities,6740 - Careline,4710 - Telephones - Charges,03/04/2012,2095064-1,134.83,2100168 - British Telecommunications plc,BT Bill
Tendring DC,http://statistics.data.gov.uk/id/local-authority-district/22UN,Life Opportunities,5820 - Harwich Sports Centre,2700 - Cleaning Materials,10/04/2012,1047969-1,59.6,2101624 - Bunzl,CLEANING CLOTHS
Tendring DC,http://statistics.data.gov.uk/id/local-authority-district/22UN,Life Opportunities,8540 - Leisure Centre Clacton,2700 - Cleaning Materials,17/04/2012,1048110-1,224.62,2101624 - Bunzl,
Tendring DC,http://statistics.data.gov.uk/id/local-authority-district/22UN,Life Opportunities,8540 - Leisure Centre Clacton,2700 - Cleaning Materials,24/04/2012,1048361-1,273.43,2101624 - Bunzl,
Tendring DC,http://statistics.data.gov.uk/id/local-authority-district/22UN,Life Opportunities,8520 - Frinton & Walton Swimming Pool,2700 - Cleaning Materials,24/04/2012,1048375-1,136.91,2101624 - Bunzl,FRINTON WALTON POOL
Tendring DC,http://statistics.data.gov.uk/id/local-authority-district/22UN,Life Opportunities,8510 - Dovercourt Swimming Pool & All Weather Facilities,2700 - Cleaning Materials,03/04/2012,2095120-1,33.7,2101624 - Bunzl,Dovercourt Pool
Tendring DC,http://statistics.data.gov.uk/id/local-authority-district/22UN,Life Opportunities,8520 - Frinton & Walton Swimming Pool,2700 - Cleaning Materials,03/04/2012,2095124-1,53.05,2101624 - Bunzl,
Tendring DC,http://statistics.data.gov.uk/id/local-authority-district/22UN,Life Opportunities,5820 - Harwich Sports Centre,2700 - Cleaning Materials,03/04/2012,2095127-1,11.68,2101624 - Bunzl,Cleaning materials
Tendring DC,http://statistics.data.gov.uk/id/local-authority-district/22UN,Life Opportunities,8520 - Frinton & Walton Swimming Pool,2700 - Cleaning Materials,03/04/2012,2095245-1,65,2101624 - Bunzl,Frinton Pool
Tendring DC,http://statistics.data.gov.uk/id/local-authority-district/22UN,Life Opportunities,8510 - Dovercourt Swimming Pool & All Weather Facilities,2700 - Cleaning Materials,10/04/2012,2095386-1,124.53,2101624 - Bunzl,Dovercourt Pool
Tendring DC,http://statistics.data.gov.uk/id/local-authority-district/22UN,Life Opportunities,5360 - HRA - Sheltered Units,2700 - Cleaning Materials,10/04/2012,2095398-1,57.08,2101624 - Bunzl,Cleaning Products for St Marys
Tendring DC,http://statistics.data.gov.uk/id/local-authority-district/22UN,Life Opportunities,8540 - Leisure Centre Clacton,2100 - Building Repairs,17/04/2012,1048131-1,385.92,2100280 - C H Lindsey & Son Ltd,
Tendring DC,http://statistics.data.gov.uk/id/local-authority-district/22UN,Life Opportunities,8540 - Leisure Centre Clacton,2100 - Building Repairs,17/04/2012,1048132-1,581.27,2100280 - C H Lindsey & Son Ltd,
Tendring DC,http://statistics.data.gov.uk/id/local-authority-district/22UN,Life Opportunities,8540 - Leisure Centre Clacton,2100 - Building Repairs,17/04/2012,1048133-1,165.15,2100280 - C H Lindsey & Son Ltd,
Tendring DC,http://statistics.data.gov.uk/id/local-authority-district/22UN,Life Opportunities,8520 - Frinton & Walton Swimming Pool,2100 - Building Repairs,10/04/2012,2095319-1,121.89,2100280 - C H Lindsey & Son Ltd,Frinton & Walton Pool
Tendring DC,http://statistics.data.gov.uk/id/local-authority-district/22UN,Life Opportunities,6160 - Princes Theatre,2900 - Premises Licensing - Public Entertainment,10/04/2012,1048058-1,12,2112130 - Cambertown,
Tendring DC,http://statistics.data.gov.uk/id/local-authority-district/22UN,Life Opportunities,8520 - Frinton & Walton Swimming Pool,4400 - Maintenance Under Service Agreements,24/04/2012,1048373-1,108.15,2100281 - Cannon Hygiene,FRINTON WALTON POOL
Tendring DC,http://statistics.data.gov.uk/id/local-authority-district/22UN,Life Opportunities,8540 - Leisure Centre Clacton,4400 - Maintenance Under Service Agreements,24/04/2012,2095653-1,318.36,2100281 - Cannon Hygiene,April - June
Tendring DC,http://statistics.data.gov.uk/id/local-authority-district/22UN,Life Opportunities,8510 - Dovercourt Swimming Pool & All Weather Facilities,4400 - Maintenance Under Service Agreements,24/04/2012,2095655-1,38.49,2100281 - Cannon Hygiene,Dovercourt Pool
Tendring DC,http://statistics.data.gov.uk/id/local-authority-district/22UN,Life Opportunities,5860 - Manningtree Sports Centre,4400 - Maintenance Under Service Agreements,24/04/2012,2095671-1,14.55,2100281 - Cannon Hygiene,Sanitary Disposal Bins x 4
Tendring DC,http://statistics.data.gov.uk/id/local-authority-district/22UN,Life Opportunities,5820 - Harwich Sports Centre,4597 - Hired Services - Payments to Contractors,24/04/2012,2095673-1,35,2100281 - Cannon Hygiene,Duty of Care Cost
Tendring DC,http://statistics.data.gov.uk/id/local-authority-district/22UN,Life Opportunities,5240 - HRA - Managing Tenancies,5249 - Housing ASB Expenses,10/04/2012,2095327-1,2000,REDACTED PERSONAL DATA,REDACTED PERSONAL DATA
Tendring DC,http://statistics.data.gov.uk/id/local-authority-district/22UN,Life Opportunities,H825 - Refurbishment of Door Entry Systems,C200 - Main Contractor,17/04/2012,1048214-1,7430.6,2112093 - Certus Security LLP,VALUATION NO 2
Tendring DC,http://statistics.data.gov.uk/id/local-authority-district/22UN,Life Opportunities,6160 - Princes Theatre,4622 - Hired Services - Artistes and Production Companies,24/04/2012,2095669-1,1241.94,2107686 - Chambers Management Ltd,Jimmy Carr Settlement
Tendring DC,http://statistics.data.gov.uk/id/local-authority-district/22UN,Life Opportunities,8540 - Leisure Centre Clacton,4400 - Maintenance Under Service Agreements,17/04/2012,1048113-1,327.38,2107803 - CIT Vendor Finance (UK) Ltd,15/4/12-14/7/12
Tendring DC,http://statistics.data.gov.uk/id/local-authority-district/22UN,Life Opportunities,8540 - Leisure Centre Clacton,2100 - Building Repairs,17/04/2012,1048141-1,12.82,2100267 - City Electrical Factors Ltd Anglia Division,
Tendring DC,http://statistics.data.gov.uk/id/local-authority-district/22UN,Life Opportunities,8540 - Leisure Centre Clacton,2100 - Building Repairs,17/04/2012,1048142-1,29.03,2100267 - City Electrical Factors Ltd Anglia Division,
Tendring DC,http://statistics.data.gov.uk/id/local-authority-district/22UN,Life Opportunities,8540 - Leisure Centre Clacton,2100 - Building Repairs,17/04/2012,1048136-1,29.17,2100218 - Clacton Electronics,
Tendring DC,http://statistics.data.gov.uk/id/local-authority-district/22UN,Life Opportunities,8540 - Leisure Centre Clacton,2100 - Building Repairs,17/04/2012,1048160-1,8.33,2100218 - Clacton Electronics,
Tendring DC,http://statistics.data.gov.uk/id/local-authority-district/22UN,Life Opportunities,5140 - Homelessness,4900 - Grants,10/04/2012,1047954-1,19920,2102603 - Colchester & Tendring Women's Refuge,C TWR FUNDING 12/13
Tendring DC,http://statistics.data.gov.uk/id/local-authority-district/22UN,Life Opportunities,5140 - Homelessness,4683 - Other Homelessness Expenses,10/04/2012,1047954-2,4843,2102603 - Colchester & Tendring Women's Refuge,C TWR FUNDING 12/13
Tendring DC,http://statistics.data.gov.uk/id/local-authority-district/22UN,Life Opportunities,5365 - HRA - Colne Housing Soc Shel Units,4404 - Service Agreement - Foundry Court,17/04/2012,1048078-1,2595.46,2100342 - Colne Housing Society Ltd,COLNE R&M
Tendring DC,http://statistics.data.gov.uk/id/local-authority-district/22UN,Life Opportunities,5140 - Homelessness,4683 - Other Homelessness Expenses,24/04/2012,2095833-1,515,REDACTED PERSONAL DATA,REDACTED PERSONAL DATA
Tendring DC,http://statistics.data.gov.uk/id/local-authority-district/22UN,Life Opportunities,5260 - HRA - Rent Collection And Accounting,4460 - Legal & Professional Expenses,23/04/2012,2095921-1,410,2100304 - CO-OP Bank,PO Mar
Tendring DC,http://statistics.data.gov.uk/id/local-authority-district/22UN,Life Opportunities,6620 - Corporate Management - General,5190 - Bank Commission Charges,23/04/2012,2095921-2,2,2100304 - CO-OP Bank,PO Mar
Tendring DC,http://statistics.data.gov.uk/id/local-authority-district/22UN,Life Opportunities,5480 - HRA - Repair & Maintenance,2077 - Gas Service Contract  Servicing/Testing (Large Sca,10/04/2012,1048022-1,1538.76,2100314 - Cooper & Brome (Plumbing & Heating) Ltd,LARGE SCALE BOILERS CONTRACT 09/12
Tendring DC,http://statistics.data.gov.uk/id/local-authority-district/22UN,Life Opportunities,5480 - HRA - Repair & Maintenance,2078 - Gas Service Contract Other Refurbishment/Repairs (,10/04/2012,1048022-2,2169.67,2100314 - Cooper & Brome (Plumbing & Heating) Ltd,LARGE SCALE BOILERS CONTRACT 09/12
Tendring DC,http://statistics.data.gov.uk/id/local-authority-district/22UN,Life Opportunities,5480 - HRA - Repair & Maintenance,2078 - Gas Service Contract Other Refurbishment/Repairs (,17/04/2012,1048198-1,14394.37,2100314 - Cooper & Brome (Plumbing & Heating) Ltd,GREENFIELDS
Tendring DC,http://statistics.data.gov.uk/id/local-authority-district/22UN,Life Opportunities,5820 - Harwich Sports Centre,2100 - Building Repairs,24/04/2012,1048328-1,305.6,2100314 - Cooper & Brome (Plumbing & Heating) Ltd,NEW RADIATOR & SHOWER VALVE
Tendring DC,http://statistics.data.gov.uk/id/local-authority-district/22UN,Life Opportunities,5480 - HRA - Repair & Maintenance,2077 - Gas Service Contract  Servicing/Testing (Large Sca,24/04/2012,2095847-1,1538.73,2100314 - Cooper & Brome (Plumbing & Heating) Ltd,Large Scale Boilers Contract 09/12
Tendring DC,http://statistics.data.gov.uk/id/local-authority-district/22UN,Life Opportunities,5480 - HRA - Repair & Maintenance,2078 - Gas Service Contract Other Refurbishment/Repairs (,24/04/2012,2095847-2,3561.44,2100314 - Cooper & Brome (Plumbing & Heating) Ltd,Large Scale Boilers Contract 09/12
Tendring DC,http://statistics.data.gov.uk/id/local-authority-district/22UN,Life Opportunities,8540 - Leisure Centre Clacton,2308 - Energy Costs - Gas (Including LPG),03/04/2012,2095128-1,3157.06,2104620 - Corona Energy Retail 4 Limited,February
Tendring DC,http://statistics.data.gov.uk/id/local-authority-district/22UN,Life Opportunities,8520 - Frinton & Walton Swimming Pool,2308 - Energy Costs - Gas (Including LPG),24/04/2012,2095640-1,3527.52,REDACTED PERSONAL DATA,REDACTED PERSONAL DATA
Tendring DC,http://statistics.data.gov.uk/id/local-authority-district/22UN,Life Opportunities,8510 - Dovercourt Swimming Pool & All Weather Facilities,2308 - Energy Costs - Gas (Including LPG),24/04/2012,2095641-1,3071.76,REDACTED PERSONAL DATA,REDACTED PERSONAL DATA
Tendring DC,http://statistics.data.gov.uk/id/local-authority-district/22UN,Life Opportunities,8540 - Leisure Centre Clacton,2308 - Energy Costs - Gas (Including LPG),24/04/2012,2095650-1,2383.91,2104620 - Corona Energy Retail 4 Limited,March
Tendring DC,http://statistics.data.gov.uk/id/local-authority-district/22UN,Life Opportunities,5140 - Homelessness,4683 - Other Homelessness Expenses,24/04/2012,2095734-1,550,REDACTED PERSONAL DATA,REDACTED PERSONAL DATA
Tendring DC,http://statistics.data.gov.uk/id/local-authority-district/22UN,Life Opportunities,5140 - Homelessness,4683 - Other Homelessness Expenses,24/04/2012,2095831-1,550,REDACTED PERSONAL DATA,REDACTED PERSONAL DATA
Tendring DC,http://statistics.data.gov.uk/id/local-authority-district/22UN,Life Opportunities,1960 - Vehicle Maintenance,4220 - Laundry,10/04/2012,1047978-1,6,2100397 - Danes of Colchester Ltd,LAUNDRY 14/3
Tendring DC,http://statistics.data.gov.uk/id/local-authority-district/22UN,Life Opportunities,6160 - Princes Theatre,4220 - Laundry,24/04/2012,1048353-1,7.8,2100397 - Danes of Colchester Ltd,LAUNDRY
Tendring DC,http://statistics.data.gov.uk/id/local-authority-district/22UN,Life Opportunities,6160 - Princes Theatre,4220 - Laundry,24/04/2012,1048353-2,0.12,2100397 - Danes of Colchester Ltd,LAUNDRY
Tendring DC,http://statistics.data.gov.uk/id/local-authority-district/22UN,Life Opportunities,6160 - Princes Theatre,4220 - Laundry,24/04/2012,2095661-1,6.5,2100397 - Danes of Colchester Ltd,Laundry
Tendring DC,http://statistics.data.gov.uk/id/local-authority-district/22UN,Life Opportunities,6160 - Princes Theatre,4220 - Laundry,24/04/2012,2095661-2,0.1,2100397 - Danes of Colchester Ltd,Laundry
Tendring DC,http://statistics.data.gov.uk/id/local-authority-district/22UN,Life Opportunities,6160 - Princes Theatre,4220 - Laundry,24/04/2012,2095666-1,18.2,2100397 - Danes of Colchester Ltd,Theatre Laundry
Tendring DC,http://statistics.data.gov.uk/id/local-authority-district/22UN,Life Opportunities,6160 - Princes Theatre,4220 - Laundry,24/04/2012,2095666-2,0.28,2100397 - Danes of Colchester Ltd,Theatre Laundry
Tendring DC,http://statistics.data.gov.uk/id/local-authority-district/22UN,Life Opportunities,C611 - Cliff Road Sea Wall,C200 - Main Contractor,17/04/2012,1048217-1,359.13,2107898 - Daniel Connal Partnership,CLIFF RD SEA WALL
Tendring DC,http://statistics.data.gov.uk/id/local-authority-district/22UN,Life Opportunities,H920 - DFGs,C400 - Grant payments,03/04/2012,2095284-1,2500,REDACTED PERSONAL DATA,REDACTED PERSONAL DATA
Tendring DC,http://statistics.data.gov.uk/id/local-authority-district/22UN,Life Opportunities,8540 - Leisure Centre Clacton,4880 - Subscriptions Paid,03/04/2012,2095200-1,38.75,REDACTED PERSONAL DATA,REDACTED PERSONAL DATA
Tendring DC,http://statistics.data.gov.uk/id/local-authority-district/22UN,Life Opportunities,8510 - Dovercourt Swimming Pool & All Weather Facilities,2100 - Building Repairs,24/04/2012,2095657-1,480,2100359 - Derek Taylor Engineering,Dovercourt Pool
Tendring DC,http://statistics.data.gov.uk/id/local-authority-district/22UN,Life Opportunities,8540 - Leisure Centre Clacton,4400 - Maintenance Under Service Agreements,17/04/2012,1048139-1,86.4,2107840 - Digital Office Systems Ltd,COPIES TO 23.3.12
Tendring DC,http://statistics.data.gov.uk/id/local-authority-district/22UN,Life Opportunities,8540 - Leisure Centre Clacton,4300 - Printing & Stationery,17/04/2012,1048107-1,145.9,2103510 - Direct Solutions,
Tendring DC,http://statistics.data.gov.uk/id/local-authority-district/22UN,Life Opportunities,7520 - Tourism Publicity Marketing Promotion,5160 - Advertising,17/04/2012,1048152-1,115,2103510 - Direct Solutions,LARGE PRINT-SUNSHINE COAST
Tendring DC,http://statistics.data.gov.uk/id/local-authority-district/22UN,Life Opportunities,8540 - Leisure Centre Clacton,2100 - Building Repairs,17/04/2012,1048084-1,755.05,2100433 - East Essex Pool Care,
Tendring DC,http://statistics.data.gov.uk/id/local-authority-district/22UN,Life Opportunities,8540 - Leisure Centre Clacton,2100 - Building Repairs,17/04/2012,1048085-1,461.1,2100433 - East Essex Pool Care,
Tendring DC,http://statistics.data.gov.uk/id/local-authority-district/22UN,Life Opportunities,8540 - Leisure Centre Clacton,4081 - Chemicals,17/04/2012,1048086-1,378.5,2100433 - East Essex Pool Care,
Tendring DC,http://statistics.data.gov.uk/id/local-authority-district/22UN,Life Opportunities,8540 - Leisure Centre Clacton,4081 - Chemicals,17/04/2012,1048087-1,259.4,2100433 - East Essex Pool Care,
Tendring DC,http://statistics.data.gov.uk/id/local-authority-district/22UN,Life Opportunities,8540 - Leisure Centre Clacton,4081 - Chemicals,17/04/2012,1048088-1,42.2,2100433 - East Essex Pool Care,
Tendring DC,http://statistics.data.gov.uk/id/local-authority-district/22UN,Life Opportunities,8540 - Leisure Centre Clacton,4081 - Chemicals,17/04/2012,1048089-1,96.5,2100433 - East Essex Pool Care,
Tendring DC,http://statistics.data.gov.uk/id/local-authority-district/22UN,Life Opportunities,8540 - Leisure Centre Clacton,2100 - Building Repairs,17/04/2012,1048090-1,211,2100433 - East Essex Pool Care,
Tendring DC,http://statistics.data.gov.uk/id/local-authority-district/22UN,Life Opportunities,8540 - Leisure Centre Clacton,2100 - Building Repairs,17/04/2012,1048091-1,201.25,2100433 - East Essex Pool Care,
Tendring DC,http://statistics.data.gov.uk/id/local-authority-district/22UN,Life Opportunities,8520 - Frinton & Walton Swimming Pool,4081 - Chemicals,03/04/2012,2095220-1,-32,2100433 - East Essex Pool Care,Frinton & Walton Pool
Tendring DC,http://statistics.data.gov.uk/id/local-authority-district/22UN,Life Opportunities,8510 - Dovercourt Swimming Pool & All Weather Facilities,4081 - Chemicals,03/04/2012,2095221-1,-24,2100433 - East Essex Pool Care,Dovercourt Pool
Tendring DC,http://statistics.data.gov.uk/id/local-authority-district/22UN,Life Opportunities,8510 - Dovercourt Swimming Pool & All Weather Facilities,4081 - Chemicals,03/04/2012,2095226-1,37.7,2100433 - East Essex Pool Care,Dovercourt Pool
Tendring DC,http://statistics.data.gov.uk/id/local-authority-district/22UN,Life Opportunities,8510 - Dovercourt Swimming Pool & All Weather Facilities,4081 - Chemicals,03/04/2012,2095227-1,280.5,2100433 - East Essex Pool Care,Dovercourt Pool
Tendring DC,http://statistics.data.gov.uk/id/local-authority-district/22UN,Life Opportunities,8510 - Dovercourt Swimming Pool & All Weather Facilities,4081 - Chemicals,03/04/2012,2095228-1,372.5,2100433 - East Essex Pool Care,Dovercourt Pool
Tendring DC,http://statistics.data.gov.uk/id/local-authority-district/22UN,Life Opportunities,8510 - Dovercourt Swimming Pool & All Weather Facilities,2100 - Building Repairs,03/04/2012,2095229-1,54.63,2100433 - East Essex Pool Care,Dovercourt Pool
Tendring DC,http://statistics.data.gov.uk/id/local-authority-district/22UN,Life Opportunities,8510 - Dovercourt Swimming Pool & All Weather Facilities,2100 - Building Repairs,03/04/2012,2095230-1,68,2100433 - East Essex Pool Care,Dovercourt Pool
Tendring DC,http://statistics.data.gov.uk/id/local-authority-district/22UN,Life Opportunities,8520 - Frinton & Walton Swimming Pool,4400 - Maintenance Under Service Agreements,03/04/2012,2095231-1,232.2,2100433 - East Essex Pool Care,Frinton & Walton Pool
Tendring DC,http://statistics.data.gov.uk/id/local-authority-district/22UN,Life Opportunities,8520 - Frinton & Walton Swimming Pool,4081 - Chemicals,03/04/2012,2095232-1,782.5,2100433 - East Essex Pool Care,Frinton & Walton Pool
Tendring DC,http://statistics.data.gov.uk/id/local-authority-district/22UN,Life Opportunities,8510 - Dovercourt Swimming Pool & All Weather Facilities,2100 - Building Repairs,03/04/2012,2095233-1,68,2100433 - East Essex Pool Care,Dovercourt Pool
Tendring DC,http://statistics.data.gov.uk/id/local-authority-district/22UN,Life Opportunities,8520 - Frinton & Walton Swimming Pool,4400 - Maintenance Under Service Agreements,03/04/2012,2095244-1,412.42,2100454 - Ecolab Services Limited,Frinton Pool
Tendring DC,http://statistics.data.gov.uk/id/local-authority-district/22UN,Life Opportunities,8540 - Leisure Centre Clacton,2304 - Energy Costs - Electricity,17/04/2012,1048166-1,7955.48,2105146 - EDF Energy 1 Ltd,MARCH
Tendring DC,http://statistics.data.gov.uk/id/local-authority-district/22UN,Life Opportunities,8510 - Dovercourt Swimming Pool & All Weather Facilities,2304 - Energy Costs - Electricity,17/04/2012,1048167-1,3263.73,2105146 - EDF Energy 1 Ltd,DOVERCOURT POOL
Tendring DC,http://statistics.data.gov.uk/id/local-authority-district/22UN,Life Opportunities,H800 - Structural Repairs,C200 - Main Contractor,10/04/2012,2095334-1,1055,REDACTED PERSONAL DATA,REDACTED PERSONAL DATA
Tendring DC,http://statistics.data.gov.uk/id/local-authority-district/22UN,Life Opportunities,H810 - Electrical Re-wiring,C200 - Main Contractor,10/04/2012,1048013-1,373.3,REDACTED PERSONAL DATA,REDACTED PERSONAL DATA
Tendring DC,http://statistics.data.gov.uk/id/local-authority-district/22UN,Life Opportunities,6160 - Princes Theatre,4622 - Hired Services - Artistes and Production Companies,24/04/2012,2095680-1,3500,2111197 - Entertainers Promotions Ltd,Burlesque Settlement
Tendring DC,http://statistics.data.gov.uk/id/local-authority-district/22UN,Life Opportunities,C265 - Clacton seafront improvements,C200 - Main Contractor,24/04/2012,1048299-1,100,2108194 - Environmental Design,LANDSCAPING PIER GAP
Tendring DC,http://statistics.data.gov.uk/id/local-authority-district/22UN,Life Opportunities,5440 - HRA - Communal Electricity,2304 - Energy Costs - Electricity,24/04/2012,2095610-1,25.19,2107644 - Eon,TV Amplifiers
Tendring DC,http://statistics.data.gov.uk/id/local-authority-district/22UN,Life Opportunities,H920 - DFGs,C400 - Grant payments,10/04/2012,1048060-1,1873.83,REDACTED PERSONAL DATA,REDACTED PERSONAL DATA
Tendring DC,http://statistics.data.gov.uk/id/local-authority-district/22UN,Life Opportunities,5480 - HRA - Repair & Maintenance,2016 - PVCu Window And Door Repairs,10/04/2012,1047950-1,95,REDACTED COMMERCIAL CONFIDENTIALITY,REDACTED COMMERCIAL CONFIDENTIALITY
Tendring DC,http://statistics.data.gov.uk/id/local-authority-district/22UN,Life Opportunities,8540 - Leisure Centre Clacton,4400 - Maintenance Under Service Agreements,17/04/2012,1048163-1,75,2111548 - Essex Lift Services Ltd,
Tendring DC,http://statistics.data.gov.uk/id/local-authority-district/22UN,Life Opportunities,5480 - HRA - Repair & Maintenance,2060 - Fire Fighting Equipment Repairs,10/04/2012,1047949-1,194.88,REDACTED PERSONAL DATA,REDACTED PERSONAL DATA
Tendring DC,http://statistics.data.gov.uk/id/local-authority-district/22UN,Life Opportunities,7680 - Tour De Tendring,5500 - Miscellaneous Expenses,03/04/2012,2095114-1,250,2109598 - Expo Publishing,CDC Year Book
Tendring DC,http://statistics.data.gov.uk/id/local-authority-district/22UN,Life Opportunities,7520 - Tourism Publicity Marketing Promotion,5160 - Advertising,03/04/2012,2095115-1,350,2109598 - Expo Publishing,CDC Yearbook
Tendring DC,http://statistics.data.gov.uk/id/local-authority-district/22UN,Life Opportunities,5480 - HRA - Repair & Maintenance,2082 - CCTV repairs,10/04/2012,1047933-1,45,REDACTED PERSONAL DATA,REDACTED PERSONAL DATA
Tendring DC,http://statistics.data.gov.uk/id/local-authority-district/22UN,Life Opportunities,5480 - HRA - Repair & Maintenance,2082 - CCTV repairs,10/04/2012,1047934-1,115,REDACTED PERSONAL DATA,REDACTED PERSONAL DATA
Tendring DC,http://statistics.data.gov.uk/id/local-authority-district/22UN,Life Opportunities,5480 - HRA - Repair & Maintenance,2062 - Communal TV Aerials Repairs,17/04/2012,1048148-1,440,REDACTED PERSONAL DATA,REDACTED PERSONAL DATA
Tendring DC,http://statistics.data.gov.uk/id/local-authority-district/22UN,Life Opportunities,5480 - HRA - Repair & Maintenance,2057 - Fire Alarms Servicing,10/04/2012,1047935-1,125,REDACTED PERSONAL DATA,REDACTED PERSONAL DATA
Tendring DC,http://statistics.data.gov.uk/id/local-authority-district/22UN,Life Opportunities,5480 - HRA - Repair & Maintenance,2058 - Fire Alarms Repairs,10/04/2012,1047936-1,50,REDACTED PERSONAL DATA,REDACTED PERSONAL DATA
Tendring DC,http://statistics.data.gov.uk/id/local-authority-district/22UN,Life Opportunities,5480 - HRA - Repair & Maintenance,2057 - Fire Alarms Servicing,10/04/2012,1047937-1,100,REDACTED PERSONAL DATA,REDACTED PERSONAL DATA
Tendring DC,http://statistics.data.gov.uk/id/local-authority-district/22UN,Life Opportunities,5480 - HRA - Repair & Maintenance,2057 - Fire Alarms Servicing,10/04/2012,1047938-1,100,REDACTED PERSONAL DATA,REDACTED PERSONAL DATA
Tendring DC,http://statistics.data.gov.uk/id/local-authority-district/22UN,Life Opportunities,5480 - HRA - Repair & Maintenance,2057 - Fire Alarms Servicing,10/04/2012,1047939-1,100,REDACTED PERSONAL DATA,REDACTED PERSONAL DATA
Tendring DC,http://statistics.data.gov.uk/id/local-authority-district/22UN,Life Opportunities,5480 - HRA - Repair & Maintenance,2058 - Fire Alarms Repairs,10/04/2012,1047940-1,50,REDACTED PERSONAL DATA,REDACTED PERSONAL DATA
Tendring DC,http://statistics.data.gov.uk/id/local-authority-district/22UN,Life Opportunities,5480 - HRA - Repair & Maintenance,2058 - Fire Alarms Repairs,10/04/2012,1047941-1,50,REDACTED PERSONAL DATA,REDACTED PERSONAL DATA
Tendring DC,http://statistics.data.gov.uk/id/local-authority-district/22UN,Life Opportunities,5480 - HRA - Repair & Maintenance,2057 - Fire Alarms Servicing,24/04/2012,2095629-1,100,REDACTED PERSONAL DATA,REDACTED PERSONAL DATA
Tendring DC,http://statistics.data.gov.uk/id/local-authority-district/22UN,Life Opportunities,7600 - Tourist Information Centres,9356 - Commission Sales,10/04/2012,1047962-1,1155.6,2107423 - Fizz Coach Trips,MARCH COMMISSION
Tendring DC,http://statistics.data.gov.uk/id/local-authority-district/22UN,Life Opportunities,5820 - Harwich Sports Centre,4880 - Subscriptions Paid,17/04/2012,1048174-1,85,2107351 - Frinton Training Services Ltd,FIRST AID TRAINING
Tendring DC,http://statistics.data.gov.uk/id/local-authority-district/22UN,Life Opportunities,5860 - Manningtree Sports Centre,1700 - Training - Courses,24/04/2012,2095665-1,85,2107351 - Frinton Training Services Ltd,1st Aid Training
Tendring DC,http://statistics.data.gov.uk/id/local-authority-district/22UN,Life Opportunities,5820 - Harwich Sports Centre,4632 - Security,10/04/2012,1047964-1,160,2100546 - GCS Alarms,ALARM TAMPER SYSTEM
Tendring DC,http://statistics.data.gov.uk/id/local-authority-district/22UN,Life Opportunities,8540 - Leisure Centre Clacton,2100 - Building Repairs,17/04/2012,1048121-1,90,2100546 - GCS Alarms,
Tendring DC,http://statistics.data.gov.uk/id/local-authority-district/22UN,Life Opportunities,8540 - Leisure Centre Clacton,2100 - Building Repairs,17/04/2012,1048122-1,56,2100546 - GCS Alarms,
Tendring DC,http://statistics.data.gov.uk/id/local-authority-district/22UN,Life Opportunities,5800 - Brightlingsea Sports Centre,2100 - Building Repairs,17/04/2012,1048171-1,50,2100546 - GCS Alarms,GCS ALARMS
Tendring DC,http://statistics.data.gov.uk/id/local-authority-district/22UN,Life Opportunities,5860 - Manningtree Sports Centre,4400 - Maintenance Under Service Agreements,03/04/2012,2095105-1,108,2100546 - GCS Alarms,Emergency Call Out
Tendring DC,http://statistics.data.gov.uk/id/local-authority-district/22UN,Life Opportunities,5860 - Manningtree Sports Centre,4400 - Maintenance Under Service Agreements,03/04/2012,2095106-1,90,2100546 - GCS Alarms,Alarm Re-Program
Tendring DC,http://statistics.data.gov.uk/id/local-authority-district/22UN,Life Opportunities,5860 - Manningtree Sports Centre,4400 - Maintenance Under Service Agreements,03/04/2012,2095107-1,136,2100546 - GCS Alarms,Repair Wiring
Tendring DC,http://statistics.data.gov.uk/id/local-authority-district/22UN,Life Opportunities,5480 - HRA - Repair & Maintenance,2018 - Other  Responsive Repairs,10/04/2012,1047948-1,26.5,REDACTED PERSONAL DATA,REDACTED PERSONAL DATA
Tendring DC,http://statistics.data.gov.uk/id/local-authority-district/22UN,Life Opportunities,8540 - Leisure Centre Clacton,4597 - Hired Services - Payments to Contractors,17/04/2012,2095497-1,120,2111734 - Georgina Hill,Gymnastics Coach 21/2/12 - 20/3/12
Tendring DC,http://statistics.data.gov.uk/id/local-authority-district/22UN,Life Opportunities,5800 - Brightlingsea Sports Centre,4597 - Hired Services - Payments to Contractors,17/04/2012,2095497-2,150,2111734 - Georgina Hill,Gymnastics Coach 21/2/12 - 20/3/12
Tendring DC,http://statistics.data.gov.uk/id/local-authority-district/22UN,Life Opportunities,5800 - Brightlingsea Sports Centre,4400 - Maintenance Under Service Agreements,17/04/2012,1048140-1,1536.7,2107273 - Gladstone MRM Limited,YR 5 OF 5
Tendring DC,http://statistics.data.gov.uk/id/local-authority-district/22UN,Life Opportunities,5820 - Harwich Sports Centre,4400 - Maintenance Under Service Agreements,17/04/2012,1048140-2,1536.7,2107273 - Gladstone MRM Limited,YR 5 OF 5
Tendring DC,http://statistics.data.gov.uk/id/local-authority-district/22UN,Life Opportunities,5860 - Manningtree Sports Centre,4400 - Maintenance Under Service Agreements,17/04/2012,1048140-3,1536.7,2107273 - Gladstone MRM Limited,YR 5 OF 5
Tendring DC,http://statistics.data.gov.uk/id/local-authority-district/22UN,Life Opportunities,8510 - Dovercourt Swimming Pool & All Weather Facilities,4400 - Maintenance Under Service Agreements,17/04/2012,1048140-4,2305.05,2107273 - Gladstone MRM Limited,YR 5 OF 5
Tendring DC,http://statistics.data.gov.uk/id/local-authority-district/22UN,Life Opportunities,8520 - Frinton & Walton Swimming Pool,4400 - Maintenance Under Service Agreements,17/04/2012,1048140-5,2305.05,2107273 - Gladstone MRM Limited,YR 5 OF 5
Tendring DC,http://statistics.data.gov.uk/id/local-authority-district/22UN,Life Opportunities,8540 - Leisure Centre Clacton,4400 - Maintenance Under Service Agreements,17/04/2012,1048140-6,6146.8,2107273 - Gladstone MRM Limited,YR 5 OF 5
Tendring DC,http://statistics.data.gov.uk/id/local-authority-district/22UN,Life Opportunities,8540 - Leisure Centre Clacton,2700 - Cleaning Materials,17/04/2012,1048135-1,69.4,2100509 - Granwax Products Ltd,
Tendring DC,http://statistics.data.gov.uk/id/local-authority-district/22UN,Life Opportunities,1880 - Office Accommodation Expenses,4446 - Bulk Bin Collection,24/04/2012,2095779-1,90.87,2111348 - Green Recycling Ltd,Green Recycling
Tendring DC,http://statistics.data.gov.uk/id/local-authority-district/22UN,Life Opportunities,5480 - HRA - Repair & Maintenance,2017 - Mechanical Equipment /Extract Fans,17/04/2012,1048147-1,75,REDACTED PERSONAL DATA,REDACTED PERSONAL DATA
Tendring DC,http://statistics.data.gov.uk/id/local-authority-district/22UN,Life Opportunities,5800 - Brightlingsea Sports Centre,5300 - Resaleable Items,17/04/2012,1048106-1,61.25,2100641 - Gymnastic Enterprises Ltd,
Tendring DC,http://statistics.data.gov.uk/id/local-authority-district/22UN,Life Opportunities,8540 - Leisure Centre Clacton,5300 - Resaleable Items,17/04/2012,1048106-2,157.5,2100641 - Gymnastic Enterprises Ltd,
Tendring DC,http://statistics.data.gov.uk/id/local-authority-district/22UN,Life Opportunities,8540 - Leisure Centre Clacton,5300 - Resaleable Items,17/04/2012,1048106-3,15.3,2100641 - Gymnastic Enterprises Ltd,
Tendring DC,http://statistics.data.gov.uk/id/local-authority-district/22UN,Life Opportunities,C178 - Refurbishment of Blue Chalet beach huts,C200 - Main Contractor,10/04/2012,1048026-1,2126.98,2104745 - Hamcor Construction Services Limited,3RD AND FINAL INST BLUE CHALETS
Tendring DC,http://statistics.data.gov.uk/id/local-authority-district/22UN,Life Opportunities,8510 - Dovercourt Swimming Pool & All Weather Facilities,2100 - Building Repairs,24/04/2012,2095656-1,132,2100653 - Harwich Glass & Window Co Ltd,Dovercourt Pool
Tendring DC,http://statistics.data.gov.uk/id/local-authority-district/22UN,Life Opportunities,5240 - HRA - Managing Tenancies,5242 - Tenant Relations,17/04/2012,1048187-1,124,REDACTED PERSONAL DATA,REDACTED PERSONAL DATA
Tendring DC,http://statistics.data.gov.uk/id/local-authority-district/22UN,Life Opportunities,8540 - Leisure Centre Clacton,1700 - Training - Courses,17/04/2012,2095496-1,75,REDACTED PERSONAL DATA,REDACTED PERSONAL DATA
Tendring DC,http://statistics.data.gov.uk/id/local-authority-district/22UN,Life Opportunities,8540 - Leisure Centre Clacton,2700 - Cleaning Materials,24/04/2012,1048349-1,1115.91,2100685 - Heron Cleaning Machine Services,
Tendring DC,http://statistics.data.gov.uk/id/local-authority-district/22UN,Life Opportunities,8520 - Frinton & Walton Swimming Pool,4000 - Furniture,10/04/2012,2095320-1,477,2100685 - Heron Cleaning Machine Services,Frinton & Walton Pool
Tendring DC,http://statistics.data.gov.uk/id/local-authority-district/22UN,Life Opportunities,8520 - Frinton & Walton Swimming Pool,2100 - Building Repairs,03/04/2012,2095241-1,155,2111080 - Homecraft Contracts Electrical Ltd,Frinton Pool
Tendring DC,http://statistics.data.gov.uk/id/local-authority-district/22UN,Life Opportunities,5880 - Management Of Sport & Leisure Facilities,2100 - Building Repairs,10/04/2012,1047965-1,1692.5,2101848 - Homecraft Contracts Ltd,DOVERCOURT POOL
Tendring DC,http://statistics.data.gov.uk/id/local-authority-district/22UN,Life Opportunities,8510 - Dovercourt Swimming Pool & All Weather Facilities,2100 - Building Repairs,10/04/2012,1047965-2,1887.5,2101848 - Homecraft Contracts Ltd,DOVERCOURT POOL
Tendring DC,http://statistics.data.gov.uk/id/local-authority-district/22UN,Life Opportunities,8510 - Dovercourt Swimming Pool & All Weather Facilities,2100 - Building Repairs,10/04/2012,1047966-1,742,2101848 - Homecraft Contracts Ltd,DOVERCOURT POOL
Tendring DC,http://statistics.data.gov.uk/id/local-authority-district/22UN,Life Opportunities,8520 - Frinton & Walton Swimming Pool,2100 - Building Repairs,24/04/2012,1048372-1,157,2101848 - Homecraft Contracts Ltd,FRINTON WALTON POOL
Tendring DC,http://statistics.data.gov.uk/id/local-authority-district/22UN,Life Opportunities,H920 - DFGs,C400 - Grant payments,03/04/2012,2095264-1,3436.24,REDACTED PERSONAL DATA,REDACTED PERSONAL DATA
Tendring DC,http://statistics.data.gov.uk/id/local-authority-district/22UN,Life Opportunities,H920 - DFGs,C400 - Grant payments,03/04/2012,2095266-1,1167.48,REDACTED PERSONAL DATA,REDACTED PERSONAL DATA
Tendring DC,http://statistics.data.gov.uk/id/local-authority-district/22UN,Life Opportunities,H920 - DFGs,C400 - Grant payments,03/04/2012,2095267-1,3140.02,REDACTED PERSONAL DATA,REDACTED PERSONAL DATA
Tendring DC,http://statistics.data.gov.uk/id/local-authority-district/22UN,Life Opportunities,8540 - Leisure Centre Clacton,2100 - Building Repairs,24/04/2012,2095609-1,390,2101848 - Homecraft Contracts Ltd,
Tendring DC,http://statistics.data.gov.uk/id/local-authority-district/22UN,Life Opportunities,5800 - Brightlingsea Sports Centre,4000 - Furniture,24/04/2012,1048312-1,54,2110178 - Horsemat Ltd,HORSEMAT.CO.UK
Tendring DC,http://statistics.data.gov.uk/id/local-authority-district/22UN,Life Opportunities,5260 - HRA - Rent Collection And Accounting,4460 - Legal & Professional Expenses,10/04/2012,1047956-1,371.7,REDACTED COMMERCIAL CONFIDENTIALITY,REDACTED COMMERCIAL CONFIDENTIALITY
Tendring DC,http://statistics.data.gov.uk/id/local-authority-district/22UN,Life Opportunities,1240 - Housing Services Service Unit,1700 - Training - Courses,24/04/2012,2095628-1,250,REDACTED COMMERCIAL CONFIDENTIALITY,REDACTED COMMERCIAL CONFIDENTIALITY
Tendring DC,http://statistics.data.gov.uk/id/local-authority-district/22UN,Life Opportunities,8540 - Leisure Centre Clacton,2100 - Building Repairs,17/04/2012,1048210-1,49,2100700 - Ian Barker Domestic Appliances,
Tendring DC,http://statistics.data.gov.uk/id/local-authority-district/22UN,Life Opportunities,8510 - Dovercourt Swimming Pool & All Weather Facilities,4300 - Printing & Stationery,17/04/2012,1048104-1,311,2106492 - Icon Creative Services Ltd,
Tendring DC,http://statistics.data.gov.uk/id/local-authority-district/22UN,Life Opportunities,8520 - Frinton & Walton Swimming Pool,4300 - Printing & Stationery,17/04/2012,1048104-2,311,2106492 - Icon Creative Services Ltd,
Tendring DC,http://statistics.data.gov.uk/id/local-authority-district/22UN,Life Opportunities,8540 - Leisure Centre Clacton,4300 - Printing & Stationery,17/04/2012,1048104-3,780,2106492 - Icon Creative Services Ltd,
Tendring DC,http://statistics.data.gov.uk/id/local-authority-district/22UN,Life Opportunities,1650 - Building Services Service Unit,4880 - Subscriptions Paid,17/04/2012,1048227-1,1903.34,2100790 - IHS (Global) Ltd,CIS CORE + CS ONLINE 12/13
Tendring DC,http://statistics.data.gov.uk/id/local-authority-district/22UN,Life Opportunities,1070 - Head of Public Experience and Administration Service Unit,6320 - IT Services Agreements Payment,17/04/2012,1048227-2,1903.33,2100790 - IHS (Global) Ltd,CIS CORE + CS ONLINE 12/13
Tendring DC,http://statistics.data.gov.uk/id/local-authority-district/22UN,Life Opportunities,1480 - Building Control Manager,4880 - Subscriptions Paid,17/04/2012,1048227-3,1903.33,2100790 - IHS (Global) Ltd,CIS CORE + CS ONLINE 12/13
Tendring DC,http://statistics.data.gov.uk/id/local-authority-district/22UN,Life Opportunities,6350 - Bodycare - Health Scheme for Schools,4597 - Hired Services - Payments to Contractors,24/04/2012,2095660-1,2000,2106676 - Inclusion Ventures Ltd,Contribution for Bodycare
Tendring DC,http://statistics.data.gov.uk/id/local-authority-district/22UN,Life Opportunities,6345 - Tendring Youth Activity Partnership,4597 - Hired Services - Payments to Contractors,24/04/2012,2095660-2,4000,2106676 - Inclusion Ventures Ltd,Contribution for Bodycare
Tendring DC,http://statistics.data.gov.uk/id/local-authority-district/22UN,Life Opportunities,8540 - Leisure Centre Clacton,4597 - Hired Services - Payments to Contractors,17/04/2012,1048100-1,890,2107101 - Inspiring Communities Ltd,
Tendring DC,http://statistics.data.gov.uk/id/local-authority-district/22UN,Life Opportunities,8520 - Frinton & Walton Swimming Pool,1700 - Training - Courses,03/04/2012,2095243-1,218,2100724 - IQL UK Ltd,Frinton Pool
Tendring DC,http://statistics.data.gov.uk/id/local-authority-district/22UN,Life Opportunities,8510 - Dovercourt Swimming Pool & All Weather Facilities,5300 - Resaleable Items,10/04/2012,1047963-1,262.7,2100755 - J P Lennard Ltd,DOVERCOURT POOL
Tendring DC,http://statistics.data.gov.uk/id/local-authority-district/22UN,Life Opportunities,8540 - Leisure Centre Clacton,4000 - Furniture,17/04/2012,1048154-1,777.37,2100755 - J P Lennard Ltd,
Tendring DC,http://statistics.data.gov.uk/id/local-authority-district/22UN,Life Opportunities,5800 - Brightlingsea Sports Centre,2100 - Building Repairs,24/04/2012,1048313-1,808.78,2100755 - J P Lennard Ltd,JP LENNARD
Tendring DC,http://statistics.data.gov.uk/id/local-authority-district/22UN,Life Opportunities,8540 - Leisure Centre Clacton,4000 - Furniture,24/04/2012,1048352-1,48.72,2100755 - J P Lennard Ltd,
Tendring DC,http://statistics.data.gov.uk/id/local-authority-district/22UN,Life Opportunities,8520 - Frinton & Walton Swimming Pool,5300 - Resaleable Items,24/04/2012,1048355-1,471.83,2100755 - J P Lennard Ltd,FRINTON WALTON POOL
Tendring DC,http://statistics.data.gov.uk/id/local-authority-district/22UN,Life Opportunities,8540 - Leisure Centre Clacton,4000 - Furniture,24/04/2012,1048367-1,261.85,2100755 - J P Lennard Ltd,
Tendring DC,http://statistics.data.gov.uk/id/local-authority-district/22UN,Life Opportunities,8510 - Dovercourt Swimming Pool & All Weather Facilities,5300 - Resaleable Items,03/04/2012,2095218-1,-5,2100755 - J P Lennard Ltd,Dovercourt Pool
Tendring DC,http://statistics.data.gov.uk/id/local-authority-district/22UN,Life Opportunities,8510 - Dovercourt Swimming Pool & All Weather Facilities,4000 - Furniture,03/04/2012,2095236-1,451.15,2100755 - J P Lennard Ltd,Dovercourt Pool
Tendring DC,http://statistics.data.gov.uk/id/local-authority-district/22UN,Life Opportunities,8520 - Frinton & Walton Swimming Pool,4000 - Furniture,10/04/2012,2095321-1,609.61,2100755 - J P Lennard Ltd,Frinton & Walton Pool
Tendring DC,http://statistics.data.gov.uk/id/local-authority-district/22UN,Life Opportunities,8520 - Frinton & Walton Swimming Pool,5300 - Resaleable Items,10/04/2012,2095385-1,340.15,2100755 - J P Lennard Ltd,Frinton Pool
Tendring DC,http://statistics.data.gov.uk/id/local-authority-district/22UN,Life Opportunities,5880 - Management Of Sport & Leisure Facilities,2100 - Building Repairs,24/04/2012,2095607-1,653.5,2100755 - J P Lennard Ltd,J P Lennard
Tendring DC,http://statistics.data.gov.uk/id/local-authority-district/22UN,Life Opportunities,8540 - Leisure Centre Clacton,4000 - Furniture,24/04/2012,2095652-1,214.8,2100755 - J P Lennard Ltd,
Tendring DC,http://statistics.data.gov.uk/id/local-authority-district/22UN,Life Opportunities,8510 - Dovercourt Swimming Pool & All Weather Facilities,4000 - Furniture,24/04/2012,2095658-1,146.84,2100755 - J P Lennard Ltd,Dovercourt Pool
Tendring DC,http://statistics.data.gov.uk/id/local-authority-district/22UN,Life Opportunities,8540 - Leisure Centre Clacton,4597 - Hired Services - Payments to Contractors,17/04/2012,1048162-1,210,REDACTED PERSONAL DATA,REDACTED PERSONAL DATA
Tendring DC,http://statistics.data.gov.uk/id/local-authority-district/22UN,Life Opportunities,8540 - Leisure Centre Clacton,9200 - Course Income,24/04/2012,2095616-1,22.4,REDACTED PERSONAL DATA,REDACTED PERSONAL DATA
Tendring DC,http://statistics.data.gov.uk/id/local-authority-district/22UN,Life Opportunities,8520 - Frinton & Walton Swimming Pool,5311 - General Provisions - Vending,10/04/2012,2095318-1,134.49,2109088 - JC Vending Services,Frinton & Walton Pool
Tendring DC,http://statistics.data.gov.uk/id/local-authority-district/22UN,Life Opportunities,5800 - Brightlingsea Sports Centre,1180 - Instructors / Coaches Fee,17/04/2012,1048170-1,55,REDACTED PERSONAL DATA,REDACTED PERSONAL DATA
Tendring DC,http://statistics.data.gov.uk/id/local-authority-district/22UN,Life Opportunities,8540 - Leisure Centre Clacton,4597 - Hired Services - Payments to Contractors,17/04/2012,2095499-1,180,REDACTED PERSONAL DATA,REDACTED PERSONAL DATA
Tendring DC,http://statistics.data.gov.uk/id/local-authority-district/22UN,Life Opportunities,8540 - Leisure Centre Clacton,4597 - Hired Services - Payments to Contractors,17/04/2012,1048108-1,226.8,2107243 - Juice for Life Ltd,W/E 26.2.12
Tendring DC,http://statistics.data.gov.uk/id/local-authority-district/22UN,Life Opportunities,8540 - Leisure Centre Clacton,4597 - Hired Services - Payments to Contractors,17/04/2012,1048109-1,228.75,2107243 - Juice for Life Ltd,W/E 11.3.12
Tendring DC,http://statistics.data.gov.uk/id/local-authority-district/22UN,Life Opportunities,8540 - Leisure Centre Clacton,5500 - Miscellaneous Expenses,17/04/2012,1048124-1,74.5,2107243 - Juice for Life Ltd,W/E 18.3.12
Tendring DC,http://statistics.data.gov.uk/id/local-authority-district/22UN,Life Opportunities,8540 - Leisure Centre Clacton,4597 - Hired Services - Payments to Contractors,17/04/2012,1048125-1,238.75,2107243 - Juice for Life Ltd,W/E 18.3.12
Tendring DC,http://statistics.data.gov.uk/id/local-authority-district/22UN,Life Opportunities,8540 - Leisure Centre Clacton,5500 - Miscellaneous Expenses,17/04/2012,1048126-1,82.95,2107243 - Juice for Life Ltd,W/E 25.3.12
Tendring DC,http://statistics.data.gov.uk/id/local-authority-district/22UN,Life Opportunities,8540 - Leisure Centre Clacton,4597 - Hired Services - Payments to Contractors,17/04/2012,1048127-1,213.75,2107243 - Juice for Life Ltd,W/E 25.3.12
Tendring DC,http://statistics.data.gov.uk/id/local-authority-district/22UN,Life Opportunities,8540 - Leisure Centre Clacton,5500 - Miscellaneous Expenses,17/04/2012,1048128-1,100,2107243 - Juice for Life Ltd,BUFFET 14.3.12
Tendring DC,http://statistics.data.gov.uk/id/local-authority-district/22UN,Life Opportunities,8540 - Leisure Centre Clacton,5500 - Miscellaneous Expenses,17/04/2012,1048129-1,77.94,2107243 - Juice for Life Ltd,W/E 11.3.12
Tendring DC,http://statistics.data.gov.uk/id/local-authority-district/22UN,Life Opportunities,8540 - Leisure Centre Clacton,5500 - Miscellaneous Expenses,17/04/2012,1048156-1,79.5,2107243 - Juice for Life Ltd,W/E 1.4.12
Tendring DC,http://statistics.data.gov.uk/id/local-authority-district/22UN,Life Opportunities,8540 - Leisure Centre Clacton,4597 - Hired Services - Payments to Contractors,17/04/2012,1048157-1,256.25,2107243 - Juice for Life Ltd,W/E 1.4.12
Tendring DC,http://statistics.data.gov.uk/id/local-authority-district/22UN,Life Opportunities,8540 - Leisure Centre Clacton,4597 - Hired Services - Payments to Contractors,24/04/2012,1048358-1,212.4,2107243 - Juice for Life Ltd,W/E 8.4.12
Tendring DC,http://statistics.data.gov.uk/id/local-authority-district/22UN,Life Opportunities,8540 - Leisure Centre Clacton,5500 - Miscellaneous Expenses,24/04/2012,1048366-1,63.4,2107243 - Juice for Life Ltd,W/E 8.4.12
Tendring DC,http://statistics.data.gov.uk/id/local-authority-district/22UN,Life Opportunities,8540 - Leisure Centre Clacton,4597 - Hired Services - Payments to Contractors,17/04/2012,1048123-1,75,2111123 - K Dwan,MARCH
Tendring DC,http://statistics.data.gov.uk/id/local-authority-district/22UN,Life Opportunities,8540 - Leisure Centre Clacton,4597 - Hired Services - Payments to Contractors,24/04/2012,1048369-1,60,2111123 - K Dwan,APRIL
Tendring DC,http://statistics.data.gov.uk/id/local-authority-district/22UN,Life Opportunities,6160 - Princes Theatre,4000 - Furniture,03/04/2012,2095111-1,184,2103413 - K H Catering Equipment Hire,Table Hire 9/3/12
Tendring DC,http://statistics.data.gov.uk/id/local-authority-district/22UN,Life Opportunities,5860 - Manningtree Sports Centre,4597 - Hired Services - Payments to Contractors,24/04/2012,1048298-1,225,2100016 - Kemp Rust Consulting Ltd,MANNINGTREE SPORTS CENTRE
Tendring DC,http://statistics.data.gov.uk/id/local-authority-district/22UN,Life Opportunities,5880 - Management Of Sport & Leisure Facilities,2100 - Building Repairs,17/04/2012,1048153-1,86.76,2100820 - Kent Blaxill & Co Ltd,JOHNSTONES STORMSHIELD
Tendring DC,http://statistics.data.gov.uk/id/local-authority-district/22UN,Life Opportunities,5820 - Harwich Sports Centre,2308 - Energy Costs - Gas (Including LPG),03/04/2012,2095130-1,1302.96,2105075 - Kent County Council,Gas
Tendring DC,http://statistics.data.gov.uk/id/local-authority-district/22UN,Life Opportunities,5820 - Harwich Sports Centre,5300 - Resaleable Items,03/04/2012,2095119-1,62.85,2100870 - Kingswood Leisure Services Ltd,Resale Stock
Tendring DC,http://statistics.data.gov.uk/id/local-authority-district/22UN,Life Opportunities,5860 - Manningtree Sports Centre,4601 - Hired services - Cleaning,17/04/2012,1048169-1,374,2100851 - KO-SHEEN Contract Cleaning Ltd,CONTRACT CLEANING MARCH
Tendring DC,http://statistics.data.gov.uk/id/local-authority-district/22UN,Life Opportunities,5360 - HRA - Sheltered Units,4601 - Hired services - Cleaning,10/04/2012,2095400-1,588.88,2100851 - KO-SHEEN Contract Cleaning Ltd,Cleaning @ Belmans
Tendring DC,http://statistics.data.gov.uk/id/local-authority-district/22UN,Life Opportunities,5360 - HRA - Sheltered Units,4601 - Hired services - Cleaning,10/04/2012,2095401-1,374,2100851 - KO-SHEEN Contract Cleaning Ltd,Cleaning @ Spendells
Tendring DC,http://statistics.data.gov.uk/id/local-authority-district/22UN,Life Opportunities,5360 - HRA - Sheltered Units,4601 - Hired services - Cleaning,10/04/2012,2095402-1,246.5,2100851 - KO-SHEEN Contract Cleaning Ltd,Cover Cleaning & Honeycroft
Tendring DC,http://statistics.data.gov.uk/id/local-authority-district/22UN,Life Opportunities,8510 - Dovercourt Swimming Pool & All Weather Facilities,5160 - Advertising,03/04/2012,2095122-1,93.75,2104253 - Local Authority Publishing Co Ltd,Dovercourt Pool
Tendring DC,http://statistics.data.gov.uk/id/local-authority-district/22UN,Life Opportunities,8540 - Leisure Centre Clacton,5160 - Advertising,17/04/2012,1048120-1,904,2107277 - Look 5 Ltd,
Tendring DC,http://statistics.data.gov.uk/id/local-authority-district/22UN,Life Opportunities,8540 - Leisure Centre Clacton,5160 - Advertising,24/04/2012,1048362-1,298,2107277 - Look 5 Ltd,
Tendring DC,http://statistics.data.gov.uk/id/local-authority-district/22UN,Life Opportunities,5860 - Manningtree Sports Centre,4597 - Hired Services - Payments to Contractors,10/04/2012,1047970-1,175,2112059 - Louise Sanders,PILATES CLASSES
Tendring DC,http://statistics.data.gov.uk/id/local-authority-district/22UN,Life Opportunities,5860 - Manningtree Sports Centre,4597 - Hired Services - Payments to Contractors,24/04/2012,2095664-1,140,2112059 - Louise Sanders,Pilates Instructor
Tendring DC,http://statistics.data.gov.uk/id/local-authority-district/22UN,Life Opportunities,8520 - Frinton & Walton Swimming Pool,1700 - Training - Courses,17/04/2012,2095495-1,35,2112170 - Lynn Williamson,L Williamson
Tendring DC,http://statistics.data.gov.uk/id/local-authority-district/22UN,Life Opportunities,8540 - Leisure Centre Clacton,1700 - Training - Courses,17/04/2012,2095495-2,35,2112170 - Lynn Williamson,L Williamson
Tendring DC,http://statistics.data.gov.uk/id/local-authority-district/22UN,Life Opportunities,1050 - Leisure Service Unit,4300 - Printing & Stationery,17/04/2012,1048149-1,0.95,2110099 - Lyreco UK Ltd,STATIONERY
Tendring DC,http://statistics.data.gov.uk/id/local-authority-district/22UN,Life Opportunities,1650 - Building Services Service Unit,4300 - Printing & Stationery,17/04/2012,1048215-1,22.84,2110099 - Lyreco UK Ltd,STATIONERY ORDER
Tendring DC,http://statistics.data.gov.uk/id/local-authority-district/22UN,Life Opportunities,1670 - Engineering Services Manager,4300 - Printing & Stationery,17/04/2012,1048215-2,22.84,2110099 - Lyreco UK Ltd,STATIONERY ORDER
Tendring DC,http://statistics.data.gov.uk/id/local-authority-district/22UN,Life Opportunities,1650 - Building Services Service Unit,4300 - Printing & Stationery,17/04/2012,1048216-1,18.49,2110099 - Lyreco UK Ltd,SQUARE CUT FILES
Tendring DC,http://statistics.data.gov.uk/id/local-authority-district/22UN,Life Opportunities,1670 - Engineering Services Manager,4300 - Printing & Stationery,17/04/2012,1048216-2,3.9,2110099 - Lyreco UK Ltd,SQUARE CUT FILES
Tendring DC,http://statistics.data.gov.uk/id/local-authority-district/22UN,Life Opportunities,1050 - Leisure Service Unit,4300 - Printing & Stationery,03/04/2012,2095118-1,2.99,2110099 - Lyreco UK Ltd,Stationery
Tendring DC,http://statistics.data.gov.uk/id/local-authority-district/22UN,Life Opportunities,5240 - HRA - Managing Tenancies,4312 - Tenancy Stationery,03/04/2012,2095142-1,51.72,REDACTED COMMERCIAL CONFIDENTIALITY,REDACTED COMMERCIAL CONFIDENTIALITY
Tendring DC,http://statistics.data.gov.uk/id/local-authority-district/22UN,Life Opportunities,5240 - HRA - Managing Tenancies,4312 - Tenancy Stationery,03/04/2012,2095143-1,36.16,REDACTED COMMERCIAL CONFIDENTIALITY,REDACTED COMMERCIAL CONFIDENTIALITY
Tendring DC,http://statistics.data.gov.uk/id/local-authority-district/22UN,Life Opportunities,5240 - HRA - Managing Tenancies,4312 - Tenancy Stationery,03/04/2012,2095144-1,8.87,REDACTED COMMERCIAL CONFIDENTIALITY,REDACTED COMMERCIAL CONFIDENTIALITY
Tendring DC,http://statistics.data.gov.uk/id/local-authority-district/22UN,Life Opportunities,5240 - HRA - Managing Tenancies,4312 - Tenancy Stationery,24/04/2012,2095626-1,115.17,REDACTED COMMERCIAL CONFIDENTIALITY,REDACTED COMMERCIAL CONFIDENTIALITY
Tendring DC,http://statistics.data.gov.uk/id/local-authority-district/22UN,Life Opportunities,5240 - HRA - Managing Tenancies,4312 - Tenancy Stationery,24/04/2012,2095626-2,14.99,REDACTED COMMERCIAL CONFIDENTIALITY,REDACTED COMMERCIAL CONFIDENTIALITY
Tendring DC,http://statistics.data.gov.uk/id/local-authority-district/22UN,Life Opportunities,8540 - Leisure Centre Clacton,4300 - Printing & Stationery,24/04/2012,2095654-1,94.38,2110099 - Lyreco UK Ltd,
Tendring DC,http://statistics.data.gov.uk/id/local-authority-district/22UN,Life Opportunities,1650 - Building Services Service Unit,4300 - Printing & Stationery,24/04/2012,2095789-1,1.95,2110099 - Lyreco UK Ltd,2D Ring Binder
Tendring DC,http://statistics.data.gov.uk/id/local-authority-district/22UN,Life Opportunities,1650 - Building Services Service Unit,4300 - Printing & Stationery,24/04/2012,2095790-1,19.64,2110099 - Lyreco UK Ltd,A5 Binders
Tendring DC,http://statistics.data.gov.uk/id/local-authority-district/22UN,Life Opportunities,8540 - Leisure Centre Clacton,4400 - Maintenance Under Service Agreements,24/04/2012,1048363-1,85,REDACTED PERSONAL DATA,REDACTED PERSONAL DATA
Tendring DC,http://statistics.data.gov.uk/id/local-authority-district/22UN,Life Opportunities,6160 - Princes Theatre,4080 - Materials & Consumables,24/04/2012,2095668-1,20.07,2105052 - Maddisons,Coffe/Cups
Tendring DC,http://statistics.data.gov.uk/id/local-authority-district/22UN,Life Opportunities,6160 - Princes Theatre,4080 - Materials & Consumables,24/04/2012,2095668-2,32.49,2105052 - Maddisons,Coffe/Cups
Tendring DC,http://statistics.data.gov.uk/id/local-authority-district/22UN,Life Opportunities,8125 - Horticultural Services,4597 - Hired Services - Payments to Contractors,10/04/2012,1047982-1,436.63,2102406 - Manpower UK Ltd,MAINT W/E 4/3
Tendring DC,http://statistics.data.gov.uk/id/local-authority-district/22UN,Life Opportunities,8540 - Leisure Centre Clacton,2100 - Building Repairs,17/04/2012,1048101-1,1741.25,2111673 - Maplin Mechanical Services Ltd,
Tendring DC,http://statistics.data.gov.uk/id/local-authority-district/22UN,Life Opportunities,8540 - Leisure Centre Clacton,2100 - Building Repairs,17/04/2012,1048102-1,627.6,2111673 - Maplin Mechanical Services Ltd,
Tendring DC,http://statistics.data.gov.uk/id/local-authority-district/22UN,Life Opportunities,8540 - Leisure Centre Clacton,2100 - Building Repairs,17/04/2012,1048103-1,598.6,2111673 - Maplin Mechanical Services Ltd,
Tendring DC,http://statistics.data.gov.uk/id/local-authority-district/22UN,Life Opportunities,5140 - Homelessness,4680 - Bed & Breakfast Accommodation,17/04/2012,1048202-1,140,REDACTED PERSONAL DATA,REDACTED PERSONAL DATA
Tendring DC,http://statistics.data.gov.uk/id/local-authority-district/22UN,Life Opportunities,5140 - Homelessness,9032 - Homelessness Accommodation Charges,17/04/2012,1048202-2,-14.18,REDACTED PERSONAL DATA,REDACTED PERSONAL DATA
Tendring DC,http://statistics.data.gov.uk/id/local-authority-district/22UN,Life Opportunities,5140 - Homelessness,4680 - Bed & Breakfast Accommodation,17/04/2012,1048203-1,140,REDACTED PERSONAL DATA,REDACTED PERSONAL DATA
Tendring DC,http://statistics.data.gov.uk/id/local-authority-district/22UN,Life Opportunities,5140 - Homelessness,9032 - Homelessness Accommodation Charges,17/04/2012,1048203-2,-14.18,REDACTED PERSONAL DATA,REDACTED PERSONAL DATA
Tendring DC,http://statistics.data.gov.uk/id/local-authority-district/22UN,Life Opportunities,5140 - Homelessness,4680 - Bed & Breakfast Accommodation,17/04/2012,1048204-1,140,REDACTED PERSONAL DATA,REDACTED PERSONAL DATA
Tendring DC,http://statistics.data.gov.uk/id/local-authority-district/22UN,Life Opportunities,5140 - Homelessness,9032 - Homelessness Accommodation Charges,17/04/2012,1048204-2,-14.18,REDACTED PERSONAL DATA,REDACTED PERSONAL DATA
Tendring DC,http://statistics.data.gov.uk/id/local-authority-district/22UN,Life Opportunities,5140 - Homelessness,4680 - Bed & Breakfast Accommodation,17/04/2012,1048205-1,140,REDACTED PERSONAL DATA,REDACTED PERSONAL DATA
Tendring DC,http://statistics.data.gov.uk/id/local-authority-district/22UN,Life Opportunities,5140 - Homelessness,9032 - Homelessness Accommodation Charges,17/04/2012,1048205-2,-14.18,REDACTED PERSONAL DATA,REDACTED PERSONAL DATA
Tendring DC,http://statistics.data.gov.uk/id/local-authority-district/22UN,Life Opportunities,5140 - Homelessness,4680 - Bed & Breakfast Accommodation,17/04/2012,1048206-1,140,REDACTED PERSONAL DATA,REDACTED PERSONAL DATA
Tendring DC,http://statistics.data.gov.uk/id/local-authority-district/22UN,Life Opportunities,5140 - Homelessness,9032 - Homelessness Accommodation Charges,17/04/2012,1048206-2,-14.18,REDACTED PERSONAL DATA,REDACTED PERSONAL DATA
Tendring DC,http://statistics.data.gov.uk/id/local-authority-district/22UN,Life Opportunities,5140 - Homelessness,4680 - Bed & Breakfast Accommodation,17/04/2012,1048207-1,300,REDACTED PERSONAL DATA,REDACTED PERSONAL DATA
Tendring DC,http://statistics.data.gov.uk/id/local-authority-district/22UN,Life Opportunities,5140 - Homelessness,9032 - Homelessness Accommodation Charges,17/04/2012,1048207-2,-6.09,REDACTED PERSONAL DATA,REDACTED PERSONAL DATA
Tendring DC,http://statistics.data.gov.uk/id/local-authority-district/22UN,Life Opportunities,5140 - Homelessness,4680 - Bed & Breakfast Accommodation,24/04/2012,2095593-1,700,REDACTED PERSONAL DATA,REDACTED PERSONAL DATA
Tendring DC,http://statistics.data.gov.uk/id/local-authority-district/22UN,Life Opportunities,5140 - Homelessness,9032 - Homelessness Accommodation Charges,24/04/2012,2095593-2,-14.18,REDACTED PERSONAL DATA,REDACTED PERSONAL DATA
Tendring DC,http://statistics.data.gov.uk/id/local-authority-district/22UN,Life Opportunities,5140 - Homelessness,4680 - Bed & Breakfast Accommodation,24/04/2012,2095594-1,140,REDACTED PERSONAL DATA,REDACTED PERSONAL DATA
Tendring DC,http://statistics.data.gov.uk/id/local-authority-district/22UN,Life Opportunities,5140 - Homelessness,4683 - Other Homelessness Expenses,24/04/2012,2095737-1,284.77,REDACTED PERSONAL DATA,REDACTED PERSONAL DATA
Tendring DC,http://statistics.data.gov.uk/id/local-authority-district/22UN,Life Opportunities,5140 - Homelessness,4683 - Other Homelessness Expenses,24/04/2012,2095839-1,450,REDACTED PERSONAL DATA,REDACTED PERSONAL DATA
Tendring DC,http://statistics.data.gov.uk/id/local-authority-district/22UN,Life Opportunities,9920 - HRA Balance Sheet,B860 - Housing Rents - Cash,24/04/2012,2095743-1,11.07,REDACTED PERSONAL DATA,REDACTED PERSONAL DATA
Tendring DC,http://statistics.data.gov.uk/id/local-authority-district/22UN,Life Opportunities,6160 - Princes Theatre,4040 - Equipment & Tools,03/04/2012,2095110-1,3202,2111908 - MJH Creative Solutions Ltd,Speaker/Amplifier
Tendring DC,http://statistics.data.gov.uk/id/local-authority-district/22UN,Life Opportunities,H710 - Selected Improvements,C200 - Main Contractor,03/04/2012,2095095-1,480,2111984 - MLM Consulting Engineers Ltd,Solar / PV Assessment
Tendring DC,http://statistics.data.gov.uk/id/local-authority-district/22UN,Life Opportunities,8540 - Leisure Centre Clacton,4400 - Maintenance Under Service Agreements,17/04/2012,1048095-1,60.4,2104791 - Mobile Mini Uk Ltd,15/2/12-13/3/12
Tendring DC,http://statistics.data.gov.uk/id/local-authority-district/22UN,Life Opportunities,8540 - Leisure Centre Clacton,4400 - Maintenance Under Service Agreements,17/04/2012,1048165-1,60.4,2104791 - Mobile Mini Uk Ltd,14/3/12-10/4/12
Tendring DC,http://statistics.data.gov.uk/id/local-authority-district/22UN,Life Opportunities,6160 - Princes Theatre,4622 - Hired Services - Artistes and Production Companies,17/04/2012,1048151-1,2309.38,2106879 - Morningside Management Ltd,ELVIS SETTLEMENT
Tendring DC,http://statistics.data.gov.uk/id/local-authority-district/22UN,Life Opportunities,9920 - HRA Balance Sheet,B860 - Housing Rents - Cash,24/04/2012,2095745-1,211.1,REDACTED PERSONAL DATA,REDACTED PERSONAL DATA
Tendring DC,http://statistics.data.gov.uk/id/local-authority-district/22UN,Life Opportunities,H920 - DFGs,C400 - Grant payments,03/04/2012,2095269-1,2378.5,REDACTED PERSONAL DATA,REDACTED PERSONAL DATA
Tendring DC,http://statistics.data.gov.uk/id/local-authority-district/22UN,Life Opportunities,5240 - HRA - Managing Tenancies,6620 - Under Occupation Incentive Scheme,10/04/2012,2095365-1,750,REDACTED PERSONAL DATA,REDACTED PERSONAL DATA
Tendring DC,http://statistics.data.gov.uk/id/local-authority-district/22UN,Life Opportunities,9920 - HRA Balance Sheet,B860 - Housing Rents - Cash,24/04/2012,2095747-1,137.22,REDACTED PERSONAL DATA,REDACTED PERSONAL DATA
Tendring DC,http://statistics.data.gov.uk/id/local-authority-district/22UN,Life Opportunities,9920 - HRA Balance Sheet,B860 - Housing Rents - Cash,24/04/2012,2095740-1,4.94,REDACTED PERSONAL DATA,REDACTED PERSONAL DATA
Tendring DC,http://statistics.data.gov.uk/id/local-authority-district/22UN,Life Opportunities,9920 - HRA Balance Sheet,B860 - Housing Rents - Cash,24/04/2012,2095746-1,121.16,REDACTED PERSONAL DATA,REDACTED PERSONAL DATA
Tendring DC,http://statistics.data.gov.uk/id/local-authority-district/22UN,Life Opportunities,9920 - HRA Balance Sheet,B860 - Housing Rents - Cash,24/04/2012,2095852-1,105.35,REDACTED PERSONAL DATA,REDACTED PERSONAL DATA
Tendring DC,http://statistics.data.gov.uk/id/local-authority-district/22UN,Life Opportunities,5140 - Homelessness,4683 - Other Homelessness Expenses,24/04/2012,2095838-1,250,REDACTED PERSONAL DATA,REDACTED PERSONAL DATA
Tendring DC,http://statistics.data.gov.uk/id/local-authority-district/22UN,Life Opportunities,6160 - Princes Theatre,4040 - Equipment & Tools,03/04/2012,2095134-1,150,2103915 - MRL Productions,Hire Projector
Tendring DC,http://statistics.data.gov.uk/id/local-authority-district/22UN,Life Opportunities,5360 - HRA - Sheltered Units,2208 - Wardens' Allowance,10/04/2012,2095360-1,152.33,REDACTED PERSONAL DATA,REDACTED PERSONAL DATA
Tendring DC,http://statistics.data.gov.uk/id/local-authority-district/22UN,Life Opportunities,9920 - HRA Balance Sheet,B860 - Housing Rents - Cash,24/04/2012,2095748-1,946.66,REDACTED PERSONAL DATA,REDACTED PERSONAL DATA
Tendring DC,http://statistics.data.gov.uk/id/local-authority-district/22UN,Life Opportunities,5240 - HRA - Managing Tenancies,6620 - Under Occupation Incentive Scheme,03/04/2012,2095199-1,464.8,REDACTED PERSONAL DATA,REDACTED PERSONAL DATA
Tendring DC,http://statistics.data.gov.uk/id/local-authority-district/22UN,Life Opportunities,9920 - HRA Balance Sheet,B860 - Housing Rents - Cash,24/04/2012,2095749-1,123.68,REDACTED PERSONAL DATA,REDACTED PERSONAL DATA
Tendring DC,http://statistics.data.gov.uk/id/local-authority-district/22UN,Life Opportunities,9920 - HRA Balance Sheet,B860 - Housing Rents - Cash,24/04/2012,2095744-1,128.33,REDACTED PERSONAL DATA,REDACTED PERSONAL DATA
Tendring DC,http://statistics.data.gov.uk/id/local-authority-district/22UN,Life Opportunities,5240 - HRA - Managing Tenancies,6625 - Tenants Compensation Scheme,03/04/2012,2095202-1,25,REDACTED PERSONAL DATA,REDACTED PERSONAL DATA
Tendring DC,http://statistics.data.gov.uk/id/local-authority-district/22UN,Life Opportunities,6740 - Careline,9050 - Careline Income,03/04/2012,2095261-1,14.38,REDACTED PERSONAL DATA,REDACTED PERSONAL DATA
Tendring DC,http://statistics.data.gov.uk/id/local-authority-district/22UN,Life Opportunities,9920 - HRA Balance Sheet,B860 - Housing Rents - Cash,24/04/2012,2095739-1,51.6,REDACTED PERSONAL DATA,REDACTED PERSONAL DATA
Tendring DC,http://statistics.data.gov.uk/id/local-authority-district/22UN,Life Opportunities,5140 - Homelessness,4683 - Other Homelessness Expenses,24/04/2012,2095840-1,135,REDACTED PERSONAL DATA,REDACTED PERSONAL DATA
Tendring DC,http://statistics.data.gov.uk/id/local-authority-district/22UN,Life Opportunities,5140 - Homelessness,4680 - Bed & Breakfast Accommodation,24/04/2012,2095733-1,270,REDACTED PERSONAL DATA,REDACTED PERSONAL DATA
Tendring DC,http://statistics.data.gov.uk/id/local-authority-district/22UN,Life Opportunities,8530 - Brightlingsea Swimming Pool,2100 - Building Repairs,17/04/2012,1048093-1,165,2100967 - N Rudelhoff,
Tendring DC,http://statistics.data.gov.uk/id/local-authority-district/22UN,Life Opportunities,8540 - Leisure Centre Clacton,2100 - Building Repairs,17/04/2012,1048134-1,592,2100967 - N Rudelhoff,
Tendring DC,http://statistics.data.gov.uk/id/local-authority-district/22UN,Life Opportunities,6160 - Princes Theatre,2100 - Building Repairs,03/04/2012,2095135-1,368,2100967 - N Rudelhoff,Princes Theatre Work
Tendring DC,http://statistics.data.gov.uk/id/local-authority-district/22UN,Life Opportunities,6350 - Bodycare - Health Scheme for Schools,4597 - Hired Services - Payments to Contractors,03/04/2012,2095112-1,180,2102849 - Nacro,Bodycare Delivery
Tendring DC,http://statistics.data.gov.uk/id/local-authority-district/22UN,Life Opportunities,H705 - Window/Door Replacement,C200 - Main Contractor,17/04/2012,1048219-1,100,REDACTED PERSONAL DATA,REDACTED PERSONAL DATA
Tendring DC,http://statistics.data.gov.uk/id/local-authority-district/22UN,Life Opportunities,7600 - Tourist Information Centres,9356 - Commission Sales,10/04/2012,2095355-1,1412.94,2110032 - National Express Ltd,March Commission
Tendring DC,http://statistics.data.gov.uk/id/local-authority-district/22UN,Life Opportunities,1240 - Housing Services Service Unit,1700 - Training - Courses,03/04/2012,2095140-1,325,2111356 - National Housing Federation,R Stirling - Housing Adaptations
Tendring DC,http://statistics.data.gov.uk/id/local-authority-district/22UN,Life Opportunities,8540 - Leisure Centre Clacton,9275 - Lifestyles Plus - DD,17/04/2012,2095501-1,35.83,REDACTED PERSONAL DATA,REDACTED PERSONAL DATA
Tendring DC,http://statistics.data.gov.uk/id/local-authority-district/22UN,Life Opportunities,6160 - Princes Theatre,5160 - Advertising,10/04/2012,1047961-1,129.5,2100989 - Newsquest (London) Ltd,THEATRE ADS
Tendring DC,http://statistics.data.gov.uk/id/local-authority-district/22UN,Life Opportunities,8540 - Leisure Centre Clacton,5160 - Advertising,17/04/2012,1048097-1,300,2100989 - Newsquest (London) Ltd,
Tendring DC,http://statistics.data.gov.uk/id/local-authority-district/22UN,Life Opportunities,5040 - Home Energy Conservation Act,5161 - Advertising and Promotion,24/04/2012,1048305-1,265.5,REDACTED COMMERCIAL CONFIDENTIALITY,REDACTED COMMERCIAL CONFIDENTIALITY
Tendring DC,http://statistics.data.gov.uk/id/local-authority-district/22UN,Life Opportunities,5040 - Home Energy Conservation Act,5161 - Advertising and Promotion,24/04/2012,1048306-1,265.5,REDACTED COMMERCIAL CONFIDENTIALITY,REDACTED COMMERCIAL CONFIDENTIALITY
Tendring DC,http://statistics.data.gov.uk/id/local-authority-district/22UN,Life Opportunities,8540 - Leisure Centre Clacton,5160 - Advertising,24/04/2012,1048379-1,450,2100989 - Newsquest (London) Ltd,
Tendring DC,http://statistics.data.gov.uk/id/local-authority-district/22UN,Life Opportunities,6160 - Princes Theatre,5160 - Advertising,03/04/2012,2095108-1,129.5,2100989 - Newsquest (London) Ltd,Theatre Adverts
Tendring DC,http://statistics.data.gov.uk/id/local-authority-district/22UN,Life Opportunities,7560 - Tourism Publications,4668 - Production Expenses,24/04/2012,2095638-1,450,REDACTED PERSONAL DATA,REDACTED PERSONAL DATA
Tendring DC,http://statistics.data.gov.uk/id/local-authority-district/22UN,Life Opportunities,6160 - Princes Theatre,5160 - Advertising,24/04/2012,2095677-1,67.9,2100989 - Newsquest (London) Ltd,Theatre Adverts
Tendring DC,http://statistics.data.gov.uk/id/local-authority-district/22UN,Life Opportunities,6160 - Princes Theatre,5160 - Advertising,24/04/2012,2095678-1,185,2100989 - Newsquest (London) Ltd,Theatre Adverts
Tendring DC,http://statistics.data.gov.uk/id/local-authority-district/22UN,Life Opportunities,5140 - Homelessness,4683 - Other Homelessness Expenses,24/04/2012,2095736-1,50,REDACTED PERSONAL DATA,REDACTED PERSONAL DATA
Tendring DC,http://statistics.data.gov.uk/id/local-authority-district/22UN,Life Opportunities,5140 - Homelessness,4683 - Other Homelessness Expenses,24/04/2012,2095834-1,292.02,REDACTED PERSONAL DATA,REDACTED PERSONAL DATA
Tendring DC,http://statistics.data.gov.uk/id/local-authority-district/22UN,Life Opportunities,5140 - Homelessness,4683 - Other Homelessness Expenses,24/04/2012,2095837-1,600,REDACTED PERSONAL DATA,REDACTED PERSONAL DATA
Tendring DC,http://statistics.data.gov.uk/id/local-authority-district/22UN,Life Opportunities,5140 - Homelessness,4683 - Other Homelessness Expenses,17/04/2012,1048188-1,85,REDACTED PERSONAL DATA,REDACTED PERSONAL DATA
Tendring DC,http://statistics.data.gov.uk/id/local-authority-district/22UN,Life Opportunities,5240 - HRA - Managing Tenancies,4644 - Energy Performance Certificate Costs,24/04/2012,2095630-1,1211.42,REDACTED PERSONAL DATA,REDACTED PERSONAL DATA
Tendring DC,http://statistics.data.gov.uk/id/local-authority-district/22UN,Life Opportunities,8540 - Leisure Centre Clacton,4400 - Maintenance Under Service Agreements,17/04/2012,1048094-1,50.5,2108273 - Nursing & Hygeine Maintenance,
Tendring DC,http://statistics.data.gov.uk/id/local-authority-district/22UN,Life Opportunities,5140 - Homelessness,4683 - Other Homelessness Expenses,24/04/2012,2095731-1,435,REDACTED PERSONAL DATA,REDACTED PERSONAL DATA
Tendring DC,http://statistics.data.gov.uk/id/local-authority-district/22UN,Life Opportunities,1650 - Building Services Service Unit,4300 - Printing & Stationery,24/04/2012,1048295-1,3.8,2101051 - OCE (UK) Ltd,2 ROLLCOPIER COPIES
Tendring DC,http://statistics.data.gov.uk/id/local-authority-district/22UN,Life Opportunities,1670 - Engineering Services Manager,4300 - Printing & Stationery,24/04/2012,1048295-2,3.81,2101051 - OCE (UK) Ltd,2 ROLLCOPIER COPIES
Tendring DC,http://statistics.data.gov.uk/id/local-authority-district/22UN,Life Opportunities,1650 - Building Services Service Unit,4400 - Maintenance Under Service Agreements,24/04/2012,1048296-1,23.61,2101051 - OCE (UK) Ltd,2 ROLLCOPIER SERVICE
Tendring DC,http://statistics.data.gov.uk/id/local-authority-district/22UN,Life Opportunities,1670 - Engineering Services Manager,4400 - Maintenance Under Service Agreements,24/04/2012,1048296-2,23.62,2101051 - OCE (UK) Ltd,2 ROLLCOPIER SERVICE
Tendring DC,http://statistics.data.gov.uk/id/local-authority-district/22UN,Life Opportunities,8540 - Leisure Centre Clacton,4597 - Hired Services - Payments to Contractors,17/04/2012,1048159-1,46,2108480 - Oh Goody Craft & Ceramics,
Tendring DC,http://statistics.data.gov.uk/id/local-authority-district/22UN,Life Opportunities,1050 - Leisure Service Unit,3302 - Car Allowances - Officers,24/04/2012,2095621-1,186.3,REDACTED PERSONAL DATA,REDACTED PERSONAL DATA
Tendring DC,http://statistics.data.gov.uk/id/local-authority-district/22UN,Life Opportunities,H920 - DFGs,C400 - Grant payments,03/04/2012,2095275-1,4077,REDACTED PERSONAL DATA,REDACTED PERSONAL DATA
Tendring DC,http://statistics.data.gov.uk/id/local-authority-district/22UN,Life Opportunities,6160 - Princes Theatre,5306 - Confectionary,10/04/2012,1047951-1,12.26,2101083 - Osgood Smith,CONFECTIONARY
Tendring DC,http://statistics.data.gov.uk/id/local-authority-district/22UN,Life Opportunities,5820 - Harwich Sports Centre,5311 - General Provisions - Vending,10/04/2012,1047952-1,83.42,2101083 - Osgood Smith,CANTEEN GOODS
Tendring DC,http://statistics.data.gov.uk/id/local-authority-district/22UN,Life Opportunities,8520 - Frinton & Walton Swimming Pool,5311 - General Provisions - Vending,10/04/2012,1047953-1,67.77,2101083 - Osgood Smith,FRINTON WALTON POOL
Tendring DC,http://statistics.data.gov.uk/id/local-authority-district/22UN,Life Opportunities,5860 - Manningtree Sports Centre,5311 - General Provisions - Vending,17/04/2012,1048080-1,85.1,2101083 - Osgood Smith,VENDING SUPPLIES
Tendring DC,http://statistics.data.gov.uk/id/local-authority-district/22UN,Life Opportunities,5860 - Manningtree Sports Centre,5311 - General Provisions - Vending,17/04/2012,1048081-1,351.07,2101083 - Osgood Smith,VENDING SUPPLIES
Tendring DC,http://statistics.data.gov.uk/id/local-authority-district/22UN,Life Opportunities,8560 - Happy Valley Recreation Ground Pitch & Putt,4040 - Equipment & Tools,17/04/2012,1048130-1,17.34,2101083 - Osgood Smith,
Tendring DC,http://statistics.data.gov.uk/id/local-authority-district/22UN,Life Opportunities,5820 - Harwich Sports Centre,5311 - General Provisions - Vending,17/04/2012,1048179-1,98.35,2101083 - Osgood Smith,CANTEEN GOODS
Tendring DC,http://statistics.data.gov.uk/id/local-authority-district/22UN,Life Opportunities,8510 - Dovercourt Swimming Pool & All Weather Facilities,5311 - General Provisions - Vending,17/04/2012,1048180-1,47,2101083 - Osgood Smith,DOVERCOURT POOL
Tendring DC,http://statistics.data.gov.uk/id/local-authority-district/22UN,Life Opportunities,8510 - Dovercourt Swimming Pool & All Weather Facilities,5311 - General Provisions - Vending,17/04/2012,1048181-1,62.54,2101083 - Osgood Smith,DOVERCOURT POOL
Tendring DC,http://statistics.data.gov.uk/id/local-authority-district/22UN,Life Opportunities,5860 - Manningtree Sports Centre,5311 - General Provisions - Vending,24/04/2012,1048291-1,-16.6,2101083 - Osgood Smith,VENDING SUPPLIES
Tendring DC,http://statistics.data.gov.uk/id/local-authority-district/22UN,Life Opportunities,5860 - Manningtree Sports Centre,5311 - General Provisions - Vending,24/04/2012,1048293-1,-2,2101083 - Osgood Smith,VENDING SUPPLIES
Tendring DC,http://statistics.data.gov.uk/id/local-authority-district/22UN,Life Opportunities,5820 - Harwich Sports Centre,5311 - General Provisions - Vending,24/04/2012,1048356-1,106.98,2101083 - Osgood Smith,CANTEEN GOODS
Tendring DC,http://statistics.data.gov.uk/id/local-authority-district/22UN,Life Opportunities,8510 - Dovercourt Swimming Pool & All Weather Facilities,5311 - General Provisions - Vending,24/04/2012,1048357-1,144.04,2101083 - Osgood Smith,DOVERCOURT POOL
Tendring DC,http://statistics.data.gov.uk/id/local-authority-district/22UN,Life Opportunities,5860 - Manningtree Sports Centre,5311 - General Provisions - Vending,24/04/2012,1048391-1,67.72,2101083 - Osgood Smith,VENDING SUPPLIES
Tendring DC,http://statistics.data.gov.uk/id/local-authority-district/22UN,Life Opportunities,5820 - Harwich Sports Centre,5311 - General Provisions - Vending,03/04/2012,2095126-1,35.33,2101083 - Osgood Smith,Canteen Goods
Tendring DC,http://statistics.data.gov.uk/id/local-authority-district/22UN,Life Opportunities,8510 - Dovercourt Swimming Pool & All Weather Facilities,5311 - General Provisions - Vending,03/04/2012,2095217-1,-0.32,REDACTED PERSONAL DATA,REDACTED PERSONAL DATA
Tendring DC,http://statistics.data.gov.uk/id/local-authority-district/22UN,Life Opportunities,8510 - Dovercourt Swimming Pool & All Weather Facilities,5311 - General Provisions - Vending,03/04/2012,2095217-2,-12,REDACTED PERSONAL DATA,REDACTED PERSONAL DATA
Tendring DC,http://statistics.data.gov.uk/id/local-authority-district/22UN,Life Opportunities,8510 - Dovercourt Swimming Pool & All Weather Facilities,5311 - General Provisions - Vending,03/04/2012,2095223-1,11.56,2101083 - Osgood Smith,
Tendring DC,http://statistics.data.gov.uk/id/local-authority-district/22UN,Life Opportunities,5800 - Brightlingsea Sports Centre,5316 - General Provisions,10/04/2012,2095317-1,158.5,2101083 - Osgood Smith,Osgood Smith
Tendring DC,http://statistics.data.gov.uk/id/local-authority-district/22UN,Life Opportunities,5860 - Manningtree Sports Centre,5311 - General Provisions - Vending,24/04/2012,2095672-1,356.09,2101083 - Osgood Smith,Vending Supplies
Tendring DC,http://statistics.data.gov.uk/id/local-authority-district/22UN,Life Opportunities,8540 - Leisure Centre Clacton,2300 - Energy Costs - Fuel Oil,17/04/2012,1048118-1,1742.75,2107113 - Pace Fuelcare Ltd,
Tendring DC,http://statistics.data.gov.uk/id/local-authority-district/22UN,Life Opportunities,8540 - Leisure Centre Clacton,2300 - Energy Costs - Fuel Oil,17/04/2012,1048119-1,2090.6,2107113 - Pace Fuelcare Ltd,
Tendring DC,http://statistics.data.gov.uk/id/local-authority-district/22UN,Life Opportunities,8540 - Leisure Centre Clacton,2300 - Energy Costs - Fuel Oil,24/04/2012,2095608-1,2084.6,2107113 - Pace Fuelcare Ltd,
Tendring DC,http://statistics.data.gov.uk/id/local-authority-district/22UN,Life Opportunities,8540 - Leisure Centre Clacton,5500 - Miscellaneous Expenses,24/04/2012,1048377-1,119.67,2112141 - Party Delights Limited,
Tendring DC,http://statistics.data.gov.uk/id/local-authority-district/22UN,Life Opportunities,5480 - HRA - Repair & Maintenance,2017 - Mechanical Equipment /Extract Fans,24/04/2012,1048326-1,720,REDACTED PERSONAL DATA,REDACTED PERSONAL DATA
Tendring DC,http://statistics.data.gov.uk/id/local-authority-district/22UN,Life Opportunities,5480 - HRA - Repair & Maintenance,2017 - Mechanical Equipment /Extract Fans,24/04/2012,1048326-2,578,REDACTED PERSONAL DATA,REDACTED PERSONAL DATA
Tendring DC,http://statistics.data.gov.uk/id/local-authority-district/22UN,Life Opportunities,5480 - HRA - Repair & Maintenance,2095 - Other General Planned Repairs,24/04/2012,1048327-1,210,REDACTED PERSONAL DATA,REDACTED PERSONAL DATA
Tendring DC,http://statistics.data.gov.uk/id/local-authority-district/22UN,Life Opportunities,5480 - HRA - Repair & Maintenance,2095 - Other General Planned Repairs,24/04/2012,1048327-2,158,REDACTED PERSONAL DATA,REDACTED PERSONAL DATA
Tendring DC,http://statistics.data.gov.uk/id/local-authority-district/22UN,Life Opportunities,8540 - Leisure Centre Clacton,9246 - Lifestyles Card - Monthly DD,24/04/2012,2095615-1,6.5,REDACTED PERSONAL DATA,REDACTED PERSONAL DATA
Tendring DC,http://statistics.data.gov.uk/id/local-authority-district/22UN,Life Opportunities,8510 - Dovercourt Swimming Pool & All Weather Facilities,4400 - Maintenance Under Service Agreements,03/04/2012,2095237-1,194.14,2101058 - Personnel Hygiene Services Ltd,Dovercourt Pool
Tendring DC,http://statistics.data.gov.uk/id/local-authority-district/22UN,Life Opportunities,8540 - Leisure Centre Clacton,5160 - Advertising,17/04/2012,1048098-1,150,2101097 - Peter Lockyer Advertising Ltd,
Tendring DC,http://statistics.data.gov.uk/id/local-authority-district/22UN,Life Opportunities,8540 - Leisure Centre Clacton,5160 - Advertising,17/04/2012,1048137-1,150,2101097 - Peter Lockyer Advertising Ltd,
Tendring DC,http://statistics.data.gov.uk/id/local-authority-district/22UN,Life Opportunities,8540 - Leisure Centre Clacton,4000 - Furniture,17/04/2012,1048164-1,140.9,2101068 - Physical Company,
Tendring DC,http://statistics.data.gov.uk/id/local-authority-district/22UN,Life Opportunities,5420 - HRA - Communal Cleaning,2706 - Communal Areas Cleaning Expenses,17/04/2012,1048185-1,2480,REDACTED COMMERCIAL CONFIDENTIALITY,REDACTED COMMERCIAL CONFIDENTIALITY
Tendring DC,http://statistics.data.gov.uk/id/local-authority-district/22UN,Life Opportunities,5420 - HRA - Communal Cleaning,2706 - Communal Areas Cleaning Expenses,17/04/2012,1048186-1,990,REDACTED COMMERCIAL CONFIDENTIALITY,REDACTED COMMERCIAL CONFIDENTIALITY
Tendring DC,http://statistics.data.gov.uk/id/local-authority-district/22UN,Life Opportunities,7520 - Tourism Publicity Marketing Promotion,5160 - Advertising,27/04/2012,1048462-1,83.33,2102483 - Plum Publishing Ltd,COACH TOURISM ADVERT
Tendring DC,http://statistics.data.gov.uk/id/local-authority-district/22UN,Life Opportunities,5480 - HRA - Repair & Maintenance,2090 - Fencing,10/04/2012,1047942-1,415,REDACTED PERSONAL DATA,REDACTED PERSONAL DATA
Tendring DC,http://statistics.data.gov.uk/id/local-authority-district/22UN,Life Opportunities,5480 - HRA - Repair & Maintenance,2091 - External Works,10/04/2012,1047943-1,630,REDACTED PERSONAL DATA,REDACTED PERSONAL DATA
Tendring DC,http://statistics.data.gov.uk/id/local-authority-district/22UN,Life Opportunities,5480 - HRA - Repair & Maintenance,2090 - Fencing,17/04/2012,1048144-1,172,REDACTED PERSONAL DATA,REDACTED PERSONAL DATA
Tendring DC,http://statistics.data.gov.uk/id/local-authority-district/22UN,Life Opportunities,5480 - HRA - Repair & Maintenance,2090 - Fencing,17/04/2012,1048145-1,270,REDACTED PERSONAL DATA,REDACTED PERSONAL DATA
Tendring DC,http://statistics.data.gov.uk/id/local-authority-district/22UN,Life Opportunities,5480 - HRA - Repair & Maintenance,2090 - Fencing,17/04/2012,1048146-1,1420,REDACTED PERSONAL DATA,REDACTED PERSONAL DATA
Tendring DC,http://statistics.data.gov.uk/id/local-authority-district/22UN,Life Opportunities,5480 - HRA - Repair & Maintenance,2091 - External Works,24/04/2012,2095634-1,7632.5,REDACTED PERSONAL DATA,REDACTED PERSONAL DATA
Tendring DC,http://statistics.data.gov.uk/id/local-authority-district/22UN,Life Opportunities,H920 - DFGs,C400 - Grant payments,03/04/2012,2095276-1,3824.47,REDACTED PERSONAL DATA,REDACTED PERSONAL DATA
Tendring DC,http://statistics.data.gov.uk/id/local-authority-district/22UN,Life Opportunities,8510 - Dovercourt Swimming Pool & All Weather Facilities,2904 - Premises Licensing - Other,17/04/2012,1048161-1,85.98,2111120 - PPL,PPL 2012/13
Tendring DC,http://statistics.data.gov.uk/id/local-authority-district/22UN,Life Opportunities,8520 - Frinton & Walton Swimming Pool,2904 - Premises Licensing - Other,17/04/2012,1048161-2,85.98,2111120 - PPL,PPL 2012/13
Tendring DC,http://statistics.data.gov.uk/id/local-authority-district/22UN,Life Opportunities,8540 - Leisure Centre Clacton,2904 - Premises Licensing - Other,17/04/2012,1048161-3,148.38,2111120 - PPL,PPL 2012/13
Tendring DC,http://statistics.data.gov.uk/id/local-authority-district/22UN,Life Opportunities,6160 - Princes Theatre,4622 - Hired Services - Artistes and Production Companies,03/04/2012,2095132-1,4282.75,2111110 - Premier Stage Productions Ltd,Fireman Sam Settlement
Tendring DC,http://statistics.data.gov.uk/id/local-authority-district/22UN,Life Opportunities,6160 - Princes Theatre,4622 - Hired Services - Artistes and Production Companies,03/04/2012,2095259-1,4000,2112058 - Prestige Productions Ltd,Essence of Ireland advance Payment
Tendring DC,http://statistics.data.gov.uk/id/local-authority-district/22UN,Life Opportunities,6160 - Princes Theatre,4622 - Hired Services - Artistes and Production Companies,24/04/2012,2095681-1,5254.69,2112058 - Prestige Productions Ltd,Essence of Ireland Settlement
Tendring DC,http://statistics.data.gov.uk/id/local-authority-district/22UN,Life Opportunities,6160 - Princes Theatre,4622 - Hired Services - Artistes and Production Companies,24/04/2012,2095681-2,-4000,2112058 - Prestige Productions Ltd,Essence of Ireland Settlement
Tendring DC,http://statistics.data.gov.uk/id/local-authority-district/22UN,Life Opportunities,7520 - Tourism Publicity Marketing Promotion,5160 - Advertising,03/04/2012,2095117-1,486,2102789 - Primary Times in Essex,Primary times Ad
Tendring DC,http://statistics.data.gov.uk/id/local-authority-district/22UN,Life Opportunities,5140 - Homelessness,4900 - Grants,10/04/2012,1047957-1,5940,2102776 - Property Tectonics,LIFESPAN LICENCE
Tendring DC,http://statistics.data.gov.uk/id/local-authority-district/22UN,Life Opportunities,6160 - Princes Theatre,5160 - Advertising,03/04/2012,2095129-1,331.4,2107459 - Prospector,Poster Distribution
Tendring DC,http://statistics.data.gov.uk/id/local-authority-district/22UN,Life Opportunities,6160 - Princes Theatre,5160 - Advertising,24/04/2012,2095675-1,95,2107459 - Prospector,Poster Distribution
Tendring DC,http://statistics.data.gov.uk/id/local-authority-district/22UN,Life Opportunities,8540 - Leisure Centre Clacton,2100 - Building Repairs,24/04/2012,1048364-1,241.5,2101132 - PRS Communications Limited,
Tendring DC,http://statistics.data.gov.uk/id/local-authority-district/22UN,Life Opportunities,8540 - Leisure Centre Clacton,2100 - Building Repairs,24/04/2012,1048365-1,376.25,2101132 - PRS Communications Limited,
Tendring DC,http://statistics.data.gov.uk/id/local-authority-district/22UN,Life Opportunities,5140 - Homelessness,4683 - Other Homelessness Expenses,24/04/2012,2095832-1,450,2102167 - Pyrkes Property Services Ltd,Deposit Guarantee
Tendring DC,http://statistics.data.gov.uk/id/local-authority-district/22UN,Life Opportunities,5820 - Harwich Sports Centre,4400 - Maintenance Under Service Agreements,24/04/2012,2095662-1,187.4,2104698 - Rentokil Initial UK Ltd,Watersafe Contract
Tendring DC,http://statistics.data.gov.uk/id/local-authority-district/22UN,Life Opportunities,1650 - Building Services Service Unit,4880 - Subscriptions Paid,24/04/2012,2095793-1,445,2101774 - Riba Enterprises Ltd,Subscription Renewal
Tendring DC,http://statistics.data.gov.uk/id/local-authority-district/22UN,Life Opportunities,1650 - Building Services Service Unit,4880 - Subscriptions Paid,24/04/2012,2095793-2,400,2101774 - Riba Enterprises Ltd,Subscription Renewal
Tendring DC,http://statistics.data.gov.uk/id/local-authority-district/22UN,Life Opportunities,9900 - General Fund Balance Sheet,B382 - Rechargeable Works - Other,24/04/2012,2095782-1,897.36,2103109 - Richard Jackson PLC,Market Street
Tendring DC,http://statistics.data.gov.uk/id/local-authority-district/22UN,Life Opportunities,5800 - Brightlingsea Sports Centre,2100 - Building Repairs,03/04/2012,2095081-1,27.64,2101090 - Ricoh UK Ltd,Ricoh
Tendring DC,http://statistics.data.gov.uk/id/local-authority-district/22UN,Life Opportunities,8510 - Dovercourt Swimming Pool & All Weather Facilities,4300 - Printing & Stationery,03/04/2012,2095121-1,30.33,2101090 - Ricoh UK Ltd,Dovercourt Pool
Tendring DC,http://statistics.data.gov.uk/id/local-authority-district/22UN,Life Opportunities,1240 - Housing Services Service Unit,4300 - Printing & Stationery,03/04/2012,2095141-1,1384.23,REDACTED COMMERCIAL CONFIDENTIALITY,REDACTED COMMERCIAL CONFIDENTIALITY
Tendring DC,http://statistics.data.gov.uk/id/local-authority-district/22UN,Life Opportunities,1240 - Housing Services Service Unit,4300 - Printing & Stationery,10/04/2012,2095326-1,276.8,2101090 - Ricoh UK Ltd,Copier 1/9/10 - 30/11/10
Tendring DC,http://statistics.data.gov.uk/id/local-authority-district/22UN,Life Opportunities,8520 - Frinton & Walton Swimming Pool,4000 - Furniture,17/04/2012,1048168-1,161.9,2101127 - RLSS UK Enterprises Ltd,FRINTON WALTON POOL
Tendring DC,http://statistics.data.gov.uk/id/local-authority-district/22UN,Life Opportunities,8520 - Frinton & Walton Swimming Pool,5300 - Resaleable Items,24/04/2012,1048371-1,73.75,2101127 - RLSS UK Enterprises Ltd,FRINTON WALTON POOL
Tendring DC,http://statistics.data.gov.uk/id/local-authority-district/22UN,Life Opportunities,5480 - HRA - Repair & Maintenance,2088 - Disabled Adaptations,24/04/2012,2095611-1,254.85,REDACTED PERSONAL DATA,REDACTED PERSONAL DATA
Tendring DC,http://statistics.data.gov.uk/id/local-authority-district/22UN,Life Opportunities,5480 - HRA - Repair & Maintenance,2088 - Disabled Adaptations,24/04/2012,2095612-1,121.63,REDACTED PERSONAL DATA,REDACTED PERSONAL DATA
Tendring DC,http://statistics.data.gov.uk/id/local-authority-district/22UN,Life Opportunities,5480 - HRA - Repair & Maintenance,2088 - Disabled Adaptations,24/04/2012,2095613-1,254.85,REDACTED PERSONAL DATA,REDACTED PERSONAL DATA
Tendring DC,http://statistics.data.gov.uk/id/local-authority-district/22UN,Life Opportunities,5480 - HRA - Repair & Maintenance,2088 - Disabled Adaptations,24/04/2012,2095614-1,78,REDACTED PERSONAL DATA,REDACTED PERSONAL DATA
Tendring DC,http://statistics.data.gov.uk/id/local-authority-district/22UN,Life Opportunities,H800 - Structural Repairs,C200 - Main Contractor,17/04/2012,1048197-1,455,2101893 - Rose Builders Ltd,CONCRETE CANOPIES
Tendring DC,http://statistics.data.gov.uk/id/local-authority-district/22UN,Life Opportunities,H705 - Window/Door Replacement,C200 - Main Contractor,24/04/2012,2095827-1,640.85,REDACTED PERSONAL DATA,REDACTED PERSONAL DATA
Tendring DC,http://statistics.data.gov.uk/id/local-authority-district/22UN,Life Opportunities,H800 - Structural Repairs,C200 - Main Contractor,24/04/2012,2095828-1,593,REDACTED PERSONAL DATA,REDACTED PERSONAL DATA
Tendring DC,http://statistics.data.gov.uk/id/local-authority-district/22UN,Life Opportunities,5260 - HRA - Rent Collection And Accounting,4700 - Postage,17/04/2012,1048183-1,35,REDACTED PERSONAL DATA,REDACTED PERSONAL DATA
Tendring DC,http://statistics.data.gov.uk/id/local-authority-district/22UN,Life Opportunities,5240 - HRA - Managing Tenancies,5242 - Tenant Relations,17/04/2012,1048184-1,161.2,REDACTED PERSONAL DATA,REDACTED PERSONAL DATA
Tendring DC,http://statistics.data.gov.uk/id/local-authority-district/22UN,Life Opportunities,5220 - HRA - Policy & Management,5930 - Business Planning Expenses,03/04/2012,2095146-1,1000,2101199 - Rural Community Council Of Essex,Rural Housing Enabler
Tendring DC,http://statistics.data.gov.uk/id/local-authority-district/22UN,Life Opportunities,8540 - Leisure Centre Clacton,4400 - Maintenance Under Service Agreements,17/04/2012,1048195-1,160,2109169 - S J Leisure Contractors Ltd,
Tendring DC,http://statistics.data.gov.uk/id/local-authority-district/22UN,Life Opportunities,8540 - Leisure Centre Clacton,4400 - Maintenance Under Service Agreements,24/04/2012,1048368-1,503.47,2109169 - S J Leisure Contractors Ltd,
Tendring DC,http://statistics.data.gov.uk/id/local-authority-district/22UN,Life Opportunities,H920 - DFGs,C400 - Grant payments,03/04/2012,2095278-1,795,REDACTED PERSONAL DATA,REDACTED PERSONAL DATA
Tendring DC,http://statistics.data.gov.uk/id/local-authority-district/22UN,Life Opportunities,H705 - Window/Door Replacement,C200 - Main Contractor,03/04/2012,2095260-1,3383.04,2105783 - SBP Ltd,
Tendring DC,http://statistics.data.gov.uk/id/local-authority-district/22UN,Life Opportunities,9900 - General Fund Balance Sheet,B382 - Rechargeable Works - Other,03/04/2012,2095208-1,120,REDACTED COMMERCIAL CONFIDENTIALITY,REDACTED COMMERCIAL CONFIDENTIALITY
Tendring DC,http://statistics.data.gov.uk/id/local-authority-district/22UN,Life Opportunities,H820 - Asbestos Management,C200 - Main Contractor,17/04/2012,1048017-1,160,REDACTED PERSONAL DATA,REDACTED PERSONAL DATA
Tendring DC,http://statistics.data.gov.uk/id/local-authority-district/22UN,Life Opportunities,H820 - Asbestos Management,C200 - Main Contractor,17/04/2012,1048017-2,100,REDACTED PERSONAL DATA,REDACTED PERSONAL DATA
Tendring DC,http://statistics.data.gov.uk/id/local-authority-district/22UN,Life Opportunities,8510 - Dovercourt Swimming Pool & All Weather Facilities,4400 - Maintenance Under Service Agreements,03/04/2012,2095238-1,152.39,2102659 - Siemens Financial Services Ltd,Dovercourt Pool
Tendring DC,http://statistics.data.gov.uk/id/local-authority-district/22UN,Life Opportunities,5800 - Brightlingsea Sports Centre,5160 - Advertising,24/04/2012,1048311-1,69,2103454 - Simad Publications,LOOK MAGAZINE
Tendring DC,http://statistics.data.gov.uk/id/local-authority-district/22UN,Life Opportunities,5800 - Brightlingsea Sports Centre,5316 - General Provisions,03/04/2012,2095078-1,69,2103454 - Simad Publications,Look Magazine
Tendring DC,http://statistics.data.gov.uk/id/local-authority-district/22UN,Life Opportunities,8520 - Frinton & Walton Swimming Pool,4200 - Clothing & Uniforms,03/04/2012,1038806-1,-54.94,2101285 - Simon Jersey Limited,FWSP
Tendring DC,http://statistics.data.gov.uk/id/local-authority-district/22UN,Life Opportunities,8510 - Dovercourt Swimming Pool & All Weather Facilities,4200 - Clothing & Uniforms,03/04/2012,2095240-1,117.95,2101285 - Simon Jersey Limited,Dovercourt Pool
Tendring DC,http://statistics.data.gov.uk/id/local-authority-district/22UN,Life Opportunities,8540 - Leisure Centre Clacton,5160 - Advertising,17/04/2012,1048096-1,778.5,2101266 - Smile Publishing Ltd,
Tendring DC,http://statistics.data.gov.uk/id/local-authority-district/22UN,Life Opportunities,5480 - HRA - Repair & Maintenance,2019 - Repair & Maintenance - Keys,17/04/2012,1048143-1,133.64,REDACTED PERSONAL DATA,REDACTED PERSONAL DATA
Tendring DC,http://statistics.data.gov.uk/id/local-authority-district/22UN,Life Opportunities,5800 - Brightlingsea Sports Centre,2100 - Building Repairs,17/04/2012,1048172-1,244.82,2101278 - Sportsafe UK Ltd,SPORTSAFE
Tendring DC,http://statistics.data.gov.uk/id/local-authority-district/22UN,Life Opportunities,5800 - Brightlingsea Sports Centre,2100 - Building Repairs,03/04/2012,2095153-1,60,2101278 - Sportsafe UK Ltd,Sportsafe UK
Tendring DC,http://statistics.data.gov.uk/id/local-authority-district/22UN,Life Opportunities,8520 - Frinton & Walton Swimming Pool,4000 - Furniture,24/04/2012,1048354-1,342,2102268 - St John Ambulance Supplies,FRINTON WALTON POOL
Tendring DC,http://statistics.data.gov.uk/id/local-authority-district/22UN,Life Opportunities,5480 - HRA - Repair & Maintenance,2069 - Lift/Stairlift Servicing,24/04/2012,2095846-1,1474.34,2101360 - Stannah Lift Services Limited,Lift Service & Repair
Tendring DC,http://statistics.data.gov.uk/id/local-authority-district/22UN,Life Opportunities,5480 - HRA - Repair & Maintenance,2070 - Lift/Stairlift Repairs,24/04/2012,2095846-2,97.33,2101360 - Stannah Lift Services Limited,Lift Service & Repair
Tendring DC,http://statistics.data.gov.uk/id/local-authority-district/22UN,Life Opportunities,5240 - HRA - Managing Tenancies,5242 - Tenant Relations,10/04/2012,2095351-1,32,REDACTED PERSONAL DATA,REDACTED PERSONAL DATA
Tendring DC,http://statistics.data.gov.uk/id/local-authority-district/22UN,Life Opportunities,5240 - HRA - Managing Tenancies,5242 - Tenant Relations,10/04/2012,2095352-1,69,REDACTED PERSONAL DATA,REDACTED PERSONAL DATA
Tendring DC,http://statistics.data.gov.uk/id/local-authority-district/22UN,Life Opportunities,5880 - Management Of Sport & Leisure Facilities,2100 - Building Repairs,17/04/2012,1048176-1,1950,2112140 - Stourwood Landscapes,DOVERCOURT POOL
Tendring DC,http://statistics.data.gov.uk/id/local-authority-district/22UN,Life Opportunities,6160 - Princes Theatre,4622 - Hired Services - Artistes and Production Companies,17/04/2012,1048150-1,2834.78,2102860 - Subish Ltd,THE FUREYS SETTLEMENT
Tendring DC,http://statistics.data.gov.uk/id/local-authority-district/22UN,Life Opportunities,H920 - DFGs,C400 - Grant payments,10/04/2012,1048059-1,657.53,REDACTED PERSONAL DATA,REDACTED PERSONAL DATA
Tendring DC,http://statistics.data.gov.uk/id/local-authority-district/22UN,Life Opportunities,H920 - DFGs,C400 - Grant payments,03/04/2012,2095265-1,1903.94,REDACTED PERSONAL DATA,REDACTED PERSONAL DATA
Tendring DC,http://statistics.data.gov.uk/id/local-authority-district/22UN,Life Opportunities,H920 - DFGs,C400 - Grant payments,03/04/2012,2095268-1,646.13,REDACTED PERSONAL DATA,REDACTED PERSONAL DATA
Tendring DC,http://statistics.data.gov.uk/id/local-authority-district/22UN,Life Opportunities,H920 - DFGs,C400 - Grant payments,03/04/2012,2095273-1,589.57,REDACTED PERSONAL DATA,REDACTED PERSONAL DATA
Tendring DC,http://statistics.data.gov.uk/id/local-authority-district/22UN,Life Opportunities,H920 - DFGs,C400 - Grant payments,03/04/2012,2095274-1,218.36,REDACTED PERSONAL DATA,REDACTED PERSONAL DATA
Tendring DC,http://statistics.data.gov.uk/id/local-authority-district/22UN,Life Opportunities,H920 - DFGs,C400 - Grant payments,03/04/2012,2095277-1,140.72,REDACTED PERSONAL DATA,REDACTED PERSONAL DATA
Tendring DC,http://statistics.data.gov.uk/id/local-authority-district/22UN,Life Opportunities,H920 - DFGs,C400 - Grant payments,03/04/2012,2095280-1,443.77,REDACTED PERSONAL DATA,REDACTED PERSONAL DATA
Tendring DC,http://statistics.data.gov.uk/id/local-authority-district/22UN,Life Opportunities,5480 - HRA - Repair & Maintenance,2088 - Disabled Adaptations,10/04/2012,2095336-1,250,REDACTED PERSONAL DATA,REDACTED PERSONAL DATA
Tendring DC,http://statistics.data.gov.uk/id/local-authority-district/22UN,Life Opportunities,5480 - HRA - Repair & Maintenance,2071 - Electric Installation Testing,24/04/2012,2095791-1,290,2101393 - T J B Electrical Contracting,Vyntoner House
Tendring DC,http://statistics.data.gov.uk/id/local-authority-district/22UN,Life Opportunities,8540 - Leisure Centre Clacton,2100 - Building Repairs,17/04/2012,1048111-1,598.65,2106188 - Technogym UK Ltd,
Tendring DC,http://statistics.data.gov.uk/id/local-authority-district/22UN,Life Opportunities,8540 - Leisure Centre Clacton,2100 - Building Repairs,17/04/2012,1048112-1,586.65,2106188 - Technogym UK Ltd,
Tendring DC,http://statistics.data.gov.uk/id/local-authority-district/22UN,Life Opportunities,5800 - Brightlingsea Sports Centre,5316 - General Provisions,10/04/2012,1048062-1,5.88,2101317 - Tendring District Council,PETTY CASH
Tendring DC,http://statistics.data.gov.uk/id/local-authority-district/22UN,Life Opportunities,5800 - Brightlingsea Sports Centre,5316 - General Provisions,10/04/2012,1048062-2,1.25,2101317 - Tendring District Council,PETTY CASH
Tendring DC,http://statistics.data.gov.uk/id/local-authority-district/22UN,Life Opportunities,5800 - Brightlingsea Sports Centre,5316 - General Provisions,10/04/2012,1048062-3,21.47,2101317 - Tendring District Council,PETTY CASH
Tendring DC,http://statistics.data.gov.uk/id/local-authority-district/22UN,Life Opportunities,5800 - Brightlingsea Sports Centre,5316 - General Provisions,10/04/2012,1048062-4,6.69,2101317 - Tendring District Council,PETTY CASH
Tendring DC,http://statistics.data.gov.uk/id/local-authority-district/22UN,Life Opportunities,5800 - Brightlingsea Sports Centre,4080 - Materials & Consumables,10/04/2012,1048062-5,3.48,2101317 - Tendring District Council,PETTY CASH
Tendring DC,http://statistics.data.gov.uk/id/local-authority-district/22UN,Life Opportunities,5800 - Brightlingsea Sports Centre,5316 - General Provisions,10/04/2012,1048062-6,0.89,2101317 - Tendring District Council,PETTY CASH
Tendring DC,http://statistics.data.gov.uk/id/local-authority-district/22UN,Life Opportunities,5800 - Brightlingsea Sports Centre,4300 - Printing & Stationery,10/04/2012,1048062-7,5.41,2101317 - Tendring District Council,PETTY CASH
Tendring DC,http://statistics.data.gov.uk/id/local-authority-district/22UN,Life Opportunities,5800 - Brightlingsea Sports Centre,4300 - Printing & Stationery,10/04/2012,1048062-8,2.71,2101317 - Tendring District Council,PETTY CASH
Tendring DC,http://statistics.data.gov.uk/id/local-authority-district/22UN,Life Opportunities,9900 - General Fund Balance Sheet,B658 - Cash Floats,03/04/2012,2095201-1,140,2101386 - Tendring District Council,HV Seasonal Float 2012
Tendring DC,http://statistics.data.gov.uk/id/local-authority-district/22UN,Life Opportunities,8540 - Leisure Centre Clacton,4000 - Furniture,24/04/2012,2095750-1,3.33,REDACTED PERSONAL DATA,REDACTED PERSONAL DATA
Tendring DC,http://statistics.data.gov.uk/id/local-authority-district/22UN,Life Opportunities,8540 - Leisure Centre Clacton,2100 - Building Repairs,24/04/2012,2095750-10,8,REDACTED PERSONAL DATA,REDACTED PERSONAL DATA
Tendring DC,http://statistics.data.gov.uk/id/local-authority-district/22UN,Life Opportunities,8540 - Leisure Centre Clacton,4597 - Hired Services - Payments to Contractors,24/04/2012,2095750-11,7.95,REDACTED PERSONAL DATA,REDACTED PERSONAL DATA
Tendring DC,http://statistics.data.gov.uk/id/local-authority-district/22UN,Life Opportunities,8540 - Leisure Centre Clacton,4000 - Furniture,24/04/2012,2095750-12,2.49,REDACTED PERSONAL DATA,REDACTED PERSONAL DATA
Tendring DC,http://statistics.data.gov.uk/id/local-authority-district/22UN,Life Opportunities,8540 - Leisure Centre Clacton,4000 - Furniture,24/04/2012,2095750-13,4.2,REDACTED PERSONAL DATA,REDACTED PERSONAL DATA
Tendring DC,http://statistics.data.gov.uk/id/local-authority-district/22UN,Life Opportunities,8540 - Leisure Centre Clacton,2100 - Building Repairs,24/04/2012,2095750-14,4.13,REDACTED PERSONAL DATA,REDACTED PERSONAL DATA
Tendring DC,http://statistics.data.gov.uk/id/local-authority-district/22UN,Life Opportunities,8540 - Leisure Centre Clacton,2100 - Building Repairs,24/04/2012,2095750-15,2.16,REDACTED PERSONAL DATA,REDACTED PERSONAL DATA
Tendring DC,http://statistics.data.gov.uk/id/local-authority-district/22UN,Life Opportunities,8540 - Leisure Centre Clacton,5500 - Miscellaneous Expenses,24/04/2012,2095750-16,5.9,REDACTED PERSONAL DATA,REDACTED PERSONAL DATA
Tendring DC,http://statistics.data.gov.uk/id/local-authority-district/22UN,Life Opportunities,8540 - Leisure Centre Clacton,5500 - Miscellaneous Expenses,24/04/2012,2095750-17,35,REDACTED PERSONAL DATA,REDACTED PERSONAL DATA
Tendring DC,http://statistics.data.gov.uk/id/local-authority-district/22UN,Life Opportunities,8540 - Leisure Centre Clacton,5160 - Advertising,24/04/2012,2095750-18,41.67,REDACTED PERSONAL DATA,REDACTED PERSONAL DATA
Tendring DC,http://statistics.data.gov.uk/id/local-authority-district/22UN,Life Opportunities,8540 - Leisure Centre Clacton,5160 - Advertising,24/04/2012,2095750-19,41.67,REDACTED PERSONAL DATA,REDACTED PERSONAL DATA
Tendring DC,http://statistics.data.gov.uk/id/local-authority-district/22UN,Life Opportunities,8540 - Leisure Centre Clacton,1700 - Training - Courses,24/04/2012,2095750-2,4.5,REDACTED PERSONAL DATA,REDACTED PERSONAL DATA
Tendring DC,http://statistics.data.gov.uk/id/local-authority-district/22UN,Life Opportunities,8540 - Leisure Centre Clacton,4597 - Hired Services - Payments to Contractors,24/04/2012,2095750-20,9.2,REDACTED PERSONAL DATA,REDACTED PERSONAL DATA
Tendring DC,http://statistics.data.gov.uk/id/local-authority-district/22UN,Life Opportunities,8540 - Leisure Centre Clacton,1700 - Training - Courses,24/04/2012,2095750-3,4.5,REDACTED PERSONAL DATA,REDACTED PERSONAL DATA
Tendring DC,http://statistics.data.gov.uk/id/local-authority-district/22UN,Life Opportunities,8540 - Leisure Centre Clacton,1700 - Training - Courses,24/04/2012,2095750-4,10.33,REDACTED PERSONAL DATA,REDACTED PERSONAL DATA
Tendring DC,http://statistics.data.gov.uk/id/local-authority-district/22UN,Life Opportunities,8540 - Leisure Centre Clacton,1700 - Training - Courses,24/04/2012,2095750-5,2.5,REDACTED PERSONAL DATA,REDACTED PERSONAL DATA
Tendring DC,http://statistics.data.gov.uk/id/local-authority-district/22UN,Life Opportunities,8540 - Leisure Centre Clacton,4000 - Furniture,24/04/2012,2095750-6,22.1,REDACTED PERSONAL DATA,REDACTED PERSONAL DATA
Tendring DC,http://statistics.data.gov.uk/id/local-authority-district/22UN,Life Opportunities,8540 - Leisure Centre Clacton,4000 - Furniture,24/04/2012,2095750-7,3.29,REDACTED PERSONAL DATA,REDACTED PERSONAL DATA
Tendring DC,http://statistics.data.gov.uk/id/local-authority-district/22UN,Life Opportunities,8540 - Leisure Centre Clacton,4000 - Furniture,24/04/2012,2095750-8,5.83,REDACTED PERSONAL DATA,REDACTED PERSONAL DATA
Tendring DC,http://statistics.data.gov.uk/id/local-authority-district/22UN,Life Opportunities,8540 - Leisure Centre Clacton,1700 - Training - Courses,24/04/2012,2095750-9,15.5,REDACTED PERSONAL DATA,REDACTED PERSONAL DATA
Tendring DC,http://statistics.data.gov.uk/id/local-authority-district/22UN,Life Opportunities,8520 - Frinton & Walton Swimming Pool,2100 - Building Repairs,24/04/2012,2095842-1,0.79,2101357 - Tendring District Council,Petty Cash
Tendring DC,http://statistics.data.gov.uk/id/local-authority-district/22UN,Life Opportunities,8520 - Frinton & Walton Swimming Pool,4000 - Furniture,24/04/2012,2095842-10,4.97,2101357 - Tendring District Council,Petty Cash
Tendring DC,http://statistics.data.gov.uk/id/local-authority-district/22UN,Life Opportunities,8520 - Frinton & Walton Swimming Pool,4000 - Furniture,24/04/2012,2095842-11,19.99,2101357 - Tendring District Council,Petty Cash
Tendring DC,http://statistics.data.gov.uk/id/local-authority-district/22UN,Life Opportunities,8520 - Frinton & Walton Swimming Pool,4300 - Printing & Stationery,24/04/2012,2095842-12,0.83,2101357 - Tendring District Council,Petty Cash
Tendring DC,http://statistics.data.gov.uk/id/local-authority-district/22UN,Life Opportunities,8520 - Frinton & Walton Swimming Pool,4000 - Furniture,24/04/2012,2095842-13,3.99,2101357 - Tendring District Council,Petty Cash
Tendring DC,http://statistics.data.gov.uk/id/local-authority-district/22UN,Life Opportunities,8520 - Frinton & Walton Swimming Pool,4300 - Printing & Stationery,24/04/2012,2095842-14,2.92,2101357 - Tendring District Council,Petty Cash
Tendring DC,http://statistics.data.gov.uk/id/local-authority-district/22UN,Life Opportunities,8520 - Frinton & Walton Swimming Pool,4300 - Printing & Stationery,24/04/2012,2095842-15,3.92,2101357 - Tendring District Council,Petty Cash
Tendring DC,http://statistics.data.gov.uk/id/local-authority-district/22UN,Life Opportunities,8520 - Frinton & Walton Swimming Pool,2100 - Building Repairs,24/04/2012,2095842-2,8.11,2101357 - Tendring District Council,Petty Cash
Tendring DC,http://statistics.data.gov.uk/id/local-authority-district/22UN,Life Opportunities,8520 - Frinton & Walton Swimming Pool,2100 - Building Repairs,24/04/2012,2095842-3,2.12,2101357 - Tendring District Council,Petty Cash
Tendring DC,http://statistics.data.gov.uk/id/local-authority-district/22UN,Life Opportunities,8520 - Frinton & Walton Swimming Pool,4000 - Furniture,24/04/2012,2095842-4,9.77,2101357 - Tendring District Council,Petty Cash
Tendring DC,http://statistics.data.gov.uk/id/local-authority-district/22UN,Life Opportunities,8520 - Frinton & Walton Swimming Pool,4000 - Furniture,24/04/2012,2095842-5,6.29,2101357 - Tendring District Council,Petty Cash
Tendring DC,http://statistics.data.gov.uk/id/local-authority-district/22UN,Life Opportunities,8520 - Frinton & Walton Swimming Pool,4000 - Furniture,24/04/2012,2095842-6,2.67,2101357 - Tendring District Council,Petty Cash
Tendring DC,http://statistics.data.gov.uk/id/local-authority-district/22UN,Life Opportunities,8520 - Frinton & Walton Swimming Pool,4300 - Printing & Stationery,24/04/2012,2095842-7,0.9,2101357 - Tendring District Council,Petty Cash
Tendring DC,http://statistics.data.gov.uk/id/local-authority-district/22UN,Life Opportunities,8520 - Frinton & Walton Swimming Pool,2100 - Building Repairs,24/04/2012,2095842-8,5.82,2101357 - Tendring District Council,Petty Cash
Tendring DC,http://statistics.data.gov.uk/id/local-authority-district/22UN,Life Opportunities,8520 - Frinton & Walton Swimming Pool,2100 - Building Repairs,24/04/2012,2095842-9,1.73,2101357 - Tendring District Council,Petty Cash
Tendring DC,http://statistics.data.gov.uk/id/local-authority-district/22UN,Life Opportunities,5140 - Homelessness,4683 - Other Homelessness Expenses,24/04/2012,2095738-1,650,REDACTED PERSONAL DATA,REDACTED PERSONAL DATA
Tendring DC,http://statistics.data.gov.uk/id/local-authority-district/22UN,Life Opportunities,6160 - Princes Theatre,4622 - Hired Services - Artistes and Production Companies,03/04/2012,2095109-1,4304.59,2104008 - The Circus of Horrors,Circus of Horrors Settlement
Tendring DC,http://statistics.data.gov.uk/id/local-authority-district/22UN,Life Opportunities,5800 - Brightlingsea Sports Centre,8122 - Contributions - Other Local Authorities,24/04/2012,1048310-1,642.45,2101369 - The Colne Community School,COLNE COMMUNITY SCHOOL
Tendring DC,http://statistics.data.gov.uk/id/local-authority-district/22UN,Life Opportunities,5800 - Brightlingsea Sports Centre,2304 - Energy Costs - Electricity,03/04/2012,2095077-1,2128.25,2101369 - The Colne Community School,Colne Community School
Tendring DC,http://statistics.data.gov.uk/id/local-authority-district/22UN,Life Opportunities,5800 - Brightlingsea Sports Centre,2304 - Energy Costs - Electricity,03/04/2012,2095077-2,3291.02,2101369 - The Colne Community School,Colne Community School
Tendring DC,http://statistics.data.gov.uk/id/local-authority-district/22UN,Life Opportunities,5800 - Brightlingsea Sports Centre,2500 - Water Services - Metered,03/04/2012,2095077-3,534.94,2101369 - The Colne Community School,Colne Community School
Tendring DC,http://statistics.data.gov.uk/id/local-authority-district/22UN,Life Opportunities,5800 - Brightlingsea Sports Centre,2410 - National Non Domestic Rates,03/04/2012,2095131-1,3974.94,2101369 - The Colne Community School,Colne Community School
Tendring DC,http://statistics.data.gov.uk/id/local-authority-district/22UN,Life Opportunities,5800 - Brightlingsea Sports Centre,8146 - Agency Reimbursement - Current Year,03/04/2012,2095136-1,12513.66,2101369 - The Colne Community School,Colne Community School
Tendring DC,http://statistics.data.gov.uk/id/local-authority-district/22UN,Life Opportunities,5800 - Brightlingsea Sports Centre,2704 - Building Cleaning,03/04/2012,2095137-1,5792.52,2101369 - The Colne Community School,Colne Community School
Tendring DC,http://statistics.data.gov.uk/id/local-authority-district/22UN,Life Opportunities,5800 - Brightlingsea Sports Centre,4601 - Hired services - Cleaning,03/04/2012,2095138-1,1874,2101369 - The Colne Community School,Colne Community School
Tendring DC,http://statistics.data.gov.uk/id/local-authority-district/22UN,Life Opportunities,7520 - Tourism Publicity Marketing Promotion,5160 - Advertising,10/04/2012,1047958-1,300,2106910 - The Good Travel Guide,APR/MAY/JUNE ADVERT
Tendring DC,http://statistics.data.gov.uk/id/local-authority-district/22UN,Life Opportunities,5140 - Homelessness,4683 - Other Homelessness Expenses,24/04/2012,2095735-1,475,REDACTED PERSONAL DATA,REDACTED PERSONAL DATA
Tendring DC,http://statistics.data.gov.uk/id/local-authority-district/22UN,Life Opportunities,5140 - Homelessness,4683 - Other Homelessness Expenses,24/04/2012,2095836-1,60,REDACTED PERSONAL DATA,REDACTED PERSONAL DATA
Tendring DC,http://statistics.data.gov.uk/id/local-authority-district/22UN,Life Opportunities,8560 - Happy Valley Recreation Ground Pitch & Putt,4040 - Equipment & Tools,17/04/2012,1048208-1,80,2102495 - The Lock Specialist,
Tendring DC,http://statistics.data.gov.uk/id/local-authority-district/22UN,Life Opportunities,8540 - Leisure Centre Clacton,2100 - Building Repairs,24/04/2012,2095606-1,90,2102495 - The Lock Specialist,
Tendring DC,http://statistics.data.gov.uk/id/local-authority-district/22UN,Life Opportunities,5480 - HRA - Repair & Maintenance,2016 - PVCu Window And Door Repairs,10/04/2012,1047991-1,608.99,REDACTED PERSONAL DATA,REDACTED PERSONAL DATA
Tendring DC,http://statistics.data.gov.uk/id/local-authority-district/22UN,Life Opportunities,5480 - HRA - Repair & Maintenance,2016 - PVCu Window And Door Repairs,10/04/2012,1047992-1,43.47,REDACTED PERSONAL DATA,REDACTED PERSONAL DATA
Tendring DC,http://statistics.data.gov.uk/id/local-authority-district/22UN,Life Opportunities,5480 - HRA - Repair & Maintenance,2016 - PVCu Window And Door Repairs,10/04/2012,1047993-1,25,REDACTED PERSONAL DATA,REDACTED PERSONAL DATA
Tendring DC,http://statistics.data.gov.uk/id/local-authority-district/22UN,Life Opportunities,5480 - HRA - Repair & Maintenance,2016 - PVCu Window And Door Repairs,10/04/2012,1047994-1,112.82,REDACTED PERSONAL DATA,REDACTED PERSONAL DATA
Tendring DC,http://statistics.data.gov.uk/id/local-authority-district/22UN,Life Opportunities,5480 - HRA - Repair & Maintenance,2016 - PVCu Window And Door Repairs,10/04/2012,1047995-1,35.46,REDACTED PERSONAL DATA,REDACTED PERSONAL DATA
Tendring DC,http://statistics.data.gov.uk/id/local-authority-district/22UN,Life Opportunities,5480 - HRA - Repair & Maintenance,2016 - PVCu Window And Door Repairs,10/04/2012,1047996-1,41.77,REDACTED PERSONAL DATA,REDACTED PERSONAL DATA
Tendring DC,http://statistics.data.gov.uk/id/local-authority-district/22UN,Life Opportunities,5480 - HRA - Repair & Maintenance,2016 - PVCu Window And Door Repairs,10/04/2012,1047997-1,34.81,REDACTED PERSONAL DATA,REDACTED PERSONAL DATA
Tendring DC,http://statistics.data.gov.uk/id/local-authority-district/22UN,Life Opportunities,5480 - HRA - Repair & Maintenance,2016 - PVCu Window And Door Repairs,10/04/2012,1047998-1,60.31,REDACTED PERSONAL DATA,REDACTED PERSONAL DATA
Tendring DC,http://statistics.data.gov.uk/id/local-authority-district/22UN,Life Opportunities,5480 - HRA - Repair & Maintenance,2016 - PVCu Window And Door Repairs,10/04/2012,1047999-1,36.13,REDACTED PERSONAL DATA,REDACTED PERSONAL DATA
Tendring DC,http://statistics.data.gov.uk/id/local-authority-district/22UN,Life Opportunities,5480 - HRA - Repair & Maintenance,2016 - PVCu Window And Door Repairs,10/04/2012,1048000-1,30.58,REDACTED PERSONAL DATA,REDACTED PERSONAL DATA
Tendring DC,http://statistics.data.gov.uk/id/local-authority-district/22UN,Life Opportunities,5480 - HRA - Repair & Maintenance,2016 - PVCu Window And Door Repairs,10/04/2012,1048001-1,49.71,REDACTED PERSONAL DATA,REDACTED PERSONAL DATA
Tendring DC,http://statistics.data.gov.uk/id/local-authority-district/22UN,Life Opportunities,5480 - HRA - Repair & Maintenance,2016 - PVCu Window And Door Repairs,10/04/2012,1048002-1,64.77,REDACTED PERSONAL DATA,REDACTED PERSONAL DATA
Tendring DC,http://statistics.data.gov.uk/id/local-authority-district/22UN,Life Opportunities,5480 - HRA - Repair & Maintenance,2016 - PVCu Window And Door Repairs,10/04/2012,1048003-1,498.49,REDACTED PERSONAL DATA,REDACTED PERSONAL DATA
Tendring DC,http://statistics.data.gov.uk/id/local-authority-district/22UN,Life Opportunities,5480 - HRA - Repair & Maintenance,2016 - PVCu Window And Door Repairs,10/04/2012,1048004-1,25,REDACTED PERSONAL DATA,REDACTED PERSONAL DATA
Tendring DC,http://statistics.data.gov.uk/id/local-authority-district/22UN,Life Opportunities,5480 - HRA - Repair & Maintenance,2016 - PVCu Window And Door Repairs,10/04/2012,1048005-1,25,REDACTED PERSONAL DATA,REDACTED PERSONAL DATA
Tendring DC,http://statistics.data.gov.uk/id/local-authority-district/22UN,Life Opportunities,5480 - HRA - Repair & Maintenance,2016 - PVCu Window And Door Repairs,10/04/2012,1048006-1,121.9,REDACTED PERSONAL DATA,REDACTED PERSONAL DATA
Tendring DC,http://statistics.data.gov.uk/id/local-authority-district/22UN,Life Opportunities,5480 - HRA - Repair & Maintenance,2016 - PVCu Window And Door Repairs,10/04/2012,1048007-1,28.5,REDACTED PERSONAL DATA,REDACTED PERSONAL DATA
Tendring DC,http://statistics.data.gov.uk/id/local-authority-district/22UN,Life Opportunities,5480 - HRA - Repair & Maintenance,2016 - PVCu Window And Door Repairs,10/04/2012,1048008-1,25,REDACTED PERSONAL DATA,REDACTED PERSONAL DATA
Tendring DC,http://statistics.data.gov.uk/id/local-authority-district/22UN,Life Opportunities,5480 - HRA - Repair & Maintenance,2016 - PVCu Window And Door Repairs,10/04/2012,1048009-1,36.85,REDACTED PERSONAL DATA,REDACTED PERSONAL DATA
Tendring DC,http://statistics.data.gov.uk/id/local-authority-district/22UN,Life Opportunities,5480 - HRA - Repair & Maintenance,2016 - PVCu Window And Door Repairs,10/04/2012,1048010-1,60.8,REDACTED PERSONAL DATA,REDACTED PERSONAL DATA
Tendring DC,http://statistics.data.gov.uk/id/local-authority-district/22UN,Life Opportunities,5480 - HRA - Repair & Maintenance,2016 - PVCu Window And Door Repairs,10/04/2012,1048011-1,10.63,REDACTED PERSONAL DATA,REDACTED PERSONAL DATA
Tendring DC,http://statistics.data.gov.uk/id/local-authority-district/22UN,Life Opportunities,5480 - HRA - Repair & Maintenance,2016 - PVCu Window And Door Repairs,10/04/2012,1048012-1,10.63,REDACTED PERSONAL DATA,REDACTED PERSONAL DATA
Tendring DC,http://statistics.data.gov.uk/id/local-authority-district/22UN,Life Opportunities,5480 - HRA - Repair & Maintenance,2016 - PVCu Window And Door Repairs,10/04/2012,1048034-1,10.63,REDACTED PERSONAL DATA,REDACTED PERSONAL DATA
Tendring DC,http://statistics.data.gov.uk/id/local-authority-district/22UN,Life Opportunities,5480 - HRA - Repair & Maintenance,2016 - PVCu Window And Door Repairs,10/04/2012,1048035-1,32.02,REDACTED PERSONAL DATA,REDACTED PERSONAL DATA
Tendring DC,http://statistics.data.gov.uk/id/local-authority-district/22UN,Life Opportunities,5480 - HRA - Repair & Maintenance,2016 - PVCu Window And Door Repairs,10/04/2012,1048036-1,37.52,REDACTED PERSONAL DATA,REDACTED PERSONAL DATA
Tendring DC,http://statistics.data.gov.uk/id/local-authority-district/22UN,Life Opportunities,5480 - HRA - Repair & Maintenance,2016 - PVCu Window And Door Repairs,10/04/2012,1048037-1,141.27,REDACTED PERSONAL DATA,REDACTED PERSONAL DATA
Tendring DC,http://statistics.data.gov.uk/id/local-authority-district/22UN,Life Opportunities,5480 - HRA - Repair & Maintenance,2016 - PVCu Window And Door Repairs,10/04/2012,1048038-1,50.23,REDACTED PERSONAL DATA,REDACTED PERSONAL DATA
Tendring DC,http://statistics.data.gov.uk/id/local-authority-district/22UN,Life Opportunities,5480 - HRA - Repair & Maintenance,2016 - PVCu Window And Door Repairs,10/04/2012,1048039-1,135.14,REDACTED PERSONAL DATA,REDACTED PERSONAL DATA
Tendring DC,http://statistics.data.gov.uk/id/local-authority-district/22UN,Life Opportunities,5480 - HRA - Repair & Maintenance,2016 - PVCu Window And Door Repairs,10/04/2012,1048040-1,54.3,REDACTED PERSONAL DATA,REDACTED PERSONAL DATA
Tendring DC,http://statistics.data.gov.uk/id/local-authority-district/22UN,Life Opportunities,5480 - HRA - Repair & Maintenance,2016 - PVCu Window And Door Repairs,10/04/2012,1048041-1,52.75,REDACTED PERSONAL DATA,REDACTED PERSONAL DATA
Tendring DC,http://statistics.data.gov.uk/id/local-authority-district/22UN,Life Opportunities,5480 - HRA - Repair & Maintenance,2016 - PVCu Window And Door Repairs,10/04/2012,1048042-1,28.5,REDACTED PERSONAL DATA,REDACTED PERSONAL DATA
Tendring DC,http://statistics.data.gov.uk/id/local-authority-district/22UN,Life Opportunities,5480 - HRA - Repair & Maintenance,2016 - PVCu Window And Door Repairs,10/04/2012,1048043-1,28.5,REDACTED PERSONAL DATA,REDACTED PERSONAL DATA
Tendring DC,http://statistics.data.gov.uk/id/local-authority-district/22UN,Life Opportunities,5480 - HRA - Repair & Maintenance,2016 - PVCu Window And Door Repairs,10/04/2012,1048044-1,34.51,REDACTED PERSONAL DATA,REDACTED PERSONAL DATA
Tendring DC,http://statistics.data.gov.uk/id/local-authority-district/22UN,Life Opportunities,5480 - HRA - Repair & Maintenance,2016 - PVCu Window And Door Repairs,10/04/2012,1048045-1,34.51,REDACTED PERSONAL DATA,REDACTED PERSONAL DATA
Tendring DC,http://statistics.data.gov.uk/id/local-authority-district/22UN,Life Opportunities,5480 - HRA - Repair & Maintenance,2016 - PVCu Window And Door Repairs,10/04/2012,1048046-1,36.85,REDACTED PERSONAL DATA,REDACTED PERSONAL DATA
Tendring DC,http://statistics.data.gov.uk/id/local-authority-district/22UN,Life Opportunities,5480 - HRA - Repair & Maintenance,2016 - PVCu Window And Door Repairs,10/04/2012,1048047-1,28.82,REDACTED PERSONAL DATA,REDACTED PERSONAL DATA
Tendring DC,http://statistics.data.gov.uk/id/local-authority-district/22UN,Life Opportunities,5480 - HRA - Repair & Maintenance,2016 - PVCu Window And Door Repairs,10/04/2012,1048048-1,25,REDACTED PERSONAL DATA,REDACTED PERSONAL DATA
Tendring DC,http://statistics.data.gov.uk/id/local-authority-district/22UN,Life Opportunities,5480 - HRA - Repair & Maintenance,2016 - PVCu Window And Door Repairs,10/04/2012,1048049-1,25,REDACTED PERSONAL DATA,REDACTED PERSONAL DATA
Tendring DC,http://statistics.data.gov.uk/id/local-authority-district/22UN,Life Opportunities,5480 - HRA - Repair & Maintenance,2016 - PVCu Window And Door Repairs,10/04/2012,1048050-1,43.76,REDACTED PERSONAL DATA,REDACTED PERSONAL DATA
Tendring DC,http://statistics.data.gov.uk/id/local-authority-district/22UN,Life Opportunities,5480 - HRA - Repair & Maintenance,2016 - PVCu Window And Door Repairs,10/04/2012,1048051-1,34.51,REDACTED PERSONAL DATA,REDACTED PERSONAL DATA
Tendring DC,http://statistics.data.gov.uk/id/local-authority-district/22UN,Life Opportunities,5480 - HRA - Repair & Maintenance,2016 - PVCu Window And Door Repairs,10/04/2012,1048052-1,25.5,REDACTED PERSONAL DATA,REDACTED PERSONAL DATA
Tendring DC,http://statistics.data.gov.uk/id/local-authority-district/22UN,Life Opportunities,5480 - HRA - Repair & Maintenance,2016 - PVCu Window And Door Repairs,10/04/2012,1048053-1,58.55,REDACTED PERSONAL DATA,REDACTED PERSONAL DATA
Tendring DC,http://statistics.data.gov.uk/id/local-authority-district/22UN,Life Opportunities,5480 - HRA - Repair & Maintenance,2016 - PVCu Window And Door Repairs,10/04/2012,1048054-1,224.39,REDACTED PERSONAL DATA,REDACTED PERSONAL DATA
Tendring DC,http://statistics.data.gov.uk/id/local-authority-district/22UN,Life Opportunities,5480 - HRA - Repair & Maintenance,2016 - PVCu Window And Door Repairs,10/04/2012,1048055-1,43.47,REDACTED PERSONAL DATA,REDACTED PERSONAL DATA
Tendring DC,http://statistics.data.gov.uk/id/local-authority-district/22UN,Life Opportunities,5480 - HRA - Repair & Maintenance,2016 - PVCu Window And Door Repairs,17/04/2012,1048199-1,30.73,REDACTED PERSONAL DATA,REDACTED PERSONAL DATA
Tendring DC,http://statistics.data.gov.uk/id/local-authority-district/22UN,Life Opportunities,5480 - HRA - Repair & Maintenance,2016 - PVCu Window And Door Repairs,17/04/2012,1048200-1,25,REDACTED PERSONAL DATA,REDACTED PERSONAL DATA
Tendring DC,http://statistics.data.gov.uk/id/local-authority-district/22UN,Life Opportunities,5480 - HRA - Repair & Maintenance,2016 - PVCu Window And Door Repairs,24/04/2012,1048330-1,74.64,REDACTED PERSONAL DATA,REDACTED PERSONAL DATA
Tendring DC,http://statistics.data.gov.uk/id/local-authority-district/22UN,Life Opportunities,5480 - HRA - Repair & Maintenance,2016 - PVCu Window And Door Repairs,24/04/2012,1048331-1,30.26,REDACTED PERSONAL DATA,REDACTED PERSONAL DATA
Tendring DC,http://statistics.data.gov.uk/id/local-authority-district/22UN,Life Opportunities,5480 - HRA - Repair & Maintenance,2016 - PVCu Window And Door Repairs,24/04/2012,1048332-1,235.05,REDACTED PERSONAL DATA,REDACTED PERSONAL DATA
Tendring DC,http://statistics.data.gov.uk/id/local-authority-district/22UN,Life Opportunities,5480 - HRA - Repair & Maintenance,2081 - PVCU Window And Door Servicing,24/04/2012,1048333-1,1381.72,REDACTED PERSONAL DATA,REDACTED PERSONAL DATA
Tendring DC,http://statistics.data.gov.uk/id/local-authority-district/22UN,Life Opportunities,5480 - HRA - Repair & Maintenance,2016 - PVCu Window And Door Repairs,24/04/2012,1048334-1,38.21,REDACTED PERSONAL DATA,REDACTED PERSONAL DATA
Tendring DC,http://statistics.data.gov.uk/id/local-authority-district/22UN,Life Opportunities,5480 - HRA - Repair & Maintenance,2016 - PVCu Window And Door Repairs,24/04/2012,1048335-1,28.5,REDACTED PERSONAL DATA,REDACTED PERSONAL DATA
Tendring DC,http://statistics.data.gov.uk/id/local-authority-district/22UN,Life Opportunities,5480 - HRA - Repair & Maintenance,2016 - PVCu Window And Door Repairs,24/04/2012,1048336-1,25,REDACTED PERSONAL DATA,REDACTED PERSONAL DATA
Tendring DC,http://statistics.data.gov.uk/id/local-authority-district/22UN,Life Opportunities,5480 - HRA - Repair & Maintenance,2016 - PVCu Window And Door Repairs,24/04/2012,1048337-1,25,REDACTED PERSONAL DATA,REDACTED PERSONAL DATA
Tendring DC,http://statistics.data.gov.uk/id/local-authority-district/22UN,Life Opportunities,5480 - HRA - Repair & Maintenance,2016 - PVCu Window And Door Repairs,24/04/2012,1048338-1,50.51,REDACTED PERSONAL DATA,REDACTED PERSONAL DATA
Tendring DC,http://statistics.data.gov.uk/id/local-authority-district/22UN,Life Opportunities,5480 - HRA - Repair & Maintenance,2016 - PVCu Window And Door Repairs,24/04/2012,1048339-1,28.5,REDACTED PERSONAL DATA,REDACTED PERSONAL DATA
Tendring DC,http://statistics.data.gov.uk/id/local-authority-district/22UN,Life Opportunities,5480 - HRA - Repair & Maintenance,2016 - PVCu Window And Door Repairs,24/04/2012,1048340-1,67.72,REDACTED PERSONAL DATA,REDACTED PERSONAL DATA
Tendring DC,http://statistics.data.gov.uk/id/local-authority-district/22UN,Life Opportunities,5480 - HRA - Repair & Maintenance,2016 - PVCu Window And Door Repairs,24/04/2012,1048341-1,29.46,REDACTED PERSONAL DATA,REDACTED PERSONAL DATA
Tendring DC,http://statistics.data.gov.uk/id/local-authority-district/22UN,Life Opportunities,5480 - HRA - Repair & Maintenance,2016 - PVCu Window And Door Repairs,24/04/2012,1048342-1,84.3,REDACTED PERSONAL DATA,REDACTED PERSONAL DATA
Tendring DC,http://statistics.data.gov.uk/id/local-authority-district/22UN,Life Opportunities,5480 - HRA - Repair & Maintenance,2016 - PVCu Window And Door Repairs,24/04/2012,1048343-1,34.51,REDACTED PERSONAL DATA,REDACTED PERSONAL DATA
Tendring DC,http://statistics.data.gov.uk/id/local-authority-district/22UN,Life Opportunities,5480 - HRA - Repair & Maintenance,2016 - PVCu Window And Door Repairs,24/04/2012,1048344-1,10.63,REDACTED PERSONAL DATA,REDACTED PERSONAL DATA
Tendring DC,http://statistics.data.gov.uk/id/local-authority-district/22UN,Life Opportunities,5480 - HRA - Repair & Maintenance,2016 - PVCu Window And Door Repairs,24/04/2012,1048345-1,34.23,REDACTED PERSONAL DATA,REDACTED PERSONAL DATA
Tendring DC,http://statistics.data.gov.uk/id/local-authority-district/22UN,Life Opportunities,5480 - HRA - Repair & Maintenance,2016 - PVCu Window And Door Repairs,24/04/2012,1048346-1,117.48,REDACTED PERSONAL DATA,REDACTED PERSONAL DATA
Tendring DC,http://statistics.data.gov.uk/id/local-authority-district/22UN,Life Opportunities,5480 - HRA - Repair & Maintenance,2016 - PVCu Window And Door Repairs,24/04/2012,1048347-1,57.43,REDACTED PERSONAL DATA,REDACTED PERSONAL DATA
Tendring DC,http://statistics.data.gov.uk/id/local-authority-district/22UN,Life Opportunities,5480 - HRA - Repair & Maintenance,2016 - PVCu Window And Door Repairs,24/04/2012,1048348-1,154.82,REDACTED PERSONAL DATA,REDACTED PERSONAL DATA
Tendring DC,http://statistics.data.gov.uk/id/local-authority-district/22UN,Life Opportunities,5480 - HRA - Repair & Maintenance,2016 - PVCu Window And Door Repairs,17/04/2012,2095502-1,28.5,REDACTED PERSONAL DATA,REDACTED PERSONAL DATA
Tendring DC,http://statistics.data.gov.uk/id/local-authority-district/22UN,Life Opportunities,5480 - HRA - Repair & Maintenance,2016 - PVCu Window And Door Repairs,17/04/2012,2095503-1,34.81,REDACTED PERSONAL DATA,REDACTED PERSONAL DATA
Tendring DC,http://statistics.data.gov.uk/id/local-authority-district/22UN,Life Opportunities,5480 - HRA - Repair & Maintenance,2016 - PVCu Window And Door Repairs,17/04/2012,2095504-1,10.63,REDACTED PERSONAL DATA,REDACTED PERSONAL DATA
Tendring DC,http://statistics.data.gov.uk/id/local-authority-district/22UN,Life Opportunities,5480 - HRA - Repair & Maintenance,2016 - PVCu Window And Door Repairs,17/04/2012,2095505-1,10.63,REDACTED PERSONAL DATA,REDACTED PERSONAL DATA
Tendring DC,http://statistics.data.gov.uk/id/local-authority-district/22UN,Life Opportunities,5480 - HRA - Repair & Maintenance,2016 - PVCu Window And Door Repairs,17/04/2012,2095506-1,608.99,REDACTED PERSONAL DATA,REDACTED PERSONAL DATA
Tendring DC,http://statistics.data.gov.uk/id/local-authority-district/22UN,Life Opportunities,5480 - HRA - Repair & Maintenance,2016 - PVCu Window And Door Repairs,17/04/2012,2095507-1,25,REDACTED PERSONAL DATA,REDACTED PERSONAL DATA
Tendring DC,http://statistics.data.gov.uk/id/local-authority-district/22UN,Life Opportunities,5480 - HRA - Repair & Maintenance,2016 - PVCu Window And Door Repairs,17/04/2012,2095508-1,69.57,REDACTED PERSONAL DATA,REDACTED PERSONAL DATA
Tendring DC,http://statistics.data.gov.uk/id/local-authority-district/22UN,Life Opportunities,5480 - HRA - Repair & Maintenance,2016 - PVCu Window And Door Repairs,17/04/2012,2095509-1,25,REDACTED PERSONAL DATA,REDACTED PERSONAL DATA
Tendring DC,http://statistics.data.gov.uk/id/local-authority-district/22UN,Life Opportunities,5480 - HRA - Repair & Maintenance,2016 - PVCu Window And Door Repairs,17/04/2012,2095510-1,82.29,REDACTED PERSONAL DATA,REDACTED PERSONAL DATA
Tendring DC,http://statistics.data.gov.uk/id/local-authority-district/22UN,Life Opportunities,5480 - HRA - Repair & Maintenance,2016 - PVCu Window And Door Repairs,17/04/2012,2095511-1,69.4,REDACTED PERSONAL DATA,REDACTED PERSONAL DATA
Tendring DC,http://statistics.data.gov.uk/id/local-authority-district/22UN,Life Opportunities,5480 - HRA - Repair & Maintenance,2016 - PVCu Window And Door Repairs,17/04/2012,2095512-1,44.22,REDACTED PERSONAL DATA,REDACTED PERSONAL DATA
Tendring DC,http://statistics.data.gov.uk/id/local-authority-district/22UN,Life Opportunities,5480 - HRA - Repair & Maintenance,2016 - PVCu Window And Door Repairs,17/04/2012,2095513-1,248.87,REDACTED PERSONAL DATA,REDACTED PERSONAL DATA
Tendring DC,http://statistics.data.gov.uk/id/local-authority-district/22UN,Life Opportunities,5480 - HRA - Repair & Maintenance,2016 - PVCu Window And Door Repairs,17/04/2012,2095514-1,25,REDACTED PERSONAL DATA,REDACTED PERSONAL DATA
Tendring DC,http://statistics.data.gov.uk/id/local-authority-district/22UN,Life Opportunities,5480 - HRA - Repair & Maintenance,2081 - PVCU Window And Door Servicing,17/04/2012,2095515-1,506.13,REDACTED PERSONAL DATA,REDACTED PERSONAL DATA
Tendring DC,http://statistics.data.gov.uk/id/local-authority-district/22UN,Life Opportunities,5480 - HRA - Repair & Maintenance,2081 - PVCU Window And Door Servicing,17/04/2012,2095516-1,1141.52,REDACTED PERSONAL DATA,REDACTED PERSONAL DATA
Tendring DC,http://statistics.data.gov.uk/id/local-authority-district/22UN,Life Opportunities,5480 - HRA - Repair & Maintenance,2016 - PVCu Window And Door Repairs,17/04/2012,2095517-1,1341.34,REDACTED PERSONAL DATA,REDACTED PERSONAL DATA
Tendring DC,http://statistics.data.gov.uk/id/local-authority-district/22UN,Life Opportunities,5480 - HRA - Repair & Maintenance,2016 - PVCu Window And Door Repairs,17/04/2012,2095518-1,28.5,REDACTED PERSONAL DATA,REDACTED PERSONAL DATA
Tendring DC,http://statistics.data.gov.uk/id/local-authority-district/22UN,Life Opportunities,5480 - HRA - Repair & Maintenance,2016 - PVCu Window And Door Repairs,17/04/2012,2095519-1,132.33,REDACTED PERSONAL DATA,REDACTED PERSONAL DATA
Tendring DC,http://statistics.data.gov.uk/id/local-authority-district/22UN,Life Opportunities,5480 - HRA - Repair & Maintenance,2016 - PVCu Window And Door Repairs,17/04/2012,2095520-1,618.95,REDACTED PERSONAL DATA,REDACTED PERSONAL DATA
Tendring DC,http://statistics.data.gov.uk/id/local-authority-district/22UN,Life Opportunities,5480 - HRA - Repair & Maintenance,2081 - PVCU Window And Door Servicing,17/04/2012,2095521-1,1323.07,REDACTED PERSONAL DATA,REDACTED PERSONAL DATA
Tendring DC,http://statistics.data.gov.uk/id/local-authority-district/22UN,Life Opportunities,5480 - HRA - Repair & Maintenance,2081 - PVCU Window And Door Servicing,17/04/2012,2095522-1,608.2,REDACTED PERSONAL DATA,REDACTED PERSONAL DATA
Tendring DC,http://statistics.data.gov.uk/id/local-authority-district/22UN,Life Opportunities,5480 - HRA - Repair & Maintenance,2081 - PVCU Window And Door Servicing,17/04/2012,2095523-1,660.22,REDACTED PERSONAL DATA,REDACTED PERSONAL DATA
Tendring DC,http://statistics.data.gov.uk/id/local-authority-district/22UN,Life Opportunities,5480 - HRA - Repair & Maintenance,2016 - PVCu Window And Door Repairs,17/04/2012,2095524-1,251.53,REDACTED PERSONAL DATA,REDACTED PERSONAL DATA
Tendring DC,http://statistics.data.gov.uk/id/local-authority-district/22UN,Life Opportunities,5480 - HRA - Repair & Maintenance,2081 - PVCU Window And Door Servicing,17/04/2012,2095525-1,1327.06,REDACTED PERSONAL DATA,REDACTED PERSONAL DATA
Tendring DC,http://statistics.data.gov.uk/id/local-authority-district/22UN,Life Opportunities,5480 - HRA - Repair & Maintenance,2081 - PVCU Window And Door Servicing,17/04/2012,2095526-1,1105.02,REDACTED PERSONAL DATA,REDACTED PERSONAL DATA
Tendring DC,http://statistics.data.gov.uk/id/local-authority-district/22UN,Life Opportunities,5480 - HRA - Repair & Maintenance,2016 - PVCu Window And Door Repairs,17/04/2012,2095527-1,1390.14,REDACTED PERSONAL DATA,REDACTED PERSONAL DATA
Tendring DC,http://statistics.data.gov.uk/id/local-authority-district/22UN,Life Opportunities,5480 - HRA - Repair & Maintenance,2081 - PVCU Window And Door Servicing,17/04/2012,2095528-1,1317.26,REDACTED PERSONAL DATA,REDACTED PERSONAL DATA
Tendring DC,http://statistics.data.gov.uk/id/local-authority-district/22UN,Life Opportunities,5480 - HRA - Repair & Maintenance,2016 - PVCu Window And Door Repairs,17/04/2012,2095529-1,1099.66,REDACTED PERSONAL DATA,REDACTED PERSONAL DATA
Tendring DC,http://statistics.data.gov.uk/id/local-authority-district/22UN,Life Opportunities,5480 - HRA - Repair & Maintenance,2081 - PVCU Window And Door Servicing,17/04/2012,2095530-1,1266.53,REDACTED PERSONAL DATA,REDACTED PERSONAL DATA
Tendring DC,http://statistics.data.gov.uk/id/local-authority-district/22UN,Life Opportunities,5480 - HRA - Repair & Maintenance,2081 - PVCU Window And Door Servicing,17/04/2012,2095531-1,1308.84,REDACTED PERSONAL DATA,REDACTED PERSONAL DATA
Tendring DC,http://statistics.data.gov.uk/id/local-authority-district/22UN,Life Opportunities,5480 - HRA - Repair & Maintenance,2016 - PVCu Window And Door Repairs,17/04/2012,2095532-1,1383.33,REDACTED PERSONAL DATA,REDACTED PERSONAL DATA
Tendring DC,http://statistics.data.gov.uk/id/local-authority-district/22UN,Life Opportunities,5480 - HRA - Repair & Maintenance,2016 - PVCu Window And Door Repairs,17/04/2012,2095533-1,1390.14,REDACTED PERSONAL DATA,REDACTED PERSONAL DATA
Tendring DC,http://statistics.data.gov.uk/id/local-authority-district/22UN,Life Opportunities,5480 - HRA - Repair & Maintenance,2016 - PVCu Window And Door Repairs,17/04/2012,2095534-1,1381.72,REDACTED PERSONAL DATA,REDACTED PERSONAL DATA
Tendring DC,http://statistics.data.gov.uk/id/local-authority-district/22UN,Life Opportunities,5480 - HRA - Repair & Maintenance,2081 - PVCU Window And Door Servicing,17/04/2012,2095535-1,1308.84,REDACTED PERSONAL DATA,REDACTED PERSONAL DATA
Tendring DC,http://statistics.data.gov.uk/id/local-authority-district/22UN,Life Opportunities,5480 - HRA - Repair & Maintenance,2016 - PVCu Window And Door Repairs,17/04/2012,2095536-1,112.51,REDACTED PERSONAL DATA,REDACTED PERSONAL DATA
Tendring DC,http://statistics.data.gov.uk/id/local-authority-district/22UN,Life Opportunities,5480 - HRA - Repair & Maintenance,2016 - PVCu Window And Door Repairs,17/04/2012,2095537-1,30.26,REDACTED PERSONAL DATA,REDACTED PERSONAL DATA
Tendring DC,http://statistics.data.gov.uk/id/local-authority-district/22UN,Life Opportunities,5480 - HRA - Repair & Maintenance,2016 - PVCu Window And Door Repairs,17/04/2012,2095538-1,58.13,REDACTED PERSONAL DATA,REDACTED PERSONAL DATA
Tendring DC,http://statistics.data.gov.uk/id/local-authority-district/22UN,Life Opportunities,5480 - HRA - Repair & Maintenance,2016 - PVCu Window And Door Repairs,17/04/2012,2095539-1,241.59,REDACTED PERSONAL DATA,REDACTED PERSONAL DATA
Tendring DC,http://statistics.data.gov.uk/id/local-authority-district/22UN,Life Opportunities,5480 - HRA - Repair & Maintenance,2016 - PVCu Window And Door Repairs,17/04/2012,2095540-1,36.7,REDACTED PERSONAL DATA,REDACTED PERSONAL DATA
Tendring DC,http://statistics.data.gov.uk/id/local-authority-district/22UN,Life Opportunities,5480 - HRA - Repair & Maintenance,2016 - PVCu Window And Door Repairs,17/04/2012,2095541-1,31.88,2101444 - Thermoshield Windows Ltd,Leas Rd
Tendring DC,http://statistics.data.gov.uk/id/local-authority-district/22UN,Life Opportunities,5480 - HRA - Repair & Maintenance,2016 - PVCu Window And Door Repairs,24/04/2012,2095631-1,50.05,REDACTED PERSONAL DATA,REDACTED PERSONAL DATA
Tendring DC,http://statistics.data.gov.uk/id/local-authority-district/22UN,Life Opportunities,5480 - HRA - Repair & Maintenance,2016 - PVCu Window And Door Repairs,24/04/2012,2095632-1,28.5,REDACTED PERSONAL DATA,REDACTED PERSONAL DATA
Tendring DC,http://statistics.data.gov.uk/id/local-authority-district/22UN,Life Opportunities,5480 - HRA - Repair & Maintenance,2016 - PVCu Window And Door Repairs,24/04/2012,2095633-1,25,REDACTED PERSONAL DATA,REDACTED PERSONAL DATA
Tendring DC,http://statistics.data.gov.uk/id/local-authority-district/22UN,Life Opportunities,5480 - HRA - Repair & Maintenance,2016 - PVCu Window And Door Repairs,24/04/2012,2095635-1,25,REDACTED PERSONAL DATA,REDACTED PERSONAL DATA
Tendring DC,http://statistics.data.gov.uk/id/local-authority-district/22UN,Life Opportunities,5480 - HRA - Repair & Maintenance,2081 - PVCU Window And Door Servicing,24/04/2012,2095636-1,1253.4,REDACTED PERSONAL DATA,REDACTED PERSONAL DATA
Tendring DC,http://statistics.data.gov.uk/id/local-authority-district/22UN,Life Opportunities,5480 - HRA - Repair & Maintenance,2081 - PVCU Window And Door Servicing,24/04/2012,2095637-1,1286.68,REDACTED PERSONAL DATA,REDACTED PERSONAL DATA
Tendring DC,http://statistics.data.gov.uk/id/local-authority-district/22UN,Life Opportunities,5360 - HRA - Sheltered Units,2700 - Cleaning Materials,17/04/2012,1048230-1,23.88,2101474 - Thompson Cooper Ltd,HOOVER BAGS
Tendring DC,http://statistics.data.gov.uk/id/local-authority-district/22UN,Life Opportunities,5360 - HRA - Sheltered Units,4000 - Furniture,17/04/2012,1048231-1,61.2,2101474 - Thompson Cooper Ltd,HOOVER @ GREENFIELDS REPAIRED
Tendring DC,http://statistics.data.gov.uk/id/local-authority-district/22UN,Life Opportunities,5360 - HRA - Sheltered Units,4000 - Furniture,17/04/2012,1048232-1,34.4,2101474 - Thompson Cooper Ltd,HOOVER @ SPENDELLS REPAIRED
Tendring DC,http://statistics.data.gov.uk/id/local-authority-district/22UN,Life Opportunities,5360 - HRA - Sheltered Units,4000 - Furniture,17/04/2012,1048233-1,9.75,2101474 - Thompson Cooper Ltd,HOOVER @ GROOM
Tendring DC,http://statistics.data.gov.uk/id/local-authority-district/22UN,Life Opportunities,5820 - Harwich Sports Centre,2700 - Cleaning Materials,10/04/2012,2095322-1,28.81,2101474 - Thompson Cooper Ltd,
Tendring DC,http://statistics.data.gov.uk/id/local-authority-district/22UN,Life Opportunities,8510 - Dovercourt Swimming Pool & All Weather Facilities,2700 - Cleaning Materials,24/04/2012,2095639-1,16.15,REDACTED PERSONAL DATA,REDACTED PERSONAL DATA
Tendring DC,http://statistics.data.gov.uk/id/local-authority-district/22UN,Life Opportunities,5480 - HRA - Repair & Maintenance,4044 - Building & Safety Equipment,24/04/2012,1048307-1,467,REDACTED COMMERCIAL CONFIDENTIALITY,REDACTED COMMERCIAL CONFIDENTIALITY
Tendring DC,http://statistics.data.gov.uk/id/local-authority-district/22UN,Life Opportunities,8540 - Leisure Centre Clacton,2100 - Building Repairs,17/04/2012,1048099-1,198,2101466 - Tormax United Kingdom Limited,
Tendring DC,http://statistics.data.gov.uk/id/local-authority-district/22UN,Life Opportunities,5860 - Manningtree Sports Centre,4597 - Hired Services - Payments to Contractors,10/04/2012,1047968-1,40,2101437 - Tower Security (Tendring) Ltd,ALARM CALL OUTS
Tendring DC,http://statistics.data.gov.uk/id/local-authority-district/22UN,Life Opportunities,8540 - Leisure Centre Clacton,4400 - Maintenance Under Service Agreements,17/04/2012,1048138-1,80,2101437 - Tower Security (Tendring) Ltd,
Tendring DC,http://statistics.data.gov.uk/id/local-authority-district/22UN,Life Opportunities,6740 - Careline,3076 - Transport,10/04/2012,2095403-1,175,2101437 - Tower Security (Tendring) Ltd,4x4 use in snow
Tendring DC,http://statistics.data.gov.uk/id/local-authority-district/22UN,Life Opportunities,5480 - HRA - Repair & Maintenance,2064 - Domestic Appliance Repairs,10/04/2012,1047947-1,258,REDACTED PERSONAL DATA,REDACTED PERSONAL DATA
Tendring DC,http://statistics.data.gov.uk/id/local-authority-district/22UN,Life Opportunities,5860 - Manningtree Sports Centre,2700 - Cleaning Materials,10/04/2012,1047967-1,23.98,2111202 - Trade UK,SIGNAGE AND CLEANING
Tendring DC,http://statistics.data.gov.uk/id/local-authority-district/22UN,Life Opportunities,8540 - Leisure Centre Clacton,2100 - Building Repairs,17/04/2012,1048115-1,29.16,2111202 - Trade UK,
